NUMERO_MANDATO;RIGA_MANDATO;QUIET;IMPORTO_RIGA;IMPORTO_MANDATO;BENEFICIARIO;CIG;TITOLO_PAGAMENTO;DATA_MANDATO;CAPITOLO;ARTICOLO;NUMERO_IMPEGNO;TITOLO;DESCR_TITOLO;LIVELLO_II;DESCR_LIVELLO_II;LIVELLO_III;DESCR_LIVELLO_III;LIVELLO_IV;DESCR_LIVELLO_IV;LIVELLO_V;DESCR_LIVELLO_V;DATA_PAG_EFF;
435;1;0;"130,50";"130,50";LA FONTESE DI GIANNI BROLESE & C. S.A.S.;ZF0271BCF6;SALDO Fatt.n. 189/V  del 16/03/2019 ACQUISTO DI TESTI PER UFFICIO VIGILI;08-04-2019;37;0;70;1;Spese correnti;3;Acquisto di beni e servizi;1;Acquisto di beni;2;Altri beni di consumo;1;"Carta, cancelleria e stampati";08-04-2019;
436;1;0;"378,20";"378,20";NORDEST TELEMATICA S.R.L.;Z442752452;SALDO Fatt.n. 128/001  del 15/03/2019 LAVORI DI RIORGANIZZAZIONE TELEFONICA PER SPOSTAMENTO SCUOLE;08-04-2019;256;0;108;1;Spese correnti;3;Acquisto di beni e servizi;1;Acquisto di beni;2;Altri beni di consumo;999;Altri beni e materiali di consumo n.a.c.;08-04-2019;
437;1;0;"422,12";"422,12";INFOTEAM SRL;Z37277E3BC;SALDO Fatt.n. 00000000613  del 12/03/2019 MANUTENZIONE P.C. DEL CENTRO POLIVALENTE;08-04-2019;561;3;131;1;Spese correnti;3;Acquisto di beni e servizi;2;Acquisto di servizi;13;Servizi ausiliari per il funzionamento dell'ente;999;Altri servizi ausiliari n.a.c.;08-04-2019;
438;1;0;"514,18";"514,18";AS.COM SERVIZI DEL MANDAMENTO S.R.L.; ;SALDO Fatt.n. 00023/02  del 11/03/2019 LOCAZIONE CENTRO PER L'IMPIEGO;08-04-2019;516;0;135;1;Spese correnti;3;Acquisto di beni e servizi;2;Acquisto di servizi;7;Utilizzo di beni di terzi;1;Locazione di beni immobili;08-04-2019;
439;1;0;"200,00";"200,00";ASCOTRADE S.P.A.;ZBA27A07D4;ACCONTO Fatt.n. 232626  del 22/02/2019 MANUTENZIONE ED ATTIVAZIONE CONTATORE GAS MAGAZZ. COMUNALE;08-04-2019;71;1;606;1;Spese correnti;3;Acquisto di beni e servizi;2;Acquisto di servizi;13;Servizi ausiliari per il funzionamento dell'ente;999;Altri servizi ausiliari n.a.c.;08-04-2019;
440;1;0;"26,63";"26,63";ASCOTRADE S.P.A.;ZBA27A07D4;SALDO Fatt.n. 232626  del 22/02/2019 MANUTENZIONE ED ATTIVAZIONE CONTATORE GAS MAGAZZ. COMUNALE;08-04-2019;530;0;138;1;Spese correnti;3;Acquisto di beni e servizi;2;Acquisto di servizi;5;Utenze e canoni;6;Gas;08-04-2019;
441;1;0;"152,34";"417,78";GREEN TELECOMUNICAZIONI S.P.A.;Z40279DD24;SALDO Fatt.n. E4428  del 12/03/2019 Traffico Telefonico Periodo: febbraio 2019;08-04-2019;34;0;136;1;Spese correnti;3;Acquisto di beni e servizi;2;Acquisto di servizi;5;Utenze e canoni;1;Telefonia fissa;08-04-2019;
441;2;0;"265,44";"417,78";GREEN TELECOMUNICAZIONI S.P.A.;Z40279DD24;SALDO Fatt.n. E5806  del 12/03/2019 Traffico Telefonico Periodo: febbraio 2019;08-04-2019;34;0;136;1;Spese correnti;3;Acquisto di beni e servizi;2;Acquisto di servizi;5;Utenze e canoni;1;Telefonia fissa;08-04-2019;
442;1;0;"300,00";"300,00";ALFA ANTINCENDIO S.R.L.;ZA5276F7AD;ACCONTO Fatt.n. 22  del 05/03/2019 AFFIDAMENTO INCARICO PER REVISIONE ESTINTORI SCUOLE;08-04-2019;310;2;124;1;Spese correnti;3;Acquisto di beni e servizi;2;Acquisto di servizi;13;Servizi ausiliari per il funzionamento dell'ente;999;Altri servizi ausiliari n.a.c.;08-04-2019;
443;1;0;"500,00";"500,00";ALFA ANTINCENDIO S.R.L.;ZA5276F7AD;ACCONTO Fatt.n. 22  del 05/03/2019 AFFIDAMENTO INCARICO PER REVISIONE ESTINTORI SCUOLE;08-04-2019;34;1;125;1;Spese correnti;3;Acquisto di beni e servizi;2;Acquisto di servizi;9;Manutenzione ordinaria e riparazioni;5;Manutenzione ordinaria e riparazioni di attrezzature;08-04-2019;
444;1;0;"500,00";"500,00";ALFA ANTINCENDIO S.R.L.;ZA5276F7AD;ACCONTO Fatt.n. 22  del 05/03/2019 AFFIDAMENTO INCARICO PER REVISIONE ESTINTORI SCUOLE;08-04-2019;561;4;126;1;Spese correnti;3;Acquisto di beni e servizi;2;Acquisto di servizi;9;Manutenzione ordinaria e riparazioni;5;Manutenzione ordinaria e riparazioni di attrezzature;08-04-2019;
445;1;0;"1.500,00";"1.500,00";ALFA ANTINCENDIO S.R.L.;ZA5276F7AD;ACCONTO Fatt.n. 22  del 05/03/2019 AFFIDAMENTO INCARICO PER REVISIONE ESTINTORI SCUOLE;08-04-2019;311;2;127;1;Spese correnti;3;Acquisto di beni e servizi;2;Acquisto di servizi;13;Servizi ausiliari per il funzionamento dell'ente;999;Altri servizi ausiliari n.a.c.;08-04-2019;
446;1;0;"98,66";"98,66";ALFA ANTINCENDIO S.R.L.;ZA5276F7AD;SALDO Fatt.n. 22  del 05/03/2019 AFFIDAMENTO INCARICO PER REVISIONE ESTINTORI SCUOLE;08-04-2019;561;4;132;1;Spese correnti;3;Acquisto di beni e servizi;2;Acquisto di servizi;9;Manutenzione ordinaria e riparazioni;5;Manutenzione ordinaria e riparazioni di attrezzature;08-04-2019;
447;1;0;"21,31";"293,81";ENEL ENERGIA S.P.A.;7134285639;SALDO Fatt.n. 003005815430  del 15/01/2019 ILLUMINAZIONE PUBBLICA: DICEMBRE 2018;08-04-2019;600;0;120;1;Spese correnti;3;Acquisto di beni e servizi;2;Acquisto di servizi;5;Utenze e canoni;4;Energia elettrica;08-04-2019;
447;2;0;"272,50";"293,81";ENEL ENERGIA S.P.A.;7134285639;SALDO Fatt.n. 003005815420  del 15/01/2019 ILLUMINAZIONE PUBBLICA: DICEMBRE 2018;08-04-2019;600;0;120;1;Spese correnti;3;Acquisto di beni e servizi;2;Acquisto di servizi;5;Utenze e canoni;4;Energia elettrica;08-04-2019;
448;1;0;"499,96";"499,96";IDEA GIARDINO SNC;ZDE2436E2A;SALDO Fatt.n. 7  del 26/03/2019 FORNITURA E POSA DI PIANTE;08-04-2019;309;0;590;1;Spese correnti;3;Acquisto di beni e servizi;1;Acquisto di beni;2;Altri beni di consumo;999;Altri beni e materiali di consumo n.a.c.;08-04-2019;
449;1;0;"597,04";"597,04";ELIOCARTOTECNICA S.R.L.;ZB32772792;SALDO Fatt.n. 1072/G  del 28/03/2019 FORNITURA MATERIALE DI CANCELLERIA PER UFFICI COMUNALI;08-04-2019;37;0;128;1;Spese correnti;3;Acquisto di beni e servizi;1;Acquisto di beni;2;Altri beni di consumo;999;Altri beni e materiali di consumo n.a.c.;08-04-2019;
450;1;0;"209,14";"209,14";ELIOCARTOTECNICA S.R.L.;Z47278F3B7;SALDO Fatt.n. 1073/G  del 28/03/2019 SPESE PER FUNZIONAMENTO UFFICI COMUNALI;08-04-2019;34;4;137;1;Spese correnti;3;Acquisto di beni e servizi;2;Acquisto di servizi;99;Altri servizi;999;Altri servizi diversi n.a.c.;08-04-2019;
451;1;0;"1.953,00";"1.953,00";KIRIKU' SOCIETA' COOPERATIVA SOCIALE ONLUS; ;SALDO Fatt.n. 57  del 29/03/2019 SPESE PER ACCOMPAGNAMENTO MINORE;08-04-2019;559;0;95;1;Spese correnti;3;Acquisto di beni e servizi;2;Acquisto di servizi;99;Altri servizi;999;Altri servizi diversi n.a.c.;08-04-2019;
452;1;0;"3.339,00";"3.339,00";KIRIKU' SOCIETA' COOPERATIVA SOCIALE ONLUS;Z6D274937A;SALDO Fatt.n. 68  del 29/03/2019 SPAZIO EDUCATIVO POMERIDIANO-FEBB-MARZO 2019;08-04-2019;559;0;106;1;Spese correnti;3;Acquisto di beni e servizi;2;Acquisto di servizi;99;Altri servizi;999;Altri servizi diversi n.a.c.;08-04-2019;
453;1;0;"1.799,99";"1.799,99";KIRIKU' SOCIETA' COOPERATIVA SOCIALE ONLUS;Z5F262CE40;SALDO Fatt.n. 75  del 29/03/2019 SPESE PER PRESTAZIONI SOCIALI;08-04-2019;559;0;502;1;Spese correnti;3;Acquisto di beni e servizi;2;Acquisto di servizi;99;Altri servizi;999;Altri servizi diversi n.a.c.;08-04-2019;
454;1;0;"4.050,40";"4.050,40";INFOTEAM SRL;Z99239E9BB;SALDO Fatt.n. 00000000684  del 29/03/2019 SOFTWARE PER LA TORRE;08-04-2019;785;0;549;2;Spese in conto capitale;2;Investimenti fissi lordi e acquisto di terreni;1;Beni materiali;10;"Beni immobili di valore culturale, storico ed artistico";8;"Musei, teatri e biblioteche di valore culturale, storico ed artistico";08-04-2019;
455;1;0;"248,88";"248,88";SCOMAZZON ANTINFORTUNISTICA DI SCOMAZZON D.& C.snc;ZEE2661FA4;SALDO Fatt.n. 3  del 31/03/2019 ACQUISTO VESTIARIO PER PERSONALE OPERAIO;08-04-2019;71;2;591;1;Spese correnti;3;Acquisto di beni e servizi;1;Acquisto di beni;2;Altri beni di consumo;4;Vestiario;08-04-2019;
456;1;0;"141,52";"141,52";BALDO OFFICINA DI FLAVIO ANDREATTA;Z6127ADA2C;SALDO Fatt.n. 13  del 01/04/2019 LAVORI DI RIPARAZIONE AUTOMEZZO PRIVATO A SEGUITO DISSESTO STRADALE;08-04-2019;117;0;146;1;Spese correnti;10;Altre spese correnti;5;"Spese dovute a sanzioni, risarcimenti e indennizzi";1;Spese dovute a sanzioni;1;Spese dovute a sanzioni;08-04-2019;
457;1;0;"123,00";"246,00";KUWAIT PETROLEUM ITALIA S.P.A.;Z4E197F01F;SALDO Fatt.n. PJ00863872  del 28/02/2019  CARBURANTE AUTOMEZZO POLIZIA LOCALE - FEBBRAIO 2019;08-04-2019;179;0;154;1;Spese correnti;3;Acquisto di beni e servizi;1;Acquisto di beni;2;Altri beni di consumo;2;"Carburanti, combustibili e lubrificanti";08-04-2019;
457;2;0;"123,00";"246,00";KUWAIT PETROLEUM ITALIA S.P.A.;Z4E197F01F;SALDO Fatt.n. PJ00982920  del 31/03/2019 CARBURANTE AUTOMEZZI VIGILI - MARZO 2019;08-04-2019;179;0;154;1;Spese correnti;3;Acquisto di beni e servizi;1;Acquisto di beni;2;Altri beni di consumo;2;"Carburanti, combustibili e lubrificanti";08-04-2019;
458;1;0;"73,00";"318,51";KUWAIT PETROLEUM ITALIA S.P.A.;Z4E197F01F;SALDO Fatt.n. PJ00863870  del 28/02/2019 CARBURANTE AUTOMEZZO OPERAI - FEBBRAIO 2019;08-04-2019;590;0;156;1;Spese correnti;3;Acquisto di beni e servizi;1;Acquisto di beni;2;Altri beni di consumo;2;"Carburanti, combustibili e lubrificanti";08-04-2019;
458;2;0;"117,50";"318,51";KUWAIT PETROLEUM ITALIA S.P.A.;Z4E197F01F;SALDO Fatt.n. PJ00982918  del 31/03/2019 CARBURANTE AUTOMEZZI OPERAI - MARZO 2019;08-04-2019;590;0;156;1;Spese correnti;3;Acquisto di beni e servizi;1;Acquisto di beni;2;Altri beni di consumo;2;"Carburanti, combustibili e lubrificanti";08-04-2019;
458;3;0;"128,01";"318,51";KUWAIT PETROLEUM ITALIA S.P.A.;Z4E197F01F;SALDO Fatt.n. PJ00863869  del 28/02/2019 CARBURANTE AUTOMEZZI OPERAI - FEBBRAIO 2019;08-04-2019;590;0;156;1;Spese correnti;3;Acquisto di beni e servizi;1;Acquisto di beni;2;Altri beni di consumo;2;"Carburanti, combustibili e lubrificanti";08-04-2019;
459;1;0;"176,00";"176,00";Mobilità di Marca S.P.A.;Z7D2332685;SALDO Fatt.n. 000213  del 18/03/2019 NOLEGGIO DI N.2 BUS PER SCUOLA SECONDARIA;08-04-2019;305;1;178;1;Spese correnti;3;Acquisto di beni e servizi;2;Acquisto di servizi;2;"Organizzazione eventi, pubblicita` e servizi per trasferta";5;Organizzazione e partecipazione a manifestazioni e convegni;08-04-2019;
460;1;0;"170,55";"370,60";POSTE ITALIANE SPA - PROVENTI POLO LOGISTICO;Z6F2648DBC;SALDO Fatt.n. 8719069691  del 14/03/2019 SPESE SPEDIZIONE  - FEBBRAIO 2019;08-04-2019;34;3;539;1;Spese correnti;3;Acquisto di beni e servizi;2;Acquisto di servizi;16;Servizi amministrativi;2;Spese postali;08-04-2019;
460;2;0;"200,05";"370,60";POSTE ITALIANE SPA - PROVENTI POLO LOGISTICO;Z6F2648DBC;SALDO Fatt.n. 8719069690  del 14/03/2019 SPESE SPEDIZIONE - GENNAIO 2019;08-04-2019;34;3;539;1;Spese correnti;3;Acquisto di beni e servizi;2;Acquisto di servizi;16;Servizi amministrativi;2;Spese postali;08-04-2019;
461;1;0;"1.156,56";"1.156,56";UNICOOPER SERVIZI S.C.R.L.;ZBD22C3B65;SALDO Fatt.n. 125/01  del 30/09/2018 SERVIZIO PULIZIA EDIFICI COMUNALI - SETTEMBRE 2018;08-04-2019;178;1;143;1;Spese correnti;3;Acquisto di beni e servizi;2;Acquisto di servizi;13;Servizi ausiliari per il funzionamento dell'ente;2;Servizi di pulizia e lavanderia;08-04-2019;
462;1;0;"31.254,00";"31.254,00";A.T.E.R. - AZIENDA TERRIT. EDILIZIA RESIDENZIALE; ;ACCONTO Fatt.n. G12/2019  del 21/02/2019 CANONE AFFITTO CENTRO POLIVALENTE - 1 SEMESTRE 2019;08-04-2019;561;0;123;1;Spese correnti;3;Acquisto di beni e servizi;2;Acquisto di servizi;7;Utilizzo di beni di terzi;1;Locazione di beni immobili;08-04-2019;
463;1;0;"1.040,90";"4.604,54";UNICOOPER SERVIZI S.C.R.L.;ZBD22C3B65;SALDO Fatt.n. 154/01  del 30/11/2018 PULIZIE CENTRO POLIVALENTE - NOVEMBRE 2018;08-04-2019;34;2;565;1;Spese correnti;3;Acquisto di beni e servizi;2;Acquisto di servizi;13;Servizi ausiliari per il funzionamento dell'ente;1;"Servizi di sorveglianza, custodia e accoglienza";08-04-2019;
463;2;0;"1.781,82";"4.604,54";UNICOOPER SERVIZI S.C.R.L.;ZBD22C3B65;SALDO Fatt.n. 128/01  del 31/10/2018 PULIZIA UFFICI COMUNALI - OTTOBRE 2018;08-04-2019;34;2;565;1;Spese correnti;3;Acquisto di beni e servizi;2;Acquisto di servizi;13;Servizi ausiliari per il funzionamento dell'ente;1;"Servizi di sorveglianza, custodia e accoglienza";08-04-2019;
463;3;0;"1.781,82";"4.604,54";UNICOOPER SERVIZI S.C.R.L.;ZBD22C3B65;SALDO Fatt.n. 157/01  del 28/12/2018 PULIZIE EDIFICI COMUNALI - DICEMBRE 2018;08-04-2019;34;2;565;1;Spese correnti;3;Acquisto di beni e servizi;2;Acquisto di servizi;13;Servizi ausiliari per il funzionamento dell'ente;1;"Servizi di sorveglianza, custodia e accoglienza";08-04-2019;
464;1;0;"1.330,04";"1.330,04";UNICOOPER SERVIZI S.C.R.L.;ZBD22C3B65;SALDO Fatt.n. 141/01  del 31/10/2018 PULIZIA CENTRO POLIVALENTE - OTTOBRE 2018;08-04-2019;34;1;564;1;Spese correnti;3;Acquisto di beni e servizi;2;Acquisto di servizi;9;Manutenzione ordinaria e riparazioni;8;Manutenzione ordinaria e riparazioni di beni immobili;08-04-2019;
465;1;0;"3.965,96";"3.965,96";ASSOCIAZIONE IL CICLAMINO; ;LIQUIDAZIONE QUOTA DEL 5 PER MILLE - ANNO D'IMPOSTA 2015 - ESERCIZIO FINANZIARIO 2016.;10-04-2019;506;1;623;1;Spese correnti;4;Trasferimenti correnti;1;Trasferimenti correnti a Amministrazioni Pubbliche;4;Trasferimenti correnti a organismi interni e/o unità locali della amministrazione;1;Trasferimenti correnti a organismi interni e/o unità locali della amministrazione;10-04-2019;
468;1;0;"5,29";"5,29";PERSONALE DIPENDENTE - SEDE; ;STIPENDI MESE DI: APRILE 19;11-04-2019;18;0;21;1;Spese correnti;3;Acquisto di beni e servizi;2;Acquisto di servizi;2;"Organizzazione eventi, pubblicita` e servizi per trasferta";1;Rimborso per viaggio e trasloco;11-04-2019;
469;1;0;"21,16";"21,16";PERSONALE DIPENDENTE - SEDE; ;STIPENDI MESE DI: APRILE 19;11-04-2019;20;0;29;1;Spese correnti;3;Acquisto di beni e servizi;2;Acquisto di servizi;2;"Organizzazione eventi, pubblicita` e servizi per trasferta";1;Rimborso per viaggio e trasloco;11-04-2019;
473;1;0;"19,00";"19,00";PERSONALE DIPENDENTE - SEDE; ;STIPENDI MESE DI: APRILE 19;11-04-2019;58;0;22;1;Spese correnti;3;Acquisto di beni e servizi;2;Acquisto di servizi;2;"Organizzazione eventi, pubblicita` e servizi per trasferta";1;Rimborso per viaggio e trasloco;11-04-2019;
482;1;0;"21,54";"21,54";PERSONALE DIPENDENTE - SEDE; ;STIPENDI MESE DI: APRILE 19;11-04-2019;83;0;24;1;Spese correnti;3;Acquisto di beni e servizi;2;Acquisto di servizi;2;"Organizzazione eventi, pubblicita` e servizi per trasferta";2;Indennità di missione e di trasferta;11-04-2019;
498;1;0;"5.333,71";"5.333,71";AMMINISTRATORI COMUNALI; ;STIPENDI MESE DI: APRILE 19;11-04-2019;2;0;6;1;Spese correnti;3;Acquisto di beni e servizi;2;Acquisto di servizi;1;Organi e incarichi istituzionali dell'amministrazione;1;Organi istituzionali dell'amministrazione - Indennità;11-04-2019;
501;1;0;"2.158,32";"4.076,85";OMESSO NOMINATIVO NEL RISPETTO DELLA NORMATIVA SULLA PROTEZIONE DATI PERSONALI; ;LIQUIDAZIONE CONTRIBUTO REGIONALE A FAVORE DI NUCLEI FAMILIARI CON FIGLI RIMASTI ORFANI DI UNO O ENTRAMBI I GENITORI - BANDO 2018. ART. 59 L.R. N. 30/2016. DGR N. 864/2018.;15-04-2019;502;0;181;1;Spese correnti;4;Trasferimenti correnti;2;Trasferimenti correnti a Famiglie;2;Interventi assistenziali;999;Altri assegni e sussidi assistenziali;15-04-2019;
501;2;0;"1.918,53";"4.076,85";OMESSO NOMINATIVO NEL RISPETTO DELLA NORMATIVA SULLA PROTEZIONE DATI PERSONALI; ;LIQUIDAZIONE CONTRIBUTO REGIONALE A FAVORE DI NUCLEI FAMILIARI CON FIGLI RIMASTI ORFANI DI UNO O ENTRAMBI I GENITORI - BANDO 2018. ART. 59 L.R. N. 30/2016. DGR N. 864/2018.;15-04-2019;502;0;181;1;Spese correnti;4;Trasferimenti correnti;2;Trasferimenti correnti a Famiglie;2;Interventi assistenziali;999;Altri assegni e sussidi assistenziali;15-04-2019;
502;1;0;"500,00";"500,00";I.P.A.TERRE ASOLO E M. GRAPPA C/O FONDAZIONE LA FORNACE; ;LIQUIDAZIONE ALL'INTESA PROGRAMMATICA D'AREA TERRE DI ASOLO E MONTE GRAPPA DELLA QUOTA PARTE PER L'ADESIONE AL PROGETTO "ADRIATICA IONICA RACE" ANNO 2018.;15-04-2019;334;0;176;1;Spese correnti;4;Trasferimenti correnti;1;Trasferimenti correnti a Amministrazioni Pubbliche;4;Trasferimenti correnti a organismi interni e/o unità locali della amministrazione;1;Trasferimenti correnti a organismi interni e/o unità locali della amministrazione;15-04-2019;
503;1;0;"1.950,00";"1.950,00";O.D.V. PROTEZIONE CIVILE DI SAN ZENONE DEGLI EZZELINI; ;LIQUIDAZIONE DEL SECONDO ACCONTO DEL CONTRIBUTO AL GRUPPO DI PROTEZIONE CIVILE DI SAN ZENONE DEGLI EZZELINI - ANNO 2019.;15-04-2019;382;1;139;1;Spese correnti;4;Trasferimenti correnti;1;Trasferimenti correnti a Amministrazioni Pubbliche;4;Trasferimenti correnti a organismi interni e/o unità locali della amministrazione;1;Trasferimenti correnti a organismi interni e/o unità locali della amministrazione;15-04-2019;
504;1;0;"305,00";"305,00";HALLEY VENETO SRL;Z602599F5B;SALDO Fatt.n. 1/190414  del 20/03/2019 SPESE GESTIONE NUOVO APPLICATIVO INFORMATICO;16-04-2019;39;2;434;1;Spese correnti;3;Acquisto di beni e servizi;2;Acquisto di servizi;19;Servizi informatici e di telecomunicazioni;1;Gestione e manutenzione applicazioni;16-04-2019;
505;1;0;"353,80";"353,80";WEB'nGO ITALIA s.r.l.;Z3E271A870;SALDO Fatt.n. 209  del 26/03/2019 SISTEMI INFORMATICI;16-04-2019;39;0;76;1;Spese correnti;3;Acquisto di beni e servizi;2;Acquisto di servizi;19;Servizi informatici e di telecomunicazioni;1;Gestione e manutenzione applicazioni;16-04-2019;
506;1;0;"24,40";"378,20";ASCO TLC S.P.A.;ZCD271B191;SALDO Fatt.n. 09011174  del 31/03/2019 SERVIZI INFORMATICI - MARZO 2019;16-04-2019;235;0;78;1;Spese correnti;3;Acquisto di beni e servizi;2;Acquisto di servizi;5;Utenze e canoni;999;Utenze e canoni per altri servizi n.a.c.;16-04-2019;
506;2;0;"353,80";"378,20";ASCO TLC S.P.A.;ZCD271B191;SALDO Fatt.n. 09011176  del 31/03/2019 SERVIZI INFORMATICI;16-04-2019;235;0;78;1;Spese correnti;3;Acquisto di beni e servizi;2;Acquisto di servizi;5;Utenze e canoni;999;Utenze e canoni per altri servizi n.a.c.;16-04-2019;
507;1;0;"635,20";"635,20";ASCO TLC S.P.A.;ZCD271B191;ACCONTO Fatt.n. 09011175  del 31/03/2019 SERVIZI INFORMATICI;16-04-2019;252;0;79;1;Spese correnti;3;Acquisto di beni e servizi;2;Acquisto di servizi;5;Utenze e canoni;999;Utenze e canoni per altri servizi n.a.c.;16-04-2019;
508;1;0;"2.000,00";"2.000,00";DPS INFORMATICA S.N.C.;ZD1272ADA5;ACCONTO Fatt.n. 918/FE  del 27/03/2019 ACQUISTO P.C. PER UFFICI COMUNALI;16-04-2019;743;3;104;2;Spese in conto capitale;2;Investimenti fissi lordi e acquisto di terreni;1;Beni materiali;6;Macchine per ufficio;1;Macchine per ufficio;16-04-2019;
509;1;0;"326,37";"326,37";DPS INFORMATICA S.N.C.;ZD1272ADA5;SALDO Fatt.n. 918/FE  del 27/03/2019 ACQUISTO P.C. PER UFFICI COMUNALI;16-04-2019;33;0;105;1;Spese correnti;3;Acquisto di beni e servizi;1;Acquisto di beni;2;Altri beni di consumo;5;Accessori per uffici e alloggi;16-04-2019;
510;1;0;"7.637,20";"7.637,20";ACCATRE S.R.L.;ZCB257D4E7;SALDO Fatt.n. 190235/1  del 26/03/2019 SISTEMI INFORMATICI;16-04-2019;39;0;430;1;Spese correnti;3;Acquisto di beni e servizi;2;Acquisto di servizi;19;Servizi informatici e di telecomunicazioni;1;Gestione e manutenzione applicazioni;16-04-2019;
512;1;0;"5.554,53";"5.554,53";CASA DI RIPOSO 'AITA'; ;SALDO Fatt.n. 184/C  del 29/03/2019 FORNITURA PASTI MENSA SCUOLA PRIMARIA MESE MARZO 2019.;16-04-2019;274;1;54;1;Spese correnti;3;Acquisto di beni e servizi;2;Acquisto di servizi;15;Contratti di servizio pubblico;6;Contratti di servizio per le mense scolastiche;16-04-2019;
513;1;0;"377,60";"1.332,60";COOPERATIVA AGRICOLA S.ZENONE S.C.R.L.;Z792647209;SALDO Fatt.n. 3  del 21/03/2019 MANUTENZIONE ORDINARIA STRADE COMUNALI;16-04-2019;591;1;528;1;Spese correnti;3;Acquisto di beni e servizi;2;Acquisto di servizi;9;Manutenzione ordinaria e riparazioni;12;Manutenzione ordinaria e riparazioni di terreni e beni materiali non prodotti;16-04-2019;
513;2;0;"955,00";"1.332,60";COOPERATIVA AGRICOLA S.ZENONE S.C.R.L.;Z792647209;SALDO Fatt.n. 4  del 21/03/2019 MANUTENZIONE ORDINARIA STRADE COMUNALI;16-04-2019;591;1;528;1;Spese correnti;3;Acquisto di beni e servizi;2;Acquisto di servizi;9;Manutenzione ordinaria e riparazioni;12;Manutenzione ordinaria e riparazioni di terreni e beni materiali non prodotti;16-04-2019;
514;1;0;"424,00";"424,00";FERRONATO S.R.L.;Z7C26AD935;ACCONTO Fatt.n. P1  del 31/03/2019 FORNITURA MATERIALI PER MANUTENZ. IMPIANTI SPORTIVI;16-04-2019;530;1;609;1;Spese correnti;3;Acquisto di beni e servizi;2;Acquisto di servizi;9;Manutenzione ordinaria e riparazioni;5;Manutenzione ordinaria e riparazioni di attrezzature;16-04-2019;
515;1;0;"18,57";"18,57";FERRONATO S.R.L.;Z7C26AD935;ACCONTO Fatt.n. P1  del 31/03/2019 FORNITURA MATERIALI PER MANUTENZ. IMPIANTI SPORTIVI;16-04-2019;531;0;610;1;Spese correnti;3;Acquisto di beni e servizi;1;Acquisto di beni;2;Altri beni di consumo;999;Altri beni e materiali di consumo n.a.c.;16-04-2019;
516;1;0;"1.373,74";"1.373,74";FERRONATO S.R.L.;Z7C26AD935;ACCONTO Fatt.n. P1  del 31/03/2019 FORNITURA MATERIALI PER MANUTENZ. IMPIANTI SPORTIVI;16-04-2019;532;0;611;1;Spese correnti;3;Acquisto di beni e servizi;2;Acquisto di servizi;9;Manutenzione ordinaria e riparazioni;11;Manutenzione ordinaria e riparazioni di altri beni materiali;16-04-2019;
517;1;0;"103,02";"103,02";FERRONATO S.R.L.;Z7C26AD935;ACCONTO Fatt.n. P1  del 31/03/2019 FORNITURA MATERIALI PER MANUTENZ. IMPIANTI SPORTIVI;16-04-2019;252;1;612;1;Spese correnti;3;Acquisto di beni e servizi;2;Acquisto di servizi;9;Manutenzione ordinaria e riparazioni;4;Manutenzione ordinaria e riparazioni di impianti e macchinari;16-04-2019;
518;1;0;"732,65";"732,65";FERRONATO S.R.L.;Z7C26AD935;SALDO Fatt.n. P1  del 31/03/2019 FORNITURA MATERIALI PER MANUTENZ. IMPIANTI SPORTIVI;16-04-2019;531;0;61;1;Spese correnti;3;Acquisto di beni e servizi;1;Acquisto di beni;2;Altri beni di consumo;999;Altri beni e materiali di consumo n.a.c.;16-04-2019;
519;1;0;"107,53";"107,53";LA IDROFERRAMENTA SRL;Z192700D74;ACCONTO Fatt.n. 28/PA  del 30/03/2019 FORNITURA MATERIALE DA FERRAMENTA;16-04-2019;235;1;59;1;Spese correnti;3;Acquisto di beni e servizi;2;Acquisto di servizi;9;Manutenzione ordinaria e riparazioni;8;Manutenzione ordinaria e riparazioni di beni immobili;16-04-2019;
520;1;0;"149,84";"149,84";LA IDROFERRAMENTA SRL;Z192700D74;SALDO Fatt.n. 28/PA  del 30/03/2019 FORNITURA MATERIALE DA FERRAMENTA;16-04-2019;591;0;58;1;Spese correnti;3;Acquisto di beni e servizi;1;Acquisto di beni;2;Altri beni di consumo;999;Altri beni e materiali di consumo n.a.c.;16-04-2019;
521;1;0;"199,96";"199,96";OMESSO NOMINATIVO NEL RISPETTO DELLA NORMATIVA SULLA PROTEZIONE DATI PERSONALI;Z6127D73E9;SALDO Fatt.n. 000339  del 04/04/2019 ADESIONE AL FESTIVAL "EMOZIONI VENETE 2019";16-04-2019;3;0;165;1;Spese correnti;3;Acquisto di beni e servizi;2;Acquisto di servizi;2;"Organizzazione eventi, pubblicita` e servizi per trasferta";5;Organizzazione e partecipazione a manifestazioni e convegni;16-04-2019;
522;1;0;"1.029,68";"1.029,68";OLIVETTI S.P.A.;ZC92648F71;ACCONTO Fatt.n. A20020191000012956  del 03/04/2019 SERVIZI INFORMATICI;16-04-2019;252;0;509;1;Spese correnti;3;Acquisto di beni e servizi;2;Acquisto di servizi;5;Utenze e canoni;999;Utenze e canoni per altri servizi n.a.c.;16-04-2019;
523;1;0;"278,60";"278,60";OLIVETTI S.P.A.;ZC92648F71;SALDO Fatt.n. A20020191000012956  del 03/04/2019 SERVIZI INFORMATICI;16-04-2019;235;0;510;1;Spese correnti;3;Acquisto di beni e servizi;2;Acquisto di servizi;5;Utenze e canoni;999;Utenze e canoni per altri servizi n.a.c.;16-04-2019;
524;1;0;"1.699,00";"1.699,00";CASA DI RIPOSO 'AITA'; ;SALDO Fatt.n. 122/B  del 31/03/2019 SPESE PER PERSONA BISOGNOSA L.V. - MARZO 2019;16-04-2019;560;0;31;1;Spese correnti;3;Acquisto di beni e servizi;2;Acquisto di servizi;15;Contratti di servizio pubblico;8;Contratti di servizio di assistenza sociale residenziale e semiresidenziale;16-04-2019;
525;1;0;"318,42";"318,42";PROMETEO S.R.L.;Z4927C860D;SALDO Fatt.n. 5/2019/PA  del 02/04/2019 AUMENTO DELLA BANDA INTERNET PER SERVIZI COMUNALI;16-04-2019;34;0;164;1;Spese correnti;3;Acquisto di beni e servizi;2;Acquisto di servizi;5;Utenze e canoni;999;Utenze e canoni per altri servizi n.a.c.;16-04-2019;
526;1;0;"1.869,30";"1.869,30";OPERE PIE D'ONIGO; ;SALDO Fatt.n. 92/2  del 31/03/2019 SPESA RETTE PER ANZIANI;16-04-2019;560;0;32;1;Spese correnti;3;Acquisto di beni e servizi;2;Acquisto di servizi;15;Contratti di servizio pubblico;8;Contratti di servizio di assistenza sociale residenziale e semiresidenziale;16-04-2019;
527;1;0;"500,00";"500,00";COOPERATIVA AGRICOLA S.ZENONE S.C.R.L.;Z792647209;ACCONTO Fatt.n. 3  del 21/03/2019 MANUTENZIONE ORDINARIA STRADE COMUNALI;16-04-2019;510;3;527;1;Spese correnti;3;Acquisto di beni e servizi;2;Acquisto di servizi;9;Manutenzione ordinaria e riparazioni;12;Manutenzione ordinaria e riparazioni di terreni e beni materiali non prodotti;16-04-2019;
528;1;0;"630,05";"630,05";COOPERATIVA AGRICOLA S.ZENONE S.C.R.L.;Z792647209;ACCONTO Fatt.n. 3  del 21/03/2019 MANUTENZIONE ORDINARIA STRADE COMUNALI;16-04-2019;510;1;526;1;Spese correnti;3;Acquisto di beni e servizi;2;Acquisto di servizi;99;Altri servizi;999;Altri servizi diversi n.a.c.;16-04-2019;
529;1;0;"7.297,35";"7.297,35";COOPERATIVA AGRICOLA S.ZENONE S.C.R.L.;Z792647209;SALDO Fatt.n. 3  del 21/03/2019 MANUTENZIONE ORDINARIA STRADE COMUNALI;16-04-2019;1007;0;525;2;Spese in conto capitale;2;Investimenti fissi lordi e acquisto di terreni;1;Beni materiali;9;Beni immobili;12;Infrastrutture stradali;16-04-2019;
530;1;0;"534,80";"534,80";ENEL ENERGIA S.P.A.;7134285639;SALDO Fatt.n. 003020389835  del 05/04/2019 ENEL MUNICIPIO - MARZO 2019;16-04-2019;34;0;111;1;Spese correnti;3;Acquisto di beni e servizi;2;Acquisto di servizi;5;Utenze e canoni;4;Energia elettrica;16-04-2019;
531;1;0;"94,84";"94,84";ENEL ENERGIA S.P.A.;7134285639;SALDO Fatt.n. 003020389822  del 05/04/2019 ENEL  MAGAZZINO COMUNALE - MARZO 2019;16-04-2019;71;0;112;1;Spese correnti;3;Acquisto di beni e servizi;2;Acquisto di servizi;5;Utenze e canoni;4;Energia elettrica;16-04-2019;
532;1;0;"354,50";"354,50";ENEL ENERGIA S.P.A.;7134285639;SALDO Fatt.n. 003020389817  del 05/04/2019 ENEL VILLA RUBELLI - MARZO 2019;16-04-2019;310;0;116;1;Spese correnti;3;Acquisto di beni e servizi;2;Acquisto di servizi;5;Utenze e canoni;4;Energia elettrica;16-04-2019;
533;1;0;"732,00";"732,00";VARNERIN S.R.L.;Z3027359F4;SALDO Fatt.n. 31/001  del 15/03/2019 LAVORI DI BONIFICA MATERIALE;17-04-2019;510;1;86;1;Spese correnti;3;Acquisto di beni e servizi;2;Acquisto di servizi;99;Altri servizi;999;Altri servizi diversi n.a.c.;17-04-2019;
534;1;0;"30,00";"30,00";BERTONCELLO PAOLA ECONOMO COMUNALE; ;Rimborso bolletta N. 7 del  25-01-19 Acquisto omaggio floreale per conto del Sindaco in occasione dei festeggiamenti per i cent'anni di una concittadina.;17-04-2019;3;1;47;1;Spese correnti;3;Acquisto di beni e servizi;1;Acquisto di beni;2;Altri beni di consumo;9;Beni per attività di rappresentanza;17-04-2019;
535;1;0;"36,00";"36,00";BERTONCELLO PAOLA ECONOMO COMUNALE; ;Rimborso bolletta N.     8 del  31-01-19 Acquisto n. 8 rose per matrimonici civili.;17-04-2019;3;1;55;1;Spese correnti;3;Acquisto di beni e servizi;1;Acquisto di beni;2;Altri beni di consumo;9;Beni per attività di rappresentanza;17-04-2019;
536;1;0;"32,90";"32,90";BERTONCELLO PAOLA ECONOMO COMUNALE; ;Rimborso bolletta N.     1 del  25-01-19 Acquisto scheda parallela con connettori PCI express per computer ufficio segreteria.;17-04-2019;33;0;41;1;Spese correnti;3;Acquisto di beni e servizi;1;Acquisto di beni;2;Altri beni di consumo;6;Materiale informatico;17-04-2019;
537;1;0;"59,70";"59,70";BERTONCELLO PAOLA ECONOMO COMUNALE; ;Rimborso bolletta N.    10 del  11-03-19 Rimborso bolletta acquisto n. 3 adattatori VGA/display port per i computer uffici.;17-04-2019;33;0;130;1;Spese correnti;3;Acquisto di beni e servizi;1;Acquisto di beni;2;Altri beni di consumo;6;Materiale informatico;17-04-2019;
538;1;0;"12,50";"12,50";BERTONCELLO PAOLA ECONOMO COMUNALE; ;Rimborso bolletta N.     5 del  25-01-19 Spedizione n. 1 raccomandata 1 (prot. n. 452 del 14/01/2019) per avviso di mobilia' agente di Polizia Locale.;17-04-2019;37;0;45;1;Spese correnti;3;Acquisto di beni e servizi;1;Acquisto di beni;2;Altri beni di consumo;1;"Carta, cancelleria e stampati";17-04-2019;
539;1;0;"33,80";"33,80";BERTONCELLO PAOLA ECONOMO COMUNALE; ;Rimborso bolletta N.     6 del  25-01-19 Acquisto bolli per spedizione di missive ufficio protocollo.;17-04-2019;37;0;46;1;Spese correnti;3;Acquisto di beni e servizi;1;Acquisto di beni;2;Altri beni di consumo;1;"Carta, cancelleria e stampati";17-04-2019;
540;1;0;"9,90";"9,90";BERTONCELLO PAOLA ECONOMO COMUNALE; ;Rimborso bolletta N.     9 del  28-02-19 Rimborso bolletta per spedizione n. 1 raccomandata A1 per ufficio segreteria (prot. n. 2585 del 27/02/2019) per avviso di mobilia' ufficio finanziario.;17-04-2019;37;0;103;1;Spese correnti;3;Acquisto di beni e servizi;1;Acquisto di beni;2;Altri beni di consumo;1;"Carta, cancelleria e stampati";17-04-2019;
541;1;0;"6,50";"6,50";BERTONCELLO PAOLA ECONOMO COMUNALE; ;Rimborso bolletta N.     2 del  25-01-19 Acquisto di ferramenta varia per trasloco da scuola di Liedolo a quella del Capoluogo.;17-04-2019;235;1;42;1;Spese correnti;3;Acquisto di beni e servizi;2;Acquisto di servizi;9;Manutenzione ordinaria e riparazioni;5;Manutenzione ordinaria e riparazioni di attrezzature;17-04-2019;
542;1;0;"15,00";"15,00";BERTONCELLO PAOLA ECONOMO COMUNALE; ;Rimborso bolletta N.     3 del  25-01-19 Acquisto di ferramenta varia per trasloco da scuola di Liedolo a quella del Capoluogo.;17-04-2019;235;1;43;1;Spese correnti;3;Acquisto di beni e servizi;2;Acquisto di servizi;9;Manutenzione ordinaria e riparazioni;5;Manutenzione ordinaria e riparazioni di attrezzature;17-04-2019;
543;1;0;"13,20";"13,20";BERTONCELLO PAOLA ECONOMO COMUNALE; ;Rimborso bolletta N.     4 del  25-01-19 Acquisto di ferramenta varia per trasloco da scuola di Liedolo a quella del Capoluogo.;17-04-2019;235;1;44;1;Spese correnti;3;Acquisto di beni e servizi;2;Acquisto di servizi;9;Manutenzione ordinaria e riparazioni;5;Manutenzione ordinaria e riparazioni di attrezzature;17-04-2019;
544;1;0;"304,20";"304,20";ASCO TLC S.P.A.;ZCD271B191;SALDO Fatt.n. 09011175  del 31/03/2019 SERVIZI INFORMATICI;17-04-2019;235;0;78;1;Spese correnti;3;Acquisto di beni e servizi;2;Acquisto di servizi;5;Utenze e canoni;999;Utenze e canoni per altri servizi n.a.c.;17-04-2019;
545;1;0;"2.340,00";"2.340,00";ARTUSO PAOLA;Z04265CFE7;SALDO Fatt.n. 3PA  del 09/04/2019 TRADUZIONE DEI CONTENUTI PER MUSEO;17-04-2019;785;0;532;2;Spese in conto capitale;2;Investimenti fissi lordi e acquisto di terreni;1;Beni materiali;10;"Beni immobili di valore culturale, storico ed artistico";8;"Musei, teatri e biblioteche di valore culturale, storico ed artistico";17-04-2019;
546;1;0;"400,00";"400,00";ARTUSO PAOLA;Z04265CFE7;SALDO Fatt.n. 4PA  del 09/04/2019 INCARICO DI TRADUZIONE TESTI PER MUSEO;17-04-2019;333;2;647;1;Spese correnti;3;Acquisto di beni e servizi;2;Acquisto di servizi;11;Prestazioni professionali e specialistiche;1;Interpretariato e traduzioni;17-04-2019;
547;1;0;"122,25";"122,25";OMESSO NOMINATIVO NEL RISPETTO DELLA NORMATIVA SULLA PROTEZIONE DATI PERSONALI; ;FATT. N. 134/B DEL 08/04/2019  CASA DI RIPOSO AITA PASTI MESE DI MARZO 2019.;17-04-2019;576;0;110;1;Spese correnti;4;Trasferimenti correnti;2;Trasferimenti correnti a Famiglie;2;Interventi assistenziali;999;Altri assegni e sussidi assistenziali;17-04-2019;
548;1;0;"327,00";"327,00";OMESSO NOMINATIVO NEL RISPETTO DELLA NORMATIVA SULLA PROTEZIONE DATI PERSONALI; ;FATT. N. 139/B DEL 08/04/2019 CASA DI RIPOSO AITA PASTI MESE MARZO 2019.;17-04-2019;576;0;460;1;Spese correnti;4;Trasferimenti correnti;2;Trasferimenti correnti a Famiglie;2;Interventi assistenziali;999;Altri assegni e sussidi assistenziali;17-04-2019;
549;1;0;"6.714,00";"6.714,00";I.P.A.TERRE ASOLO E M. GRAPPA C/O FONDAZIONE LA FORNACE; ;IMPEGNO E LIQUIDAZIONE DELLA QUOTA DI ADESIONE ALL'INTESA PROGRAMMATICA D'AREA TERRE DI ASOLO E MONTE GRAPPA (IPA). ANNO 2019.;19-04-2019;511;0;187;1;Spese correnti;4;Trasferimenti correnti;1;Trasferimenti correnti a Amministrazioni Pubbliche;2;Trasferimenti correnti a Amministrazioni Locali;3;Trasferimenti correnti a Comuni;19-04-2019;
550;1;0;"1.200,00";"1.200,00";PARROCCHIA BEATA VERGINE DEL MONTE CARMELO; ;"PROGETTO IN COLLABORAZIONE CON IL CENTRO DI ASCOLTO CARITAS - VICARIATO DI ASOLO, A SOSTEGNO DI UN NUCLEO IN GRAVE DISAGIO. PERIODO: MAGGIO - DICEMBRE 2019.";19-04-2019;574;0;185;1;Spese correnti;4;Trasferimenti correnti;1;Trasferimenti correnti a Amministrazioni Pubbliche;4;Trasferimenti correnti a organismi interni e/o unità locali della amministrazione;1;Trasferimenti correnti a organismi interni e/o unità locali della amministrazione;19-04-2019;
552;1;0;"-24.798,21";"20.170,08";STUDIO NADALIN S.R.L.;Z432693FB2;SALDO Fatt.n. 4/001  del 18/04/2019 NOTA DI CREDITO RIF. FT N. 1/001 DEL 24/02/2019;23-04-2019;1009;0;566;2;Spese in conto capitale;2;Investimenti fissi lordi e acquisto di terreni;3;Beni immateriali;5;Incarichi professionali per la realizzazione di investimenti;1;Incarichi professionali per la realizzazione di investimenti;23-04-2019;
552;2;0;"20.170,08";"20.170,08";STUDIO NADALIN S.R.L.;Z432693FB2;ACCONTO Fatt.n. 5/001  del 18/04/2019 INCARICO PROFESSIONALE;23-04-2019;1009;0;566;2;Spese in conto capitale;2;Investimenti fissi lordi e acquisto di terreni;3;Beni immateriali;5;Incarichi professionali per la realizzazione di investimenti;1;Incarichi professionali per la realizzazione di investimenti;23-04-2019;
552;3;0;"24.798,21";"20.170,08";STUDIO NADALIN S.R.L.;Z432693FB2;SALDO Fatt.n. 1/001  del 24/02/2019 INCARICO PROF.LE PROGETTAZIONE SICUREZZA IMPIANTI PUBBLICA ILLUMINAZIONE;23-04-2019;1009;0;566;2;Spese in conto capitale;2;Investimenti fissi lordi e acquisto di terreni;3;Beni immateriali;5;Incarichi professionali per la realizzazione di investimenti;1;Incarichi professionali per la realizzazione di investimenti;23-04-2019;
553;1;0;"2.596,42";"2.596,42";STUDIO NADALIN S.R.L.;Z432693FB2;ACCONTO Fatt.n. 5/001  del 18/04/2019 INCARICO PROFESSIONALE;23-04-2019;64;1;568;1;Spese correnti;3;Acquisto di beni e servizi;2;Acquisto di servizi;11;Prestazioni professionali e specialistiche;999;Altre prestazioni professionali e specialistiche n.a.c.;23-04-2019;
554;1;0;"2.031,71";"2.031,71";STUDIO NADALIN S.R.L.;Z432693FB2;SALDO Fatt.n. 5/001  del 18/04/2019 INCARICO PROFESSIONALE;23-04-2019;64;1;567;1;Spese correnti;3;Acquisto di beni e servizi;2;Acquisto di servizi;11;Prestazioni professionali e specialistiche;999;Altre prestazioni professionali e specialistiche n.a.c.;23-04-2019;
555;1;0;"-0,22";"3.084,65";ENEL ENERGIA S.P.A.;7134285639;SALDO Fatt.n. 003020389837  del 05/04/2019 ENEL - MARZO 2019;26-04-2019;600;0;120;1;Spese correnti;3;Acquisto di beni e servizi;2;Acquisto di servizi;5;Utenze e canoni;4;Energia elettrica;26-04-2019;
555;2;0;"23,12";"3.084,65";ENEL ENERGIA S.P.A.;7134285639;SALDO Fatt.n. 003020389849  del 05/04/2019 ENEL - MARZO 2019;26-04-2019;600;0;120;1;Spese correnti;3;Acquisto di beni e servizi;2;Acquisto di servizi;5;Utenze e canoni;4;Energia elettrica;26-04-2019;
555;3;0;"27,79";"3.084,65";ENEL ENERGIA S.P.A.;7134285639;SALDO Fatt.n. 003020389851  del 05/04/2019 ENEL - MARZO 2019;26-04-2019;600;0;120;1;Spese correnti;3;Acquisto di beni e servizi;2;Acquisto di servizi;5;Utenze e canoni;4;Energia elettrica;26-04-2019;
555;4;0;"57,47";"3.084,65";ENEL ENERGIA S.P.A.;7134285639;SALDO Fatt.n. 003020389812  del 05/04/2019 ENEL - MARZO 2019;26-04-2019;600;0;120;1;Spese correnti;3;Acquisto di beni e servizi;2;Acquisto di servizi;5;Utenze e canoni;4;Energia elettrica;26-04-2019;
555;5;0;"122,26";"3.084,65";ENEL ENERGIA S.P.A.;7134285639;SALDO Fatt.n. 003020389844  del 05/04/2019 ENEL - MARZO 2019;26-04-2019;600;0;120;1;Spese correnti;3;Acquisto di beni e servizi;2;Acquisto di servizi;5;Utenze e canoni;4;Energia elettrica;26-04-2019;
555;6;0;"150,69";"3.084,65";ENEL ENERGIA S.P.A.;7134285639;SALDO Fatt.n. 003020389832  del 05/04/2019 ENEL - MARZO 2019;26-04-2019;600;0;120;1;Spese correnti;3;Acquisto di beni e servizi;2;Acquisto di servizi;5;Utenze e canoni;4;Energia elettrica;26-04-2019;
555;7;0;"188,53";"3.084,65";ENEL ENERGIA S.P.A.;7134285639;SALDO Fatt.n. 003020389806  del 05/04/2019 ENEL - MARZO 2019;26-04-2019;600;0;120;1;Spese correnti;3;Acquisto di beni e servizi;2;Acquisto di servizi;5;Utenze e canoni;4;Energia elettrica;26-04-2019;
555;8;0;"236,08";"3.084,65";ENEL ENERGIA S.P.A.;7134285639;SALDO Fatt.n. 003020389827  del 05/04/2019 ENEL - MARZO 2019;26-04-2019;600;0;120;1;Spese correnti;3;Acquisto di beni e servizi;2;Acquisto di servizi;5;Utenze e canoni;4;Energia elettrica;26-04-2019;
555;9;0;"259,63";"3.084,65";ENEL ENERGIA S.P.A.;7134285639;SALDO Fatt.n. 003020389840  del 05/04/2019 ENEL - MARZO 2019;26-04-2019;600;0;120;1;Spese correnti;3;Acquisto di beni e servizi;2;Acquisto di servizi;5;Utenze e canoni;4;Energia elettrica;26-04-2019;
555;10;0;"299,30";"3.084,65";ENEL ENERGIA S.P.A.;7134285639;SALDO Fatt.n. 003020389845  del 05/04/2019 ENEL - MARZO 2019;26-04-2019;600;0;120;1;Spese correnti;3;Acquisto di beni e servizi;2;Acquisto di servizi;5;Utenze e canoni;4;Energia elettrica;26-04-2019;
555;11;0;"661,20";"3.084,65";ENEL ENERGIA S.P.A.;7134285639;SALDO Fatt.n. 003020389815  del 05/04/2019 ENEL - MARZO 2019;26-04-2019;600;0;120;1;Spese correnti;3;Acquisto di beni e servizi;2;Acquisto di servizi;5;Utenze e canoni;4;Energia elettrica;26-04-2019;
555;12;0;"1.058,80";"3.084,65";ENEL ENERGIA S.P.A.;7134285639;SALDO Fatt.n. 003020389807  del 05/04/2019 ENEL - MARZO 2019;26-04-2019;600;0;120;1;Spese correnti;3;Acquisto di beni e servizi;2;Acquisto di servizi;5;Utenze e canoni;4;Energia elettrica;26-04-2019;
556;1;0;"-5,62";"2.457,47";ENEL ENERGIA S.P.A.;7134285639;SALDO Fatt.n. 003020389803  del 05/04/2019 ENEL :  DIC.-FEB. 2019;26-04-2019;600;0;120;1;Spese correnti;3;Acquisto di beni e servizi;2;Acquisto di servizi;5;Utenze e canoni;4;Energia elettrica;26-04-2019;
556;2;0;"-0,65";"2.457,47";ENEL ENERGIA S.P.A.;7134285639;SALDO Fatt.n. 003020389813  del 05/04/2019 ENEL - MARZO 2019;26-04-2019;600;0;120;1;Spese correnti;3;Acquisto di beni e servizi;2;Acquisto di servizi;5;Utenze e canoni;4;Energia elettrica;26-04-2019;
556;3;0;"-0,45";"2.457,47";ENEL ENERGIA S.P.A.;7134285639;SALDO Fatt.n. 003020389853  del 05/04/2019 ENEL - MARZO 2019;26-04-2019;600;0;120;1;Spese correnti;3;Acquisto di beni e servizi;2;Acquisto di servizi;5;Utenze e canoni;4;Energia elettrica;26-04-2019;
556;4;0;"25,82";"2.457,47";ENEL ENERGIA S.P.A.;7134285639;SALDO Fatt.n. 003020389831  del 05/04/2019 ENEL - MARZO 2019;26-04-2019;600;0;120;1;Spese correnti;3;Acquisto di beni e servizi;2;Acquisto di servizi;5;Utenze e canoni;4;Energia elettrica;26-04-2019;
556;5;0;"39,20";"2.457,47";ENEL ENERGIA S.P.A.;7134285639;SALDO Fatt.n. 003020389819  del 05/04/2019 ENEL - MARZO 2019;26-04-2019;600;0;120;1;Spese correnti;3;Acquisto di beni e servizi;2;Acquisto di servizi;5;Utenze e canoni;4;Energia elettrica;26-04-2019;
556;6;0;"42,68";"2.457,47";ENEL ENERGIA S.P.A.;7134285639;SALDO Fatt.n. 003020389820  del 05/04/2019 ENEL - MARZO 2019;26-04-2019;600;0;120;1;Spese correnti;3;Acquisto di beni e servizi;2;Acquisto di servizi;5;Utenze e canoni;4;Energia elettrica;26-04-2019;
556;7;0;"55,03";"2.457,47";ENEL ENERGIA S.P.A.;7134285639;SALDO Fatt.n. 003020389811  del 05/04/2019 ENEL - MARZO 2019;26-04-2019;600;0;120;1;Spese correnti;3;Acquisto di beni e servizi;2;Acquisto di servizi;5;Utenze e canoni;4;Energia elettrica;26-04-2019;
556;8;0;"60,43";"2.457,47";ENEL ENERGIA S.P.A.;7134285639;SALDO Fatt.n. 003020389824  del 05/04/2019 ENEL - MARZO 2019;26-04-2019;600;0;120;1;Spese correnti;3;Acquisto di beni e servizi;2;Acquisto di servizi;5;Utenze e canoni;4;Energia elettrica;26-04-2019;
556;9;0;"87,97";"2.457,47";ENEL ENERGIA S.P.A.;7134285639;SALDO Fatt.n. 003020389842  del 05/04/2019 ENEL - MARZO 2019;26-04-2019;600;0;120;1;Spese correnti;3;Acquisto di beni e servizi;2;Acquisto di servizi;5;Utenze e canoni;4;Energia elettrica;26-04-2019;
556;10;0;"240,71";"2.457,47";ENEL ENERGIA S.P.A.;7134285639;SALDO Fatt.n. 003020389834  del 05/04/2019 ENEL  - MARZO 2019;26-04-2019;600;0;120;1;Spese correnti;3;Acquisto di beni e servizi;2;Acquisto di servizi;5;Utenze e canoni;4;Energia elettrica;26-04-2019;
556;11;0;"265,11";"2.457,47";ENEL ENERGIA S.P.A.;7134285639;SALDO Fatt.n. 003020389828  del 05/04/2019 ENEL - MARZO 2019;26-04-2019;600;0;120;1;Spese correnti;3;Acquisto di beni e servizi;2;Acquisto di servizi;5;Utenze e canoni;4;Energia elettrica;26-04-2019;
556;12;0;"288,70";"2.457,47";ENEL ENERGIA S.P.A.;7134285639;SALDO Fatt.n. 003020389852  del 05/04/2019 ENEL - MARZO 2019;26-04-2019;600;0;120;1;Spese correnti;3;Acquisto di beni e servizi;2;Acquisto di servizi;5;Utenze e canoni;4;Energia elettrica;26-04-2019;
556;13;0;"316,76";"2.457,47";ENEL ENERGIA S.P.A.;7134285639;SALDO Fatt.n. 003020389818  del 05/04/2019 ENEL - MARZO 2019;26-04-2019;600;0;120;1;Spese correnti;3;Acquisto di beni e servizi;2;Acquisto di servizi;5;Utenze e canoni;4;Energia elettrica;26-04-2019;
556;14;0;"483,72";"2.457,47";ENEL ENERGIA S.P.A.;7134285639;SALDO Fatt.n. 003020389821  del 05/04/2019 ENEL - MARZO 2019;26-04-2019;600;0;120;1;Spese correnti;3;Acquisto di beni e servizi;2;Acquisto di servizi;5;Utenze e canoni;4;Energia elettrica;26-04-2019;
556;15;0;"558,06";"2.457,47";ENEL ENERGIA S.P.A.;7134285639;SALDO Fatt.n. 003020389848  del 05/04/2019 ENEL - MARZO 2019;26-04-2019;600;0;120;1;Spese correnti;3;Acquisto di beni e servizi;2;Acquisto di servizi;5;Utenze e canoni;4;Energia elettrica;26-04-2019;
557;1;0;"-0,54";"1.785,80";ENEL ENERGIA S.P.A.;7134285639;SALDO Fatt.n. 003020389802  del 05/04/2019 ENEL - MARZO 2019;26-04-2019;600;0;120;1;Spese correnti;3;Acquisto di beni e servizi;2;Acquisto di servizi;5;Utenze e canoni;4;Energia elettrica;26-04-2019;
557;2;0;"-0,22";"1.785,80";ENEL ENERGIA S.P.A.;7134285639;SALDO Fatt.n. 003020389838  del 05/04/2019 ENEL - MARZO 2019;26-04-2019;600;0;120;1;Spese correnti;3;Acquisto di beni e servizi;2;Acquisto di servizi;5;Utenze e canoni;4;Energia elettrica;26-04-2019;
557;3;0;"44,79";"1.785,80";ENEL ENERGIA S.P.A.;7134285639;SALDO Fatt.n. 003020389829  del 05/04/2019 ENEL - MARZO 2019;26-04-2019;600;0;120;1;Spese correnti;3;Acquisto di beni e servizi;2;Acquisto di servizi;5;Utenze e canoni;4;Energia elettrica;26-04-2019;
557;4;0;"47,96";"1.785,80";ENEL ENERGIA S.P.A.;7134285639;SALDO Fatt.n. 003020389816  del 05/04/2019 ENEL - MARZO 2019;26-04-2019;600;0;120;1;Spese correnti;3;Acquisto di beni e servizi;2;Acquisto di servizi;5;Utenze e canoni;4;Energia elettrica;26-04-2019;
557;5;0;"73,57";"1.785,80";ENEL ENERGIA S.P.A.;7134285639;SALDO Fatt.n. 003020389839  del 05/04/2019 ENEL - MARZO 2019;26-04-2019;600;0;120;1;Spese correnti;3;Acquisto di beni e servizi;2;Acquisto di servizi;5;Utenze e canoni;4;Energia elettrica;26-04-2019;
557;6;0;"134,30";"1.785,80";ENEL ENERGIA S.P.A.;7134285639;SALDO Fatt.n. 003020389804  del 05/04/2019 ENEL - MARZO 2019;26-04-2019;600;0;120;1;Spese correnti;3;Acquisto di beni e servizi;2;Acquisto di servizi;5;Utenze e canoni;4;Energia elettrica;26-04-2019;
557;7;0;"166,44";"1.785,80";ENEL ENERGIA S.P.A.;7134285639;SALDO Fatt.n. 003020389826  del 05/04/2019 ENEL - MARZO 2019;26-04-2019;600;0;120;1;Spese correnti;3;Acquisto di beni e servizi;2;Acquisto di servizi;5;Utenze e canoni;4;Energia elettrica;26-04-2019;
557;8;0;"206,55";"1.785,80";ENEL ENERGIA S.P.A.;7134285639;SALDO Fatt.n. 003020389823  del 05/04/2019 ENEL - MARZO 2019;26-04-2019;600;0;120;1;Spese correnti;3;Acquisto di beni e servizi;2;Acquisto di servizi;5;Utenze e canoni;4;Energia elettrica;26-04-2019;
557;9;0;"210,01";"1.785,80";ENEL ENERGIA S.P.A.;7134285639;SALDO Fatt.n. 003020389854  del 05/04/2019 ENEL - MARZO 2019;26-04-2019;600;0;120;1;Spese correnti;3;Acquisto di beni e servizi;2;Acquisto di servizi;5;Utenze e canoni;4;Energia elettrica;26-04-2019;
557;10;0;"355,87";"1.785,80";ENEL ENERGIA S.P.A.;7134285639;SALDO Fatt.n. 003020389808  del 05/04/2019 ENEL - MARZO 2019;26-04-2019;600;0;120;1;Spese correnti;3;Acquisto di beni e servizi;2;Acquisto di servizi;5;Utenze e canoni;4;Energia elettrica;26-04-2019;
557;11;0;"547,07";"1.785,80";ENEL ENERGIA S.P.A.;7134285639;SALDO Fatt.n. 003020389809  del 05/04/2019 ENEL - MARZO 2019;26-04-2019;600;0;120;1;Spese correnti;3;Acquisto di beni e servizi;2;Acquisto di servizi;5;Utenze e canoni;4;Energia elettrica;26-04-2019;
558;1;0;"32,23";"500,61";ENEL ENERGIA S.P.A.;7134285639;SALDO Fatt.n. 003020389814  del 05/04/2019 ENEL CIMITERO - MARZO 2019;26-04-2019;413;0;115;1;Spese correnti;3;Acquisto di beni e servizi;2;Acquisto di servizi;5;Utenze e canoni;4;Energia elettrica;26-04-2019;
558;2;0;"53,80";"500,61";ENEL ENERGIA S.P.A.;7134285639;SALDO Fatt.n. 003020389833  del 05/04/2019 ENEL CIMITERO - MARZO 2019;26-04-2019;413;0;115;1;Spese correnti;3;Acquisto di beni e servizi;2;Acquisto di servizi;5;Utenze e canoni;4;Energia elettrica;26-04-2019;
558;3;0;"76,40";"500,61";ENEL ENERGIA S.P.A.;7134285639;SALDO Fatt.n. 003020389805  del 05/04/2019 ENEL CIMITERO - MARZO 2019;26-04-2019;413;0;115;1;Spese correnti;3;Acquisto di beni e servizi;2;Acquisto di servizi;5;Utenze e canoni;4;Energia elettrica;26-04-2019;
558;4;0;"85,66";"500,61";ENEL ENERGIA S.P.A.;7134285639;SALDO Fatt.n. 003020389830  del 05/04/2019 ENEL CIMITERO - MARZO 2019;26-04-2019;413;0;115;1;Spese correnti;3;Acquisto di beni e servizi;2;Acquisto di servizi;5;Utenze e canoni;4;Energia elettrica;26-04-2019;
558;5;0;"252,52";"500,61";ENEL ENERGIA S.P.A.;7134285639;SALDO Fatt.n. 003020389841  del 05/04/2019 ENEL CIMITERO - MARZO 2019;26-04-2019;413;0;115;1;Spese correnti;3;Acquisto di beni e servizi;2;Acquisto di servizi;5;Utenze e canoni;4;Energia elettrica;26-04-2019;
559;1;0;"94,35";"661,48";ENEL ENERGIA S.P.A.;7134285639;SALDO Fatt.n. 003020389847  del 05/04/2019 ENEL CENTRO POLIV. - MARZO 2019;26-04-2019;311;0;117;1;Spese correnti;3;Acquisto di beni e servizi;2;Acquisto di servizi;5;Utenze e canoni;4;Energia elettrica;26-04-2019;
559;2;0;"567,13";"661,48";ENEL ENERGIA S.P.A.;7134285639;SALDO Fatt.n. 003020389846  del 05/04/2019 ENEL CENTRO POLIV. - MARZO 2019;26-04-2019;311;0;117;1;Spese correnti;3;Acquisto di beni e servizi;2;Acquisto di servizi;5;Utenze e canoni;4;Energia elettrica;26-04-2019;
560;1;0;"240,39";"974,78";ENEL ENERGIA S.P.A.;7134285639;SALDO Fatt.n. 003020389836  del 05/04/2019 ENEL IMP. SPORTIVI - MARZO 2019;26-04-2019;530;0;118;1;Spese correnti;3;Acquisto di beni e servizi;2;Acquisto di servizi;5;Utenze e canoni;4;Energia elettrica;26-04-2019;
560;2;0;"734,39";"974,78";ENEL ENERGIA S.P.A.;7134285639;SALDO Fatt.n. 003020389825  del 05/04/2019 ENEL IMP. SPORTIVI - MARZO 2019;26-04-2019;530;0;118;1;Spese correnti;3;Acquisto di beni e servizi;2;Acquisto di servizi;5;Utenze e canoni;4;Energia elettrica;26-04-2019;
561;1;0;"-1.044,49";"323,30";ENEL ENERGIA S.P.A.;7134285639;SALDO Fatt.n. 003005815429  del 15/01/2019 ENEL SCUOLA PRIMARIA - MARZO 2019;26-04-2019;252;0;114;1;Spese correnti;3;Acquisto di beni e servizi;2;Acquisto di servizi;5;Utenze e canoni;4;Energia elettrica;26-04-2019;
561;2;0;"1.367,79";"323,30";ENEL ENERGIA S.P.A.;7134285639;SALDO Fatt.n. 003020389843  del 05/04/2019 ENEL - SCUOLA PRIMARIA MARZO 2019;26-04-2019;252;0;114;1;Spese correnti;3;Acquisto di beni e servizi;2;Acquisto di servizi;5;Utenze e canoni;4;Energia elettrica;26-04-2019;
562;1;0;"157,18";"550,54";ENEL ENERGIA S.P.A.;7134285639;SALDO Fatt.n. 003020389850  del 05/04/2019 ENEL SCUOLA PRIMARIA -  MARZO 2019;26-04-2019;235;0;113;1;Spese correnti;3;Acquisto di beni e servizi;2;Acquisto di servizi;5;Utenze e canoni;4;Energia elettrica;26-04-2019;
562;2;0;"393,36";"550,54";ENEL ENERGIA S.P.A.;7134285639;SALDO Fatt.n. 003020389810  del 05/04/2019 ENEL SCUOLA PRIMARIA - MARZO 2019;26-04-2019;235;0;113;1;Spese correnti;3;Acquisto di beni e servizi;2;Acquisto di servizi;5;Utenze e canoni;4;Energia elettrica;26-04-2019;
563;1;0;"2.421,10";"2.421,10";POSTE ITALIANE SPA - PROVENTI POLO LOGISTICO;Z6F2648DBC;SALDO Fatt.n. 8719126037  del 23/04/2019 SPEDIZIONE CARTOLINE PER SERVIZIO ELETTORALE;29-04-2019;34;3;539;1;Spese correnti;3;Acquisto di beni e servizi;2;Acquisto di servizi;16;Servizi amministrativi;2;Spese postali;29-04-2019;
564;1;0;"1.781,82";"1.781,82";UNICOOPER SERVIZI S.C.R.L.;Z0128215E5;SALDO Fatt.n. 142/01  del 30/11/2018 SPESE PER PULIZIA UFFICI COMUNALI;29-04-2019;34;2;191;1;Spese correnti;3;Acquisto di beni e servizi;2;Acquisto di servizi;13;Servizi ausiliari per il funzionamento dell'ente;2;Servizi di pulizia e lavanderia;29-04-2019;
565;1;0;"42,35";"42,35";SOCIETA' CONTARINA S.P.A.;Z8E282245E;SALDO Fatt.n. 0001986/VET  del 17/12/2018 TARIFFA GESTIONE RIFIUTI URBANI;29-04-2019;463;0;196;1;Spese correnti;3;Acquisto di beni e servizi;2;Acquisto di servizi;15;Contratti di servizio pubblico;4;Contratti di servizio per la raccolta rifiuti;29-04-2019;
569;1;0;"1.782,71";"1.782,71";TESORERIA PROVINCIALE DELLO STATO; ;VERSAMENTO I.V.A. A DEBITO COMMERCIALE RELATIVA AL PRIMO TRIMESTRE 2019 - COD. IVA 614E;02-05-2019;660;0;0;1;Spese correnti;10;Altre spese correnti;3;Versamenti IVA a debito;1;Versamenti IVA a debito per le gestioni commerciali;1;Versamenti IVA a debito per le gestioni commerciali;02-05-2019;
570;1;0;"104,20";"104,20";OMESSO NOMINATIVO NEL RISPETTO DELLA NORMATIVA SULLA PROTEZIONE DATI PERSONALI; ;EROGAZIONE CONTRIBUTO ECONOMICO A SOSTEGNO PERSONA IN CONDIZIONI DI MARGINALITA' SOCIALE.;03-05-2019;576;0;110;1;Spese correnti;4;Trasferimenti correnti;2;Trasferimenti correnti a Famiglie;2;Interventi assistenziali;999;Altri assegni e sussidi assistenziali;03-05-2019;
577;1;0;"180,93";"180,93";SOLUZIONE UFFICIO S.R.L.;ZB127BB3D4;SALDO Fatt.n. 1527/E  del 09/04/2019 ACQUISTO DI UN MONITOR PER BIBLIOTECA COMUNALE;06-05-2019;746;0;152;2;Spese in conto capitale;2;Investimenti fissi lordi e acquisto di terreni;1;Beni materiali;7;Hardware;2;Postazioni di lavoro;06-05-2019;
578;1;0;"515,55";"515,55";UNA CASA PER L'UOMO - SOCIETA' COOPERATIVA SOCIALE;ZA32468D08;SALDO Fatt.n. FE/0000093  del 31/03/2019 ACCOGLIENZA ABITATIVA - PRESTAZIONI SOCIALI;06-05-2019;559;0;334;1;Spese correnti;3;Acquisto di beni e servizi;2;Acquisto di servizi;99;Altri servizi;999;Altri servizi diversi n.a.c.;06-05-2019;
579;1;0;"24,40";"79,30";MyO S.P.A.;Z9227CEF07;SALDO Fatt.n. 2040/190008776  del 12/04/2019 SPESE PER ELEZIONI;06-05-2019;9;2;163;1;Spese correnti;3;Acquisto di beni e servizi;1;Acquisto di beni;2;Altri beni di consumo;10;Beni per consultazioni elettorali;06-05-2019;
579;2;0;"54,90";"79,30";MyO S.P.A.;Z9227CEF07;SALDO Fatt.n. 2040/190007989  del 05/04/2019 SPESE VARIE PER ELEZIONI;06-05-2019;9;2;163;1;Spese correnti;3;Acquisto di beni e servizi;1;Acquisto di beni;2;Altri beni di consumo;10;Beni per consultazioni elettorali;06-05-2019;
580;1;0;"53,08";"53,08";E.N.P.A. ENTE NAZIONALE PROTEZIONE ANIMALI ONLUS;ZA6224846A;SALDO Fatt.n. 614/PA  del 05/04/2019 CUSTODIA E MANTENIMENTO CANI: GENNAIO - FEBBRIAIO 2019;06-05-2019;180;0;385;1;Spese correnti;3;Acquisto di beni e servizi;2;Acquisto di servizi;15;Contratti di servizio pubblico;11;Contratti di servizio per la lotta al randagismo;06-05-2019;
581;1;0;"1.440,00";"1.440,00";NOIGROUP Coop. Soc. a R.L.;Z5F268727B;SALDO Fatt.n. 262  del 31/03/2019 SERVIZIO GESTIONE DELLA BIBLIOTECA ATTIVITA' MARZO 2019;06-05-2019;302;1;553;1;Spese correnti;3;Acquisto di beni e servizi;2;Acquisto di servizi;16;Servizi amministrativi;999;Altre spese per servizi amministrativi;06-05-2019;
582;1;0;"700,00";"700,00";FRATELLI STANGHERLIN SRL;ZE626AD667;ACCONTO Fatt.n. 2/19  del 30/03/2019 AFFIDAMENTO INCARICO POSIZIONAMENTO CASSONE PER CARICO MATERIALI;06-05-2019;413;0;602;1;Spese correnti;3;Acquisto di beni e servizi;2;Acquisto di servizi;5;Utenze e canoni;999;Utenze e canoni per altri servizi n.a.c.;06-05-2019;
583;1;0;"929,92";"929,92";FRATELLI STANGHERLIN SRL;ZE626AD667;SALDO Fatt.n. 2/19  del 30/03/2019 AFFIDAMENTO INCARICO POSIZIONAMENTO CASSONE PER CARICO MATERIALI;06-05-2019;589;0;601;1;Spese correnti;3;Acquisto di beni e servizi;1;Acquisto di beni;2;Altri beni di consumo;999;Altri beni e materiali di consumo n.a.c.;06-05-2019;
584;1;0;"865,71";"865,71";COOPERATIVA SOCIALE EOS;Z6C23650B5;SALDO Fatt.n. 2019240000040  del 31/03/2019 MANUTENZIONE ORDINARIA CIMITERI;06-05-2019;413;1;589;1;Spese correnti;3;Acquisto di beni e servizi;2;Acquisto di servizi;9;Manutenzione ordinaria e riparazioni;12;Manutenzione ordinaria e riparazioni di terreni e beni materiali non prodotti;06-05-2019;
586;1;0;"705,62";"705,62";ALFA ANTINCENDIO S.R.L.;ZE427A4622;SALDO Fatt.n. 46  del 17/04/2019 ACQUISTO DI BENI;06-05-2019;234;0;142;1;Spese correnti;3;Acquisto di beni e servizi;1;Acquisto di beni;2;Altri beni di consumo;7;Altri materiali tecnico-specialistici non sanitari;06-05-2019;
587;1;0;"190,00";"190,00";PUBLIKA S.R.L.;ZDD2778540;SALDO Fatt.n. 843/PA  del 18/04/2019 CORSO DI AGGIORNAMENTO;06-05-2019;52;0;129;1;Spese correnti;3;Acquisto di beni e servizi;2;Acquisto di servizi;4;Acquisto di servizi per formazione e addestramento del personale dell'ente;999;Acquisto di servizi per altre spese per formazione e addestramento n.a.c.;06-05-2019;
588;1;0;"336,72";"336,72";SICURITALIA S.P.A.;Z3827208DE;ACCONTO Fatt.n. 9117002694  del 31/03/2019 SERVIZIO DI TELEVIGILANZA EDIFICI COMUNALI;06-05-2019;252;0;91;1;Spese correnti;3;Acquisto di beni e servizi;2;Acquisto di servizi;5;Utenze e canoni;999;Utenze e canoni per altri servizi n.a.c.;06-05-2019;
589;1;0;"57,34";"57,34";SICURITALIA S.P.A.;Z3827208DE;SALDO Fatt.n. 9117002694  del 31/03/2019 SERVIZIO DI TELEVIGILANZA EDIFICI COMUNALI;06-05-2019;235;0;92;1;Spese correnti;3;Acquisto di beni e servizi;2;Acquisto di servizi;5;Utenze e canoni;999;Utenze e canoni per altri servizi n.a.c.;06-05-2019;
590;1;0;"3,72";"3,72";SICURITALIA S.P.A.;Z3827208DE;ACCONTO Fatt.n. 9117002693  del 31/03/2019 MANUTENZIONE E CANONI ED. COMUNALI;06-05-2019;71;0;89;1;Spese correnti;3;Acquisto di beni e servizi;2;Acquisto di servizi;5;Utenze e canoni;999;Utenze e canoni per altri servizi n.a.c.;06-05-2019;
591;1;0;"97,10";"1.279,28";SICURITALIA S.P.A.;Z3827208DE;SALDO Fatt.n. 9117002693  del 31/03/2019 MANUTENZIONE E CANONI ED. COMUNALI;06-05-2019;235;0;92;1;Spese correnti;3;Acquisto di beni e servizi;2;Acquisto di servizi;5;Utenze e canoni;999;Utenze e canoni per altri servizi n.a.c.;06-05-2019;
591;2;0;"1.182,18";"1.279,28";SICURITALIA S.P.A.;Z3827208DE;SALDO Fatt.n. 9117003195  del 10/04/2019 MANUTENZIONE E CANONI ED. COMUNALI;06-05-2019;235;0;92;1;Spese correnti;3;Acquisto di beni e servizi;2;Acquisto di servizi;5;Utenze e canoni;999;Utenze e canoni per altri servizi n.a.c.;06-05-2019;
592;1;0;"151,28";"9.594,28";BIM PIAVE NUOVE ENERGIE S.R.L.;Z0A2644955;SALDO Fatt.n. 9000451  del 28/02/2019 Servizio di assisitenza c/o Impianti Sportivi;06-05-2019;530;0;200;1;Spese correnti;3;Acquisto di beni e servizi;2;Acquisto di servizi;5;Utenze e canoni;6;Gas;06-05-2019;
592;2;0;"278,16";"9.594,28";BIM PIAVE NUOVE ENERGIE S.R.L.;Z0A2644955;SALDO Fatt.n. 9000448  del 28/02/2019 Intervento di assistenza c/o Magazzino Comunale e sede Protezione Civile.;06-05-2019;530;0;200;1;Spese correnti;3;Acquisto di beni e servizi;2;Acquisto di servizi;5;Utenze e canoni;6;Gas;06-05-2019;
592;3;0;"9.164,84";"9.594,28";BIM PIAVE NUOVE ENERGIE S.R.L.;Z0A2644955;SALDO Fatt.n. 9000335  del 11/02/2019 Anno termico 2018/2019 - Palestra CÃ Rainati;06-05-2019;530;0;200;1;Spese correnti;3;Acquisto di beni e servizi;2;Acquisto di servizi;5;Utenze e canoni;6;Gas;06-05-2019;
600;1;0;"1.846,84";"1.846,84";BIM PIAVE NUOVE ENERGIE S.R.L.;Z592732837;SALDO Fatt.n. 9000423  del 28/02/2019 Servizio di assistenza c/o Scuola Secondaria/Primaria;06-05-2019;236;0;102;1;Spese correnti;3;Acquisto di beni e servizi;2;Acquisto di servizi;9;Manutenzione ordinaria e riparazioni;5;Manutenzione ordinaria e riparazioni di attrezzature;06-05-2019;
601;1;0;"638,06";"1.382,26";BIM PIAVE NUOVE ENERGIE S.R.L.;Z0A2644955;SALDO Fatt.n. 9000450  del 28/02/2019 Intervento di assistenza su chiamata c/o Scuola Secondaria/Primaria;06-05-2019;252;0;199;1;Spese correnti;3;Acquisto di beni e servizi;2;Acquisto di servizi;5;Utenze e canoni;6;Gas;06-05-2019;
601;2;0;"744,20";"1.382,26";BIM PIAVE NUOVE ENERGIE S.R.L.;Z0A2644955;SALDO Fatt.n. 9000449  del 28/02/2019 Intervento di assistenza c/o Scuola Secondaria/Primaria;06-05-2019;252;0;199;1;Spese correnti;3;Acquisto di beni e servizi;2;Acquisto di servizi;5;Utenze e canoni;6;Gas;06-05-2019;
602;1;0;"3.719,50";"3.719,50";BIM PIAVE NUOVE ENERGIE S.R.L.;Z0A2644955;SALDO Fatt.n. 9000328  del 11/02/2019 Anno termico 2018/2019 - Sede Municipale;06-05-2019;34;0;197;1;Spese correnti;3;Acquisto di beni e servizi;2;Acquisto di servizi;5;Utenze e canoni;6;Gas;06-05-2019;
603;1;0;"11.040,40";"11.040,40";BIM PIAVE NUOVE ENERGIE S.R.L.;Z0A2644955;ACCONTO Fatt.n. 9000332  del 11/02/2019 Anno termico 2018/2019 -Scuola Secondaria/Primaria;06-05-2019;235;0;198;1;Spese correnti;3;Acquisto di beni e servizi;2;Acquisto di servizi;5;Utenze e canoni;6;Gas;06-05-2019;
604;1;0;"3.287,32";"3.287,32";BIM PIAVE NUOVE ENERGIE S.R.L.;Z2327C1EAA;SALDO Fatt.n. 9000332  del 11/02/2019 Anno termico 2018/2019 -Scuola Secondaria/Primaria;06-05-2019;775;5;160;2;Spese in conto capitale;2;Investimenti fissi lordi e acquisto di terreni;3;Beni immateriali;5;Incarichi professionali per la realizzazione di investimenti;1;Incarichi professionali per la realizzazione di investimenti;06-05-2019;
605;1;0;"5.612,00";"5.612,00";BOXXAPPS S.R.L.;ZF3257CC13;ACCONTO Fatt.n. 190260/1  del 10/04/2019 SERVIZI INFORMATICI;06-05-2019;39;0;330;1;Spese correnti;3;Acquisto di beni e servizi;2;Acquisto di servizi;19;Servizi informatici e di telecomunicazioni;1;Gestione e manutenzione applicazioni;06-05-2019;
606;1;0;"2.684,00";"2.684,00";BOXXAPPS S.R.L.;ZF3257CC13;SALDO Fatt.n. 190260/1  del 10/04/2019 SERVIZI INFORMATICI;06-05-2019;39;0;427;1;Spese correnti;3;Acquisto di beni e servizi;2;Acquisto di servizi;19;Servizi informatici e di telecomunicazioni;1;Gestione e manutenzione applicazioni;06-05-2019;
607;1;0;"204,95";"8.012,28";SOCIETA' CONTARINA S.P.A.;Z8E282245E;SALDO Fatt.n. 0000045/VET  del 09/04/2019 TARIFFA GESTIONE RIFIUTI URBANI;06-05-2019;463;0;196;1;Spese correnti;3;Acquisto di beni e servizi;2;Acquisto di servizi;15;Contratti di servizio pubblico;4;Contratti di servizio per la raccolta rifiuti;06-05-2019;
607;2;0;"227,45";"8.012,28";SOCIETA' CONTARINA S.P.A.;Z8E282245E;SALDO Fatt.n. 0000597/VET  del 15/04/2019 TARIFFA GESTIONE RIFIUTI URBANI;06-05-2019;463;0;196;1;Spese correnti;3;Acquisto di beni e servizi;2;Acquisto di servizi;15;Contratti di servizio pubblico;4;Contratti di servizio per la raccolta rifiuti;06-05-2019;
607;3;0;"360,89";"8.012,28";SOCIETA' CONTARINA S.P.A.;Z8E282245E;SALDO Fatt.n. 0000044/VET  del 09/04/2019 TARIFFA GESTIONE RIFIUTI URBANI;06-05-2019;463;0;196;1;Spese correnti;3;Acquisto di beni e servizi;2;Acquisto di servizi;15;Contratti di servizio pubblico;4;Contratti di servizio per la raccolta rifiuti;06-05-2019;
607;4;0;"360,89";"8.012,28";SOCIETA' CONTARINA S.P.A.;Z8E282245E;SALDO Fatt.n. 0000043/VET  del 09/04/2019 TARIFFA GESTIONE RIFIUTI URBANI;06-05-2019;463;0;196;1;Spese correnti;3;Acquisto di beni e servizi;2;Acquisto di servizi;15;Contratti di servizio pubblico;4;Contratti di servizio per la raccolta rifiuti;06-05-2019;
607;5;0;"456,21";"8.012,28";SOCIETA' CONTARINA S.P.A.;Z8E282245E;SALDO Fatt.n. 0000517/VET  del 15/04/2019 TARIFFA GESTIONE RIFIUTI URBANI;06-05-2019;463;0;196;1;Spese correnti;3;Acquisto di beni e servizi;2;Acquisto di servizi;15;Contratti di servizio pubblico;4;Contratti di servizio per la raccolta rifiuti;06-05-2019;
607;6;0;"464,42";"8.012,28";SOCIETA' CONTARINA S.P.A.;Z8E282245E;SALDO Fatt.n. 0000654/VET  del 15/04/2019 TARIFFA GESTIONE RIFIUTI URBANI;06-05-2019;463;0;196;1;Spese correnti;3;Acquisto di beni e servizi;2;Acquisto di servizi;15;Contratti di servizio pubblico;4;Contratti di servizio per la raccolta rifiuti;06-05-2019;
607;7;0;"465,68";"8.012,28";SOCIETA' CONTARINA S.P.A.;Z8E282245E;SALDO Fatt.n. 0000553/VET  del 15/04/2019 TARIFFA GESTIONE RIFIUTI URBANI;06-05-2019;463;0;196;1;Spese correnti;3;Acquisto di beni e servizi;2;Acquisto di servizi;15;Contratti di servizio pubblico;4;Contratti di servizio per la raccolta rifiuti;06-05-2019;
607;8;0;"499,87";"8.012,28";SOCIETA' CONTARINA S.P.A.;Z8E282245E;SALDO Fatt.n. 0000596/VET  del 15/04/2019 TARIFFA GESTIONE RIFIUTI URBANI;06-05-2019;463;0;196;1;Spese correnti;3;Acquisto di beni e servizi;2;Acquisto di servizi;15;Contratti di servizio pubblico;4;Contratti di servizio per la raccolta rifiuti;06-05-2019;
607;9;0;"521,47";"8.012,28";SOCIETA' CONTARINA S.P.A.;Z8E282245E;SALDO Fatt.n. 0000655/VET  del 15/04/2019 TARIFFA GESTIONE RIFIUTI URBANI;06-05-2019;463;0;196;1;Spese correnti;3;Acquisto di beni e servizi;2;Acquisto di servizi;15;Contratti di servizio pubblico;4;Contratti di servizio per la raccolta rifiuti;06-05-2019;
607;10;0;"637,64";"8.012,28";SOCIETA' CONTARINA S.P.A.;Z8E282245E;SALDO Fatt.n. 0000518/VET  del 15/04/2019 TARIFFA GESTIONE RIFIUTI URBANI;06-05-2019;463;0;196;1;Spese correnti;3;Acquisto di beni e servizi;2;Acquisto di servizi;15;Contratti di servizio pubblico;4;Contratti di servizio per la raccolta rifiuti;06-05-2019;
607;11;0;"763,89";"8.012,28";SOCIETA' CONTARINA S.P.A.;Z8E282245E;SALDO Fatt.n. 0000701/VET  del 15/04/2019 TARIFFA GESTIONE RIFIUTI URBANI;06-05-2019;463;0;196;1;Spese correnti;3;Acquisto di beni e servizi;2;Acquisto di servizi;15;Contratti di servizio pubblico;4;Contratti di servizio per la raccolta rifiuti;06-05-2019;
607;12;0;"925,10";"8.012,28";SOCIETA' CONTARINA S.P.A.;Z8E282245E;SALDO Fatt.n. 0000515/VET  del 15/04/2019 TARIFFA GESTIONE RIFIUTI URBANI;06-05-2019;463;0;196;1;Spese correnti;3;Acquisto di beni e servizi;2;Acquisto di servizi;15;Contratti di servizio pubblico;4;Contratti di servizio per la raccolta rifiuti;06-05-2019;
607;13;0;"1.035,66";"8.012,28";SOCIETA' CONTARINA S.P.A.;Z8E282245E;SALDO Fatt.n. 0000598/VET  del 15/04/2019 TARIFFA GESTIONE RIFIUTI URBANI;06-05-2019;463;0;196;1;Spese correnti;3;Acquisto di beni e servizi;2;Acquisto di servizi;15;Contratti di servizio pubblico;4;Contratti di servizio per la raccolta rifiuti;06-05-2019;
607;14;0;"1.088,16";"8.012,28";SOCIETA' CONTARINA S.P.A.;Z8E282245E;SALDO Fatt.n. 0000516/VET  del 15/04/2019 TARIFFA GESTIONE RIFIUTI URBANI;06-05-2019;463;0;196;1;Spese correnti;3;Acquisto di beni e servizi;2;Acquisto di servizi;15;Contratti di servizio pubblico;4;Contratti di servizio per la raccolta rifiuti;06-05-2019;
608;1;0;"-6.499,38";"6.499,38";STUDIO SMANIOTTO & MOROSIN;Z4A217235A;SALDO Fatt.n. 17  del 17/04/2019 NOTA DI CREDITO A STONO FT N. 16 DEL 16/04/2019;06-05-2019;775;5;564;2;Spese in conto capitale;2;Investimenti fissi lordi e acquisto di terreni;3;Beni immateriali;5;Incarichi professionali per la realizzazione di investimenti;1;Incarichi professionali per la realizzazione di investimenti;06-05-2019;
608;2;0;"6.499,38";"6.499,38";STUDIO SMANIOTTO & MOROSIN;Z4A217235A;SALDO Fatt.n. 16  del 16/04/2019 INCARICO PROFESSIONALE;06-05-2019;775;5;564;2;Spese in conto capitale;2;Investimenti fissi lordi e acquisto di terreni;3;Beni immateriali;5;Incarichi professionali per la realizzazione di investimenti;1;Incarichi professionali per la realizzazione di investimenti;06-05-2019;
608;3;0;"6.499,38";"6.499,38";STUDIO SMANIOTTO & MOROSIN;Z4A217235A;SALDO Fatt.n. 18  del 17/04/2019 INCARICO PROFESSIONALE;06-05-2019;775;5;564;2;Spese in conto capitale;2;Investimenti fissi lordi e acquisto di terreni;3;Beni immateriali;5;Incarichi professionali per la realizzazione di investimenti;1;Incarichi professionali per la realizzazione di investimenti;06-05-2019;
609;1;0;"177,55";"177,55";ASCOTRADE S.P.A.;ZBA27A07D4;SALDO Fatt.n. 524977  del 23/04/2019 FORNITURA GAS: 16-02-2019/15-04-2019;06-05-2019;530;0;138;1;Spese correnti;3;Acquisto di beni e servizi;2;Acquisto di servizi;5;Utenze e canoni;6;Gas;06-05-2019;
610;1;0;"2.685,32";"2.685,32";ACCATRE-STP S.R.L.;Z8F27CA996;ACCONTO Fatt.n. 190293/1  del 29/04/2019 CONVENZIONE PER L'ANNO 2019;06-05-2019;39;2;162;1;Spese correnti;3;Acquisto di beni e servizi;2;Acquisto di servizi;19;Servizi informatici e di telecomunicazioni;10;Servizi di consulenza e prestazioni professionali ICT;06-05-2019;
611;1;0;"7.021,00";"7.021,00";ACCATRE-STP S.R.L.;Z8F27CA996;SALDO Fatt.n. 190293/1  del 29/04/2019 CONVENZIONE PER L'ANNO 2019;06-05-2019;39;0;161;1;Spese correnti;3;Acquisto di beni e servizi;2;Acquisto di servizi;19;Servizi informatici e di telecomunicazioni;10;Servizi di consulenza e prestazioni professionali ICT;06-05-2019;
613;1;0;"427,00";"427,00";HALLEY VENETO SRL;Z272420412;SALDO Fatt.n. 1/190733  del 29/04/2019 SERVIZIO DI SUPPORTO E ASSISTENZA OPERAZIONI UFF. ANAGRAFE;06-05-2019;39;0;295;1;Spese correnti;3;Acquisto di beni e servizi;2;Acquisto di servizi;19;Servizi informatici e di telecomunicazioni;2;Assistenza all'utente e formazione;06-05-2019;
614;1;0;"1.232,20";"1.232,20";INFOTEAM SRL;Z8327C1152;SALDO Fatt.n. 00000000886  del 29/04/2019 FT. DI VENDITA P.A.;06-05-2019;39;1;159;1;Spese correnti;3;Acquisto di beni e servizi;2;Acquisto di servizi;7;Utilizzo di beni di terzi;6;Licenze d'uso per software;06-05-2019;
615;1;0;"957,70";"957,70";INFOTEAM SRL;Z5926BC4E4;SALDO Fatt.n. 00000000887  del 29/04/2019 SERVIZI INFORMATICI;06-05-2019;39;1;33;1;Spese correnti;3;Acquisto di beni e servizi;2;Acquisto di servizi;7;Utilizzo di beni di terzi;6;Licenze d'uso per software;06-05-2019;
616;1;0;"152,95";"459,17";GREEN TELECOMUNICAZIONI S.P.A.;Z40279DD24;SALDO Fatt.n. E6524  del 12/04/2019 Traffico Telefonico Periodo: marzo 2019;06-05-2019;34;0;136;1;Spese correnti;3;Acquisto di beni e servizi;2;Acquisto di servizi;5;Utenze e canoni;1;Telefonia fissa;06-05-2019;
616;2;0;"306,22";"459,17";GREEN TELECOMUNICAZIONI S.P.A.;Z40279DD24;SALDO Fatt.n. E7864  del 12/04/2019 Traffico Telefonico Periodo: marzo 2019;06-05-2019;34;0;136;1;Spese correnti;3;Acquisto di beni e servizi;2;Acquisto di servizi;5;Utenze e canoni;1;Telefonia fissa;06-05-2019;
617;1;0;"12.410,72";"12.410,72";Mobilità di Marca S.P.A.;7168087C82;SALDO Fatt.n. 000328  del 29/04/2019 TRASPORTO SCOLASTICO - MARZO 2019;06-05-2019;275;1;301;1;Spese correnti;3;Acquisto di beni e servizi;2;Acquisto di servizi;15;Contratti di servizio pubblico;2;Contratti di servizio di trasporto scolastico;06-05-2019;
618;1;0;"2,30";"2,30";U.L.S.S.   N. 2 MARCA TREVIGIANA; ;SALDO Fatt.n. 19-V11-000104  del 01/03/2019 COSTO MICROCHIP;07-05-2019;180;0;238;1;Spese correnti;3;Acquisto di beni e servizi;2;Acquisto di servizi;15;Contratti di servizio pubblico;11;Contratti di servizio per la lotta al randagismo;07-05-2019;
619;1;0;"112.860,00";"112.860,00";FAGGION ANTONIO S.R.L.;76351125BD;SALDO Fatt.n. 37  del 17/04/2019 LAVORI DI MIGLIORAMENTO SISMICO PLESSO SCOLASTICO;07-05-2019;775;3;472;2;Spese in conto capitale;2;Investimenti fissi lordi e acquisto di terreni;1;Beni materiali;9;Beni immobili;3;Fabbricati ad uso scolastico;07-05-2019;
620;1;0;"7.827,03";"7.827,03";NOMINATIVI DIVERSI; ;CONTRIBUTO REGIONALE "BUONO LIBRI E CONTENUTI DIDATTICI ALTERNATIVI". ANNO SCOLASTICO-FORMATIVO 2018/2019. LIQUIDAZIONE PARTE DEI BENEFICIARI.;07-05-2019;558;1;586;1;Spese correnti;4;Trasferimenti correnti;2;Trasferimenti correnti a Famiglie;2;Interventi assistenziali;999;Altri assegni e sussidi assistenziali;07-05-2019;
621;1;0;"2.000,00";"2.000,00";OMESSO NOMINATIVO NEL RISPETTO DELLA NORMATIVA SULLA PROTEZIONE DATI PERSONALI; ;IMPEGNO E LIQUIDAZIONE CONTRIBUTO ECONOMICO ORDINARIO 2019 ALL'ASSOCIAZIONE MUSICALE E. W. FERRARI DI SAN ZENONE DEGLI EZZELINI.;08-05-2019;334;0;223;1;Spese correnti;4;Trasferimenti correnti;1;Trasferimenti correnti a Amministrazioni Pubbliche;4;Trasferimenti correnti a organismi interni e/o unità locali della amministrazione;1;Trasferimenti correnti a organismi interni e/o unità locali della amministrazione;08-05-2019;
623;1;0;"200,00";"200,00";CORO MONTE GRAPPA; ;IMPEGNO E LIQUIDAZIONE CONTRIBUTO STRAORDINARIO AL CORO MONTE GRAPPA DI SAN ZENONE DEGLI EZZELINI PER ORGANIZZAZIONE SERATA DEDICATA ALLA MEMORIA DEL MAESTRO ANTONIO PIOTTO.;13-05-2019;333;1;243;1;Spese correnti;4;Trasferimenti correnti;1;Trasferimenti correnti a Amministrazioni Pubbliche;4;Trasferimenti correnti a organismi interni e/o unità locali della amministrazione;1;Trasferimenti correnti a organismi interni e/o unità locali della amministrazione;13-05-2019;
635;1;0;"11,20";"11,20";PERSONALE DIPENDENTE - SEDE; ;IMPEGNO DI SPESA PER RIMBORSO SPESE MISSIONI ANNO 2019 AL PERSONALE DIPENDENTE.;13-05-2019;62;0;23;1;Spese correnti;3;Acquisto di beni e servizi;2;Acquisto di servizi;2;"Organizzazione eventi, pubblicita` e servizi per trasferta";1;Rimborso per viaggio e trasloco;13-05-2019;
656;1;0;"4.622,55";"4.622,55";AMMINISTRATORI COMUNALI; ;STIPENDI MESE DI: MAGGIO 19;13-05-2019;2;0;6;1;Spese correnti;3;Acquisto di beni e servizi;2;Acquisto di servizi;1;Organi e incarichi istituzionali dell'amministrazione;1;Organi istituzionali dell'amministrazione - Indennità;13-05-2019;
659;1;0;"50,75";"50,75";MINISTERO INFRASTR.-TESORER. PROV.LE DELLO STATO - ROMA; ;INTEGRAZIONE VERSAMENTO PER COLLEGAMENTO AL SERVIZIO DI INFORMATICA DEL CENTRO ELABORAZIONE DATI DEL MINISTERO DELLE INFRASTRUTTURE E DEI TRASPORTI - ANNO 2019.;15-05-2019;178;3;81;1;Spese correnti;3;Acquisto di beni e servizi;2;Acquisto di servizi;5;Utenze e canoni;3;Accesso a banche dati e a pubblicazioni on line;15-05-2019;
660;1;0;"4.572,00";"4.572,00";BERTONCELLO PAOLA ECONOMO COMUNALE; ;ELEZIONI EUROPEE ED AMMINISTRATIVE DEL 26.05.2019 - ANTICIPAZIONE ALL'ECONOMO COMUNALE DEGLI IMPORTI DA CORRISPONDERE AI COMPONENTI DEI SEGGI ELETTORALI.;16-05-2019;9;3;257;1;Spese correnti;3;Acquisto di beni e servizi;2;Acquisto di servizi;99;Altri servizi;4;Altre spese per consultazioni elettorali dell'ente;16-05-2019;
661;1;0;"500,00";"500,00";AGENZIA DELLE ENTRATE-RISCOSS.-MODENA (FATTURA ROSSI);Z9E267F25A;ACCONTO Fatt.n. 50  del 22/03/2019 SOLLEVATORE MANUALE OLEODINAMICO MOD.RL.17 INTERAMENTE COSTRUITO IN ALLUMINIO.;16-05-2019;414;0;570;1;Spese correnti;3;Acquisto di beni e servizi;1;Acquisto di beni;2;Altri beni di consumo;8;Strumenti tecnico-specialistici non sanitari;16-05-2019;
662;1;0;"5.844,00";"5.844,00";AGENZIA DELLE ENTRATE-RISCOSS.-MODENA (FATTURA ROSSI);Z9E267F25A;SALDO Fatt.n. 50  del 22/03/2019 SOLLEVATORE MANUALE OLEODINAMICO MOD.RL.17 INTERAMENTE COSTRUITO IN ALLUMINIO.;16-05-2019;591;0;571;1;Spese correnti;3;Acquisto di beni e servizi;1;Acquisto di beni;2;Altri beni di consumo;8;Strumenti tecnico-specialistici non sanitari;16-05-2019;
664;1;0;"300,00";"300,00";ATELIER DI CANTO LIRICO AGOGICA; ;IMPEGNO DI SPESA A FAVORE DELL'ASSOCIAZIONE ATELIER DI CANTO LIRICO AGOGICA PER ORGANIZZAZIONE CONCERTO "DANZARE E CANTARE PER LA VITA" - 18.05.2019.;20-05-2019;333;1;247;1;Spese correnti;4;Trasferimenti correnti;1;Trasferimenti correnti a Amministrazioni Pubbliche;4;Trasferimenti correnti a organismi interni e/o unità locali della amministrazione;1;Trasferimenti correnti a organismi interni e/o unità locali della amministrazione;20-05-2019;
665;1;0;"1.120,00";"1.120,00";COMITATO PROVINCIALE PER L'UNICEF DI TREVISO; ;"IMPEGNO DI SPESA A FAVORE DEL COMITATO PROVINCIALE UNICEF - SEZIONE DI TREVISO, PER ADESIONE ALL'INIZIATIVA ""PER OGNI BAMBINO NATO, UN BAMBINO SALVATO"".";20-05-2019;500;0;254;1;Spese correnti;4;Trasferimenti correnti;1;Trasferimenti correnti a Amministrazioni Pubbliche;4;Trasferimenti correnti a organismi interni e/o unità locali della amministrazione;1;Trasferimenti correnti a organismi interni e/o unità locali della amministrazione;20-05-2019;
666;1;0;"161,76";"161,76";OMESSO NOMINATIVO NEL RISPETTO DELLA NORMATIVA SULLA PROTEZIONE DATI PERSONALI; ;FATT. ALTO TREVIGIANO SERVIZI N. 42-2019-00246089 DEL 24/04/2019 PERIODO GENNAIO/MARZO 2019.;20-05-2019;576;0;110;1;Spese correnti;4;Trasferimenti correnti;2;Trasferimenti correnti a Famiglie;2;Interventi assistenziali;999;Altri assegni e sussidi assistenziali;20-05-2019;
667;1;0;"26,89";"557,65";TELECOM ITALIA S.P.A.;Z5E283776B;SALDO Fatt.n. 8E00259665  del 05/04/2019 TRAFFICO TELEFONICO: FEBB-MARZO 2019;20-05-2019;313;2;232;1;Spese correnti;3;Acquisto di beni e servizi;2;Acquisto di servizi;5;Utenze e canoni;1;Telefonia fissa;20-05-2019;
667;2;0;"27,50";"557,65";TELECOM ITALIA S.P.A.;Z5E283776B;SALDO Fatt.n. 8E00261977  del 05/04/2019 TRAFFICO TELEFONICO: FEBB-MARZO 2019;20-05-2019;313;2;232;1;Spese correnti;3;Acquisto di beni e servizi;2;Acquisto di servizi;5;Utenze e canoni;1;Telefonia fissa;20-05-2019;
667;3;0;"27,50";"557,65";TELECOM ITALIA S.P.A.;Z5E283776B;SALDO Fatt.n. 8E00258188  del 05/04/2019 TRAFFICO TELEFONICO: FEBB-MARZO 2019;20-05-2019;313;2;232;1;Spese correnti;3;Acquisto di beni e servizi;2;Acquisto di servizi;5;Utenze e canoni;1;Telefonia fissa;20-05-2019;
667;4;0;"27,50";"557,65";TELECOM ITALIA S.P.A.;Z5E283776B;SALDO Fatt.n. 8E00261974  del 05/04/2019 TRAFFICO TELEFONICO: FEBB-MARZO 2019;20-05-2019;313;2;232;1;Spese correnti;3;Acquisto di beni e servizi;2;Acquisto di servizi;5;Utenze e canoni;1;Telefonia fissa;20-05-2019;
667;5;0;"27,50";"557,65";TELECOM ITALIA S.P.A.;Z5E283776B;SALDO Fatt.n. 8E00262286  del 05/04/2019 TRAFFICO TELEFONICO: FEBB-MARZO 2019;20-05-2019;313;2;232;1;Spese correnti;3;Acquisto di beni e servizi;2;Acquisto di servizi;5;Utenze e canoni;1;Telefonia fissa;20-05-2019;
667;6;0;"27,50";"557,65";TELECOM ITALIA S.P.A.;Z5E283776B;SALDO Fatt.n. 8E00260684  del 05/04/2019 TRAFFICO TELEFONICO: FEBB-MARZO 2019;20-05-2019;313;2;232;1;Spese correnti;3;Acquisto di beni e servizi;2;Acquisto di servizi;5;Utenze e canoni;1;Telefonia fissa;20-05-2019;
667;7;0;"27,79";"557,65";TELECOM ITALIA S.P.A.;Z5E283776B;SALDO Fatt.n. 8E00261986  del 05/04/2019 TRAFFICO TELEFONICO: FEBB-MARZO 2019;20-05-2019;313;2;232;1;Spese correnti;3;Acquisto di beni e servizi;2;Acquisto di servizi;5;Utenze e canoni;1;Telefonia fissa;20-05-2019;
667;8;0;"28,62";"557,65";TELECOM ITALIA S.P.A.;Z5E283776B;SALDO Fatt.n. 8E00258249  del 05/04/2019 TRAFFICO TELEFONICO: FEBB-MARZO 2019;20-05-2019;313;2;232;1;Spese correnti;3;Acquisto di beni e servizi;2;Acquisto di servizi;5;Utenze e canoni;1;Telefonia fissa;20-05-2019;
667;9;0;"40,14";"557,65";TELECOM ITALIA S.P.A.;Z5E283776B;SALDO Fatt.n. 8E00260966  del 05/04/2019 TRAFFICO TELEFONICO: FEBB-MARZO 2019;20-05-2019;313;2;232;1;Spese correnti;3;Acquisto di beni e servizi;2;Acquisto di servizi;5;Utenze e canoni;1;Telefonia fissa;20-05-2019;
667;10;0;"52,43";"557,65";TELECOM ITALIA S.P.A.;Z5E283776B;SALDO Fatt.n. 8E00258477  del 05/04/2019 TRAFFICO TELEFONICO: FEBB-MARZO 2019;20-05-2019;313;2;232;1;Spese correnti;3;Acquisto di beni e servizi;2;Acquisto di servizi;5;Utenze e canoni;1;Telefonia fissa;20-05-2019;
667;11;0;"52,43";"557,65";TELECOM ITALIA S.P.A.;Z5E283776B;SALDO Fatt.n. 8E00259142  del 05/04/2019 TRAFFICO TELEFONICO: FEBB-MARZO 2019;20-05-2019;313;2;232;1;Spese correnti;3;Acquisto di beni e servizi;2;Acquisto di servizi;5;Utenze e canoni;1;Telefonia fissa;20-05-2019;
667;12;0;"53,99";"557,65";TELECOM ITALIA S.P.A.;Z5E283776B;SALDO Fatt.n. 8E00259113  del 05/04/2019 TRAFFICO TELEFONICO: FEBB-MARZO 2019;20-05-2019;313;2;232;1;Spese correnti;3;Acquisto di beni e servizi;2;Acquisto di servizi;5;Utenze e canoni;1;Telefonia fissa;20-05-2019;
667;13;0;"66,94";"557,65";TELECOM ITALIA S.P.A.;Z5E283776B;SALDO Fatt.n. 8E00260567  del 05/04/2019 TRAFFICO TELEFONICO: FEBB-MARZO 2019;20-05-2019;313;2;232;1;Spese correnti;3;Acquisto di beni e servizi;2;Acquisto di servizi;5;Utenze e canoni;1;Telefonia fissa;20-05-2019;
667;14;0;"70,92";"557,65";TELECOM ITALIA S.P.A.;Z5E283776B;SALDO Fatt.n. 8E00262304  del 05/04/2019 TRAFFICO TELEFONICO: FEBB-MARZO 2019;20-05-2019;313;2;232;1;Spese correnti;3;Acquisto di beni e servizi;2;Acquisto di servizi;5;Utenze e canoni;1;Telefonia fissa;20-05-2019;
668;1;0;"-469,70";"24,40";ASCO TLC S.P.A.;ZCD271B191;SALDO Fatt.n. 09011205  del 18/04/2019 NOTA DI CREDITO;20-05-2019;252;0;79;1;Spese correnti;3;Acquisto di beni e servizi;2;Acquisto di servizi;5;Utenze e canoni;999;Utenze e canoni per altri servizi n.a.c.;20-05-2019;
668;2;0;"-176,90";"24,40";ASCO TLC S.P.A.;ZCD271B191;SALDO Fatt.n. 09011204  del 18/04/2019 RETTIFICA FT N. 09011176 DEL 31.03.2019 PER ERRATA EMISSIONE;20-05-2019;252;0;79;1;Spese correnti;3;Acquisto di beni e servizi;2;Acquisto di servizi;5;Utenze e canoni;999;Utenze e canoni per altri servizi n.a.c.;20-05-2019;
668;3;0;"24,40";"24,40";ASCO TLC S.P.A.;ZCD271B191;SALDO Fatt.n. 09015750  del 30/04/2019 UTENZE E CANONI SCUOLE;20-05-2019;252;0;79;1;Spese correnti;3;Acquisto di beni e servizi;2;Acquisto di servizi;5;Utenze e canoni;999;Utenze e canoni per altri servizi n.a.c.;20-05-2019;
668;4;0;"176,90";"24,40";ASCO TLC S.P.A.;ZCD271B191;SALDO Fatt.n. 09015752  del 30/04/2019 UTENZE E CANONI;20-05-2019;252;0;79;1;Spese correnti;3;Acquisto di beni e servizi;2;Acquisto di servizi;5;Utenze e canoni;999;Utenze e canoni per altri servizi n.a.c.;20-05-2019;
668;5;0;"469,70";"24,40";ASCO TLC S.P.A.;ZCD271B191;SALDO Fatt.n. 09015751  del 30/04/2019 UTENZE E CANONI SCUOLE;20-05-2019;252;0;79;1;Spese correnti;3;Acquisto di beni e servizi;2;Acquisto di servizi;5;Utenze e canoni;999;Utenze e canoni per altri servizi n.a.c.;20-05-2019;
669;1;0;"894,33";"894,33";POSTEL S.P.A.;Z6F2648DBC;SALDO Fatt.n. 2019104041  del 18/04/2019 SOGGIORNI ESTIVI E GITA 3^ ETA';20-05-2019;34;3;539;1;Spese correnti;3;Acquisto di beni e servizi;2;Acquisto di servizi;16;Servizi amministrativi;2;Spese postali;20-05-2019;
670;1;0;"68,44";"68,44";MyO S.P.A.;Z9227CEF07;SALDO Fatt.n. 2040/190010605  del 30/04/2019 SPESE PER ELEZIONI;20-05-2019;9;2;163;1;Spese correnti;3;Acquisto di beni e servizi;1;Acquisto di beni;2;Altri beni di consumo;10;Beni per consultazioni elettorali;20-05-2019;
671;1;0;"4.822,66";"4.822,66";TELEGAMMA S.R.L.;ZC827D6F51;SALDO Fatt.n. 2019150000045  del 30/04/2019 COLLEGAMENTO HARDWARE PER LA "TORRE";20-05-2019;746;0;168;2;Spese in conto capitale;2;Investimenti fissi lordi e acquisto di terreni;1;Beni materiali;7;Hardware;4;Apparati di telecomunicazione;20-05-2019;
672;1;0;"66,00";"66,00";KUWAIT PETROLEUM ITALIA S.P.A.;Z4E197F01F;SALDO Fatt.n. PJ01103377  del 30/04/2019 SPESE BENZINA PER AUTO POLIZIA LOCALE;20-05-2019;179;0;154;1;Spese correnti;3;Acquisto di beni e servizi;1;Acquisto di beni;2;Altri beni di consumo;2;"Carburanti, combustibili e lubrificanti";20-05-2019;
673;1;0;"112,96";"234,98";KUWAIT PETROLEUM ITALIA S.P.A.;Z4E197F01F;SALDO Fatt.n. PJ01103375  del 30/04/2019 SPESA BENZINA PER AUTO OPERAI;20-05-2019;590;0;156;1;Spese correnti;3;Acquisto di beni e servizi;1;Acquisto di beni;2;Altri beni di consumo;2;"Carburanti, combustibili e lubrificanti";20-05-2019;
673;2;0;"122,02";"234,98";KUWAIT PETROLEUM ITALIA S.P.A.;Z4E197F01F;SALDO Fatt.n. PJ01103374  del 30/04/2019 SPESE BENZINA AUTO OPERAI;20-05-2019;590;0;156;1;Spese correnti;3;Acquisto di beni e servizi;1;Acquisto di beni;2;Altri beni di consumo;2;"Carburanti, combustibili e lubrificanti";20-05-2019;
674;1;0;"4.060,00";"4.060,00";METODO STUDIO S.R.L.;ZEA23248E6;SALDO Fatt.n. FPA 8/19  del 06/05/2019 PROGETTAZIONE SEGNALETICA PER MUSEO MULTIMEDIALE;20-05-2019;785;0;495;2;Spese in conto capitale;2;Investimenti fissi lordi e acquisto di terreni;1;Beni materiali;10;"Beni immobili di valore culturale, storico ed artistico";8;"Musei, teatri e biblioteche di valore culturale, storico ed artistico";20-05-2019;
675;1;0;"2.318,00";"2.318,00";METODO STUDIO S.R.L.;ZEA23248E6;SALDO Fatt.n. FPA 9/19  del 06/05/2019 INTERVENTI ALLA TORRE DEGLI EZZELINI;20-05-2019;785;0;578;2;Spese in conto capitale;2;Investimenti fissi lordi e acquisto di terreni;1;Beni materiali;10;"Beni immobili di valore culturale, storico ed artistico";8;"Musei, teatri e biblioteche di valore culturale, storico ed artistico";20-05-2019;
676;1;0;"183,33";"183,33";ULLALLA' TEATRO E ANIMAZIONE;ZEE280F0E2;SALDO Fatt.n. 10/001  del 06/05/2019 SPESE PER PRESTAZIONI SOCIALI;20-05-2019;559;0;182;1;Spese correnti;3;Acquisto di beni e servizi;2;Acquisto di servizi;99;Altri servizi;999;Altri servizi diversi n.a.c.;20-05-2019;
677;1;0;"210,00";"420,00";SONDA COOPERATIVA SOCIALE ONLUS; ;SALDO Fatt.n. 124/PA/2019  del 06/04/2019 SPESE PER DISABILITA' - MARZO 2019;21-05-2019;560;0;297;1;Spese correnti;3;Acquisto di beni e servizi;2;Acquisto di servizi;15;Contratti di servizio pubblico;8;Contratti di servizio di assistenza sociale residenziale e semiresidenziale;21-05-2019;
677;2;0;"210,00";"420,00";SONDA COOPERATIVA SOCIALE ONLUS; ;SALDO Fatt.n. 158/PA/2019  del 08/05/2019 SPESE PER DISABILITA' - APRILE 2019;21-05-2019;560;0;297;1;Spese correnti;3;Acquisto di beni e servizi;2;Acquisto di servizi;15;Contratti di servizio pubblico;8;Contratti di servizio di assistenza sociale residenziale e semiresidenziale;21-05-2019;
678;1;0;"1.809,00";"1.809,00";OPERE PIE D'ONIGO; ;SALDO Fatt.n. 132/2  del 30/04/2019 SPESE PER PERSONA BISOGNOSA - B.P. - APRILE 2019;21-05-2019;560;0;32;1;Spese correnti;3;Acquisto di beni e servizi;2;Acquisto di servizi;15;Contratti di servizio pubblico;8;Contratti di servizio di assistenza sociale residenziale e semiresidenziale;21-05-2019;
679;1;0;"183,00";"183,00";MAGGIOLI SPA;ZC125A866B;SALDO Fatt.n. 0002116823  del 30/04/2019 ACQUISTO DI BENI PER UFFICIO ANAGRAFE;21-05-2019;37;0;442;1;Spese correnti;3;Acquisto di beni e servizi;1;Acquisto di beni;2;Altri beni di consumo;1;"Carta, cancelleria e stampati";21-05-2019;
680;1;0;"372,10";"372,10";IL GONFALONE DI FAGGIONATO ROBERTO;ZCB281C022;SALDO Fatt.n. FPA 384/19  del 07/05/2019 FORNITURA KIT COSTITUZIONE ITALIANA;21-05-2019;40;2;242;1;Spese correnti;3;Acquisto di beni e servizi;1;Acquisto di beni;2;Altri beni di consumo;9;Beni per attività di rappresentanza;21-05-2019;
681;1;0;"19,48";"19,48";LA IDROFERRAMENTA SRL;Z192700D74;SALDO Fatt.n. 38/PA  del 30/04/2019 FORNITURA FERRAMENTA;21-05-2019;591;0;58;1;Spese correnti;3;Acquisto di beni e servizi;1;Acquisto di beni;2;Altri beni di consumo;999;Altri beni e materiali di consumo n.a.c.;21-05-2019;
682;1;0;"1.440,00";"1.440,00";NOIGROUP Coop. Soc. a R.L.;Z5F268727B;SALDO Fatt.n. 343  del 30/04/2019 SERVIZIO GESTIONE DELLA BIBLIOTECA ATTIVITA' APRILE 2019;21-05-2019;302;1;553;1;Spese correnti;3;Acquisto di beni e servizi;2;Acquisto di servizi;16;Servizi amministrativi;999;Altre spese per servizi amministrativi;21-05-2019;
683;1;0;"1.329,00";"1.329,00";IDEA GIARDINO SNC;ZD427A2468;ACCONTO Fatt.n. 22  del 03/05/2019 MANUTENZIONE ANNUA DEL VERDE IN VILLA RUBELLI;21-05-2019;310;1;140;1;Spese correnti;3;Acquisto di beni e servizi;2;Acquisto di servizi;9;Manutenzione ordinaria e riparazioni;12;Manutenzione ordinaria e riparazioni di terreni e beni materiali non prodotti;21-05-2019;
684;1;0;"2.087,00";"2.087,00";IDEA GIARDINO SNC;ZD427A2468;SALDO Fatt.n. 22  del 03/05/2019 MANUTENZIONE ANNUA DEL VERDE IN VILLA RUBELLI;21-05-2019;310;0;141;1;Spese correnti;3;Acquisto di beni e servizi;2;Acquisto di servizi;5;Utenze e canoni;999;Utenze e canoni per altri servizi n.a.c.;21-05-2019;
685;1;0;"159,16";"421,01";GREEN TELECOMUNICAZIONI S.P.A.;Z40279DD24;SALDO Fatt.n. E8577  del 12/05/2019 Traffico Telefonico Periodo: aprile 2019;21-05-2019;34;0;136;1;Spese correnti;3;Acquisto di beni e servizi;2;Acquisto di servizi;5;Utenze e canoni;1;Telefonia fissa;21-05-2019;
685;2;0;"261,85";"421,01";GREEN TELECOMUNICAZIONI S.P.A.;Z40279DD24;SALDO Fatt.n. E9893  del 12/05/2019 Traffico Telefonico Periodo: aprile 2019;21-05-2019;34;0;136;1;Spese correnti;3;Acquisto di beni e servizi;2;Acquisto di servizi;5;Utenze e canoni;1;Telefonia fissa;21-05-2019;
686;1;0;"1.620,00";"1.620,00";CASA DI RIPOSO 'AITA'; ;SALDO Fatt.n. 201/B  del 13/05/2019 SPESE PER PERSONA BISOGNOSA - L.V. -  APRILE 2019;21-05-2019;560;0;31;1;Spese correnti;3;Acquisto di beni e servizi;2;Acquisto di servizi;15;Contratti di servizio pubblico;8;Contratti di servizio di assistenza sociale residenziale e semiresidenziale;21-05-2019;
687;1;0;"515,55";"515,55";UNA CASA PER L'UOMO - SOCIETA' COOPERATIVA SOCIALE;ZA32468D08;SALDO Fatt.n. FE/0000125  del 30/04/2019 ACCOMPAGNAMENTO PERSONE IN DISAGIO - APRILE 2019;21-05-2019;559;0;334;1;Spese correnti;3;Acquisto di beni e servizi;2;Acquisto di servizi;99;Altri servizi;999;Altri servizi diversi n.a.c.;21-05-2019;
689;1;0;"217,35";"505,99";POSTE ITALIANE SPA - PROVENTI POLO LOGISTICO;Z6F2648DBC;SALDO Fatt.n. 8719141380  del 09/05/2019 PRODOTTI POSTALI - APRILE 2019;21-05-2019;34;3;539;1;Spese correnti;3;Acquisto di beni e servizi;2;Acquisto di servizi;16;Servizi amministrativi;2;Spese postali;21-05-2019;
689;2;0;"288,64";"505,99";POSTE ITALIANE SPA - PROVENTI POLO LOGISTICO;Z6F2648DBC;SALDO Fatt.n. 8719141379  del 09/05/2019 PRODOTTI POSTALI - MARZO 2019;21-05-2019;34;3;539;1;Spese correnti;3;Acquisto di beni e servizi;2;Acquisto di servizi;16;Servizi amministrativi;2;Spese postali;21-05-2019;
690;1;0;"12.410,72";"12.410,72";Mobilità di Marca S.P.A.;7168087C82;SALDO Fatt.n. 000350  del 30/04/2019 TRASPORTO SCOLASTICO - APRILE 2019;21-05-2019;275;1;301;1;Spese correnti;3;Acquisto di beni e servizi;2;Acquisto di servizi;15;Contratti di servizio pubblico;2;Contratti di servizio di trasporto scolastico;21-05-2019;
691;1;0;"5.117,65";"5.117,65";CASA DI RIPOSO 'AITA'; ;SALDO Fatt.n. 248/C  del 06/05/2019 FORNITURA PASTI MENSA SCUOLA - APRILE 2019;21-05-2019;274;1;54;1;Spese correnti;3;Acquisto di beni e servizi;2;Acquisto di servizi;15;Contratti di servizio pubblico;6;Contratti di servizio per le mense scolastiche;21-05-2019;
692;1;0;"11.419,20";"11.419,20";TECNOHABITAT INGEGNERIA;Z9A1C2D73A;SALDO Fatt.n. 23  del 14/05/2019 REDAZIONE PIANO DELLE ACQUE;21-05-2019;881;3;493;2;Spese in conto capitale;2;Investimenti fissi lordi e acquisto di terreni;3;Beni immateriali;5;Incarichi professionali per la realizzazione di investimenti;1;Incarichi professionali per la realizzazione di investimenti;21-05-2019;
693;1;0;"-288,70";"16,86";ENEL ENERGIA S.P.A.;7134285639;SALDO Fatt.n. 003027199322  del 27/04/2019 ENEL - MARZO 2019;21-05-2019;600;0;120;1;Spese correnti;3;Acquisto di beni e servizi;2;Acquisto di servizi;5;Utenze e canoni;4;Energia elettrica;21-05-2019;
693;2;0;"-134,30";"16,86";ENEL ENERGIA S.P.A.;7134285639;SALDO Fatt.n. 003027074328  del 27/04/2019 ENEL - MARZO 2019;21-05-2019;600;0;120;1;Spese correnti;3;Acquisto di beni e servizi;2;Acquisto di servizi;5;Utenze e canoni;4;Energia elettrica;21-05-2019;
693;3;0;"-39,20";"16,86";ENEL ENERGIA S.P.A.;7134285639;SALDO Fatt.n. 003027074343  del 27/04/2019 ENEL - MARZO 2019;21-05-2019;600;0;120;1;Spese correnti;3;Acquisto di beni e servizi;2;Acquisto di servizi;5;Utenze e canoni;4;Energia elettrica;21-05-2019;
693;4;0;"-25,82";"16,86";ENEL ENERGIA S.P.A.;7134285639;SALDO Fatt.n. 003027074356  del 27/04/2019 ENEL - MARZO 2019;21-05-2019;600;0;120;1;Spese correnti;3;Acquisto di beni e servizi;2;Acquisto di servizi;5;Utenze e canoni;4;Energia elettrica;21-05-2019;
693;5;0;"0,22";"16,86";ENEL ENERGIA S.P.A.;7134285639;SALDO Fatt.n. 003027286752  del 28/04/2019 ENEL - MARZO 2019;21-05-2019;600;0;120;1;Spese correnti;3;Acquisto di beni e servizi;2;Acquisto di servizi;5;Utenze e canoni;4;Energia elettrica;21-05-2019;
693;6;0;"0,22";"16,86";ENEL ENERGIA S.P.A.;7134285639;SALDO Fatt.n. 003027286754  del 28/04/2019 ENEL - MARZO 2019;21-05-2019;600;0;120;1;Spese correnti;3;Acquisto di beni e servizi;2;Acquisto di servizi;5;Utenze e canoni;4;Energia elettrica;21-05-2019;
693;7;0;"0,45";"16,86";ENEL ENERGIA S.P.A.;7134285639;SALDO Fatt.n. 003027286750  del 28/04/2019 ENEL - MARZO 2019;21-05-2019;600;0;120;1;Spese correnti;3;Acquisto di beni e servizi;2;Acquisto di servizi;5;Utenze e canoni;4;Energia elettrica;21-05-2019;
693;8;0;"0,54";"16,86";ENEL ENERGIA S.P.A.;7134285639;SALDO Fatt.n. 003027286783  del 28/04/2019 ENEL - MARZO 2019;21-05-2019;600;0;120;1;Spese correnti;3;Acquisto di beni e servizi;2;Acquisto di servizi;5;Utenze e canoni;4;Energia elettrica;21-05-2019;
693;9;0;"0,65";"16,86";ENEL ENERGIA S.P.A.;7134285639;SALDO Fatt.n. 003027286762  del 28/04/2019 ENEL - MARZO 2019;21-05-2019;600;0;120;1;Spese correnti;3;Acquisto di beni e servizi;2;Acquisto di servizi;5;Utenze e canoni;4;Energia elettrica;21-05-2019;
693;10;0;"5,62";"16,86";ENEL ENERGIA S.P.A.;7134285639;SALDO Fatt.n. 003027286782  del 28/04/2019 ENEL - MARZO 2019;21-05-2019;600;0;120;1;Spese correnti;3;Acquisto di beni e servizi;2;Acquisto di servizi;5;Utenze e canoni;4;Energia elettrica;21-05-2019;
693;11;0;"25,39";"16,86";ENEL ENERGIA S.P.A.;7134285639;SALDO Fatt.n. 003027519878  del 29/04/2019 ENEL - MARZO 2019;21-05-2019;600;0;120;1;Spese correnti;3;Acquisto di beni e servizi;2;Acquisto di servizi;5;Utenze e canoni;4;Energia elettrica;21-05-2019;
693;12;0;"122,00";"16,86";ENEL ENERGIA S.P.A.;7134285639;SALDO Fatt.n. 0000919900001788  del 16/04/2019 NUOVA INSTALLAZIONE CONTATORE IMP. FOTOVOLTAICO SCUOLE;21-05-2019;600;0;120;1;Spese correnti;3;Acquisto di beni e servizi;2;Acquisto di servizi;5;Utenze e canoni;4;Energia elettrica;21-05-2019;
693;13;0;"349,79";"16,86";ENEL ENERGIA S.P.A.;7134285639;SALDO Fatt.n. 003027519856  del 29/04/2019 ENEL - MARZO 2019;21-05-2019;600;0;120;1;Spese correnti;3;Acquisto di beni e servizi;2;Acquisto di servizi;5;Utenze e canoni;4;Energia elettrica;21-05-2019;
694;1;0;"-393,36";"1,62";ENEL ENERGIA S.P.A.;7134285639;SALDO Fatt.n. 003027074334  del 27/04/2019 ENEL - MARZO 2019;21-05-2019;600;0;120;1;Spese correnti;3;Acquisto di beni e servizi;2;Acquisto di servizi;5;Utenze e canoni;4;Energia elettrica;21-05-2019;
694;2;0;"-260,29";"1,62";ENEL ENERGIA S.P.A.;7134285639;SALDO Fatt.n. 003027080674  del 27/04/2019 ENEL - MARZO 2019;21-05-2019;600;0;120;1;Spese correnti;3;Acquisto di beni e servizi;2;Acquisto di servizi;5;Utenze e canoni;4;Energia elettrica;21-05-2019;
694;3;0;"-259,63";"1,62";ENEL ENERGIA S.P.A.;7134285639;SALDO Fatt.n. 003027074366  del 27/04/2019 ENEL - MARZO 2019;21-05-2019;600;0;120;1;Spese correnti;3;Acquisto di beni e servizi;2;Acquisto di servizi;5;Utenze e canoni;4;Energia elettrica;21-05-2019;
694;4;0;"-166,44";"1,62";ENEL ENERGIA S.P.A.;7134285639;SALDO Fatt.n. 003027074350  del 27/04/2019 ENEL - MARZO 2019;21-05-2019;600;0;120;1;Spese correnti;3;Acquisto di beni e servizi;2;Acquisto di servizi;5;Utenze e canoni;4;Energia elettrica;21-05-2019;
694;5;0;"-122,26";"1,62";ENEL ENERGIA S.P.A.;7134285639;SALDO Fatt.n. 003027074370  del 27/04/2019 ENEL - MARZO 2019;21-05-2019;600;0;120;1;Spese correnti;3;Acquisto di beni e servizi;2;Acquisto di servizi;5;Utenze e canoni;4;Energia elettrica;21-05-2019;
694;6;0;"-57,47";"1,62";ENEL ENERGIA S.P.A.;7134285639;SALDO Fatt.n. 003027074336  del 27/04/2019 ENEL - MARZO 2019;21-05-2019;600;0;120;1;Spese correnti;3;Acquisto di beni e servizi;2;Acquisto di servizi;5;Utenze e canoni;4;Energia elettrica;21-05-2019;
694;7;0;"-24,75";"1,62";ENEL ENERGIA S.P.A.;7134285639;SALDO Fatt.n. 003027080673  del 27/04/2019 ENEL - MARZO 2019;21-05-2019;600;0;120;1;Spese correnti;3;Acquisto di beni e servizi;2;Acquisto di servizi;5;Utenze e canoni;4;Energia elettrica;21-05-2019;
694;8;0;"-9,94";"1,62";ENEL ENERGIA S.P.A.;7134285639;SALDO Fatt.n. 003027074364  del 27/04/2019 ENEL - MARZO 2019;21-05-2019;600;0;120;1;Spese correnti;3;Acquisto di beni e servizi;2;Acquisto di servizi;5;Utenze e canoni;4;Energia elettrica;21-05-2019;
694;9;0;"-9,94";"1,62";ENEL ENERGIA S.P.A.;7134285639;SALDO Fatt.n. 003027074363  del 27/04/2019 ENEL - MARZO 2019;21-05-2019;600;0;120;1;Spese correnti;3;Acquisto di beni e servizi;2;Acquisto di servizi;5;Utenze e canoni;4;Energia elettrica;21-05-2019;
694;10;0;"27,30";"1,62";ENEL ENERGIA S.P.A.;7134285639;SALDO Fatt.n. 003027519896  del 29/04/2019 ENEL - MARZO 2019;21-05-2019;600;0;120;1;Spese correnti;3;Acquisto di beni e servizi;2;Acquisto di servizi;5;Utenze e canoni;4;Energia elettrica;21-05-2019;
694;11;0;"92,82";"1,62";ENEL ENERGIA S.P.A.;7134285639;SALDO Fatt.n. 003027519892  del 29/04/2019 ENEL - MARZO 2019;21-05-2019;600;0;120;1;Spese correnti;3;Acquisto di beni e servizi;2;Acquisto di servizi;5;Utenze e canoni;4;Energia elettrica;21-05-2019;
694;12;0;"163,77";"1,62";ENEL ENERGIA S.P.A.;7134285639;SALDO Fatt.n. 003027519873  del 29/04/2019 ENEL - MARZO 2019;21-05-2019;600;0;120;1;Spese correnti;3;Acquisto di beni e servizi;2;Acquisto di servizi;5;Utenze e canoni;4;Energia elettrica;21-05-2019;
694;13;0;"472,92";"1,62";ENEL ENERGIA S.P.A.;7134285639;SALDO Fatt.n. 003027519868  del 29/04/2019 ENEL - MARZO 2019;21-05-2019;600;0;120;1;Spese correnti;3;Acquisto di beni e servizi;2;Acquisto di servizi;5;Utenze e canoni;4;Energia elettrica;21-05-2019;
694;14;0;"548,89";"1,62";ENEL ENERGIA S.P.A.;7134285639;SALDO Fatt.n. 003027519893  del 29/04/2019 ENEL - MARZO 2019;21-05-2019;600;0;120;1;Spese correnti;3;Acquisto di beni e servizi;2;Acquisto di servizi;5;Utenze e canoni;4;Energia elettrica;21-05-2019;
695;1;0;"-567,13";"34,82";ENEL ENERGIA S.P.A.;7134285639;SALDO Fatt.n. 003027199315  del 27/04/2019 ENEL - MARZO 2019;21-05-2019;600;0;120;1;Spese correnti;3;Acquisto di beni e servizi;2;Acquisto di servizi;5;Utenze e canoni;4;Energia elettrica;21-05-2019;
695;2;0;"-354,50";"34,82";ENEL ENERGIA S.P.A.;7134285639;SALDO Fatt.n. 003027074341  del 27/04/2019 ENEL - MARZO 2019;21-05-2019;600;0;120;1;Spese correnti;3;Acquisto di beni e servizi;2;Acquisto di servizi;5;Utenze e canoni;4;Energia elettrica;21-05-2019;
695;3;0;"-252,52";"34,82";ENEL ENERGIA S.P.A.;7134285639;SALDO Fatt.n. 003027074367  del 27/04/2019 ENEL - MARZO 2019;21-05-2019;600;0;120;1;Spese correnti;3;Acquisto di beni e servizi;2;Acquisto di servizi;5;Utenze e canoni;4;Energia elettrica;21-05-2019;
695;4;0;"-150,69";"34,82";ENEL ENERGIA S.P.A.;7134285639;SALDO Fatt.n. 003027074357  del 27/04/2019 ENEL - MARZO 2019;21-05-2019;600;0;120;1;Spese correnti;3;Acquisto di beni e servizi;2;Acquisto di servizi;5;Utenze e canoni;4;Energia elettrica;21-05-2019;
695;5;0;"-47,96";"34,82";ENEL ENERGIA S.P.A.;7134285639;SALDO Fatt.n. 003027074340  del 27/04/2019 ENEL - MARZO 2019;21-05-2019;600;0;120;1;Spese correnti;3;Acquisto di beni e servizi;2;Acquisto di servizi;5;Utenze e canoni;4;Energia elettrica;21-05-2019;
695;6;0;"-27,79";"34,82";ENEL ENERGIA S.P.A.;7134285639;SALDO Fatt.n. 003027199321  del 27/04/2019 ENEL - MARZO 2019;21-05-2019;600;0;120;1;Spese correnti;3;Acquisto di beni e servizi;2;Acquisto di servizi;5;Utenze e canoni;4;Energia elettrica;21-05-2019;
695;7;0;"-23,12";"34,82";ENEL ENERGIA S.P.A.;7134285639;SALDO Fatt.n. 003027199319  del 27/04/2019 ENEL - MARZO 2019;21-05-2019;600;0;120;1;Spese correnti;3;Acquisto di beni e servizi;2;Acquisto di servizi;5;Utenze e canoni;4;Energia elettrica;21-05-2019;
695;8;0;"17,24";"34,82";ENEL ENERGIA S.P.A.;7134285639;SALDO Fatt.n. 003027519869  del 29/04/2019 ENEL - MARZO 2019;21-05-2019;600;0;120;1;Spese correnti;3;Acquisto di beni e servizi;2;Acquisto di servizi;5;Utenze e canoni;4;Energia elettrica;21-05-2019;
695;9;0;"47,19";"34,82";ENEL ENERGIA S.P.A.;7134285639;SALDO Fatt.n. 003027519863  del 29/04/2019 ENEL - MARZO 2019;21-05-2019;600;0;120;1;Spese correnti;3;Acquisto di beni e servizi;2;Acquisto di servizi;5;Utenze e canoni;4;Energia elettrica;21-05-2019;
695;10;0;"119,44";"34,82";ENEL ENERGIA S.P.A.;7134285639;SALDO Fatt.n. 003027519889  del 29/04/2019 ENEL - MARZO 2019;21-05-2019;600;0;120;1;Spese correnti;3;Acquisto di beni e servizi;2;Acquisto di servizi;5;Utenze e canoni;4;Energia elettrica;21-05-2019;
695;11;0;"232,32";"34,82";ENEL ENERGIA S.P.A.;7134285639;SALDO Fatt.n. 003027519874  del 29/04/2019 ENEL - MARZO 2019;21-05-2019;600;0;120;1;Spese correnti;3;Acquisto di beni e servizi;2;Acquisto di servizi;5;Utenze e canoni;4;Energia elettrica;21-05-2019;
695;12;0;"1.042,34";"34,82";ENEL ENERGIA S.P.A.;7134285639;SALDO Fatt.n. 003027519855  del 29/04/2019 ENEL - MARZO 2019;21-05-2019;600;0;120;1;Spese correnti;3;Acquisto di beni e servizi;2;Acquisto di servizi;5;Utenze e canoni;4;Energia elettrica;21-05-2019;
696;1;0;"-483,72";"18,76";ENEL ENERGIA S.P.A.;7134285639;SALDO Fatt.n. 003027074345  del 27/04/2019 ENEL - MARZO 2019;21-05-2019;600;0;120;1;Spese correnti;3;Acquisto di beni e servizi;2;Acquisto di servizi;5;Utenze e canoni;4;Energia elettrica;21-05-2019;
696;2;0;"-55,03";"18,76";ENEL ENERGIA S.P.A.;7134285639;SALDO Fatt.n. 003027074335  del 27/04/2019 ENEL - MARZO 2019;21-05-2019;600;0;120;1;Spese correnti;3;Acquisto di beni e servizi;2;Acquisto di servizi;5;Utenze e canoni;4;Energia elettrica;21-05-2019;
696;3;0;"-44,79";"18,76";ENEL ENERGIA S.P.A.;7134285639;SALDO Fatt.n. 003027074354  del 27/04/2019 ENEL - MARZO 2019;21-05-2019;600;0;120;1;Spese correnti;3;Acquisto di beni e servizi;2;Acquisto di servizi;5;Utenze e canoni;4;Energia elettrica;21-05-2019;
696;4;0;"-42,68";"18,76";ENEL ENERGIA S.P.A.;7134285639;SALDO Fatt.n. 003027074344  del 27/04/2019 ENEL - MARZO 2019;21-05-2019;600;0;120;1;Spese correnti;3;Acquisto di beni e servizi;2;Acquisto di servizi;5;Utenze e canoni;4;Energia elettrica;21-05-2019;
696;5;0;"-30,00";"18,76";ENEL ENERGIA S.P.A.;7134285639;SALDO Fatt.n. 003027074337  del 27/04/2019 ENEL - MARZO 2019;21-05-2019;600;0;120;1;Spese correnti;3;Acquisto di beni e servizi;2;Acquisto di servizi;5;Utenze e canoni;4;Energia elettrica;21-05-2019;
696;6;0;"44,09";"18,76";ENEL ENERGIA S.P.A.;7134285639;SALDO Fatt.n. 003027519876  del 29/04/2019 ENEL - MARZO 2019;21-05-2019;600;0;120;1;Spese correnti;3;Acquisto di beni e servizi;2;Acquisto di servizi;5;Utenze e canoni;4;Energia elettrica;21-05-2019;
696;7;0;"59,28";"18,76";ENEL ENERGIA S.P.A.;7134285639;SALDO Fatt.n. 003027519871  del 29/04/2019 ENEL - MARZO 2019;21-05-2019;600;0;120;1;Spese correnti;3;Acquisto di beni e servizi;2;Acquisto di servizi;5;Utenze e canoni;4;Energia elettrica;21-05-2019;
696;8;0;"131,67";"18,76";ENEL ENERGIA S.P.A.;7134285639;SALDO Fatt.n. 003027519852  del 29/04/2019 ENEL - MARZO 2019;21-05-2019;600;0;120;1;Spese correnti;3;Acquisto di beni e servizi;2;Acquisto di servizi;5;Utenze e canoni;4;Energia elettrica;21-05-2019;
696;9;0;"203,15";"18,76";ENEL ENERGIA S.P.A.;7134285639;SALDO Fatt.n. 003027519870  del 29/04/2019 ENEL - MARZO 2019;21-05-2019;600;0;120;1;Spese correnti;3;Acquisto di beni e servizi;2;Acquisto di servizi;5;Utenze e canoni;4;Energia elettrica;21-05-2019;
696;10;0;"236,79";"18,76";ENEL ENERGIA S.P.A.;7134285639;SALDO Fatt.n. 003027519881  del 29/04/2019 ENEL - MARZO 2019;21-05-2019;600;0;120;1;Spese correnti;3;Acquisto di beni e servizi;2;Acquisto di servizi;5;Utenze e canoni;4;Energia elettrica;21-05-2019;
697;1;0;"-355,87";"67,66";ENEL ENERGIA S.P.A.;7134285639;SALDO Fatt.n. 003027074332  del 27/04/2019 ENEL - MARZO 2019;21-05-2019;600;0;120;1;Spese correnti;3;Acquisto di beni e servizi;2;Acquisto di servizi;5;Utenze e canoni;4;Energia elettrica;21-05-2019;
697;2;0;"-240,71";"67,66";ENEL ENERGIA S.P.A.;7134285639;SALDO Fatt.n. 003027074359  del 27/04/2019 ENEL - MARZO 2019;21-05-2019;600;0;120;1;Spese correnti;3;Acquisto di beni e servizi;2;Acquisto di servizi;5;Utenze e canoni;4;Energia elettrica;21-05-2019;
697;3;0;"-236,08";"67,66";ENEL ENERGIA S.P.A.;7134285639;SALDO Fatt.n. 003027074351  del 27/04/2019 ENEL - MARZO 2019;21-05-2019;600;0;120;1;Spese correnti;3;Acquisto di beni e servizi;2;Acquisto di servizi;5;Utenze e canoni;4;Energia elettrica;21-05-2019;
697;4;0;"-188,53";"67,66";ENEL ENERGIA S.P.A.;7134285639;SALDO Fatt.n. 003027074330  del 27/04/2019 ENEL - MARZO 2019;21-05-2019;600;0;120;1;Spese correnti;3;Acquisto di beni e servizi;2;Acquisto di servizi;5;Utenze e canoni;4;Energia elettrica;21-05-2019;
697;5;0;"54,09";"67,66";ENEL ENERGIA S.P.A.;7134285639;SALDO Fatt.n. 003027519859  del 29/04/2019 ENEL - MAGGIO 2019;21-05-2019;600;0;120;1;Spese correnti;3;Acquisto di beni e servizi;2;Acquisto di servizi;5;Utenze e canoni;4;Energia elettrica;21-05-2019;
697;6;0;"62,11";"67,66";ENEL ENERGIA S.P.A.;7134285639;SALDO Fatt.n. 003027519864  del 29/04/2019 ENEL - MARZO 2019;21-05-2019;600;0;120;1;Spese correnti;3;Acquisto di beni e servizi;2;Acquisto di servizi;5;Utenze e canoni;4;Energia elettrica;21-05-2019;
697;7;0;"71,09";"67,66";ENEL ENERGIA S.P.A.;7134285639;SALDO Fatt.n. 003027519884  del 29/04/2019 ENEL - MARZO 2019;21-05-2019;600;0;120;1;Spese correnti;3;Acquisto di beni e servizi;2;Acquisto di servizi;5;Utenze e canoni;4;Energia elettrica;21-05-2019;
697;8;0;"255,19";"67,66";ENEL ENERGIA S.P.A.;7134285639;SALDO Fatt.n. 003027519885  del 29/04/2019 ENEL - MARZO 2019;21-05-2019;600;0;120;1;Spese correnti;3;Acquisto di beni e servizi;2;Acquisto di servizi;5;Utenze e canoni;4;Energia elettrica;21-05-2019;
697;9;0;"646,37";"67,66";ENEL ENERGIA S.P.A.;7134285639;SALDO Fatt.n. 003027519862  del 29/04/2019 ENEL - MARZO 2019;21-05-2019;600;0;120;1;Spese correnti;3;Acquisto di beni e servizi;2;Acquisto di servizi;5;Utenze e canoni;4;Energia elettrica;21-05-2019;
698;1;0;"-547,07";"32,48";ENEL ENERGIA S.P.A.;7134285639;SALDO Fatt.n. 003027074333  del 27/04/2019 ENEL - MARZO 2019;21-05-2019;600;0;120;1;Spese correnti;3;Acquisto di beni e servizi;2;Acquisto di servizi;5;Utenze e canoni;4;Energia elettrica;21-05-2019;
698;2;0;"-299,30";"32,48";ENEL ENERGIA S.P.A.;7134285639;SALDO Fatt.n. 003027074371  del 27/04/2019 ENEL - MARZO 2019;21-05-2019;600;0;120;1;Spese correnti;3;Acquisto di beni e servizi;2;Acquisto di servizi;5;Utenze e canoni;4;Energia elettrica;21-05-2019;
698;3;0;"22,81";"32,48";ENEL ENERGIA S.P.A.;7134285639;SALDO Fatt.n. 003027519894  del 29/04/2019 ENEL - MARZO 2019;21-05-2019;600;0;120;1;Spese correnti;3;Acquisto di beni e servizi;2;Acquisto di servizi;5;Utenze e canoni;4;Energia elettrica;21-05-2019;
698;4;0;"38,54";"32,48";ENEL ENERGIA S.P.A.;7134285639;SALDO Fatt.n. 003027519866  del 29/04/2019 ENEL - MARZO 2019;21-05-2019;600;0;120;1;Spese correnti;3;Acquisto di beni e servizi;2;Acquisto di servizi;5;Utenze e canoni;4;Energia elettrica;21-05-2019;
698;5;0;"41,87";"32,48";ENEL ENERGIA S.P.A.;7134285639;SALDO Fatt.n. 003027519867  del 29/04/2019 ENEL - MARZO 2019;21-05-2019;600;0;120;1;Spese correnti;3;Acquisto di beni e servizi;2;Acquisto di servizi;5;Utenze e canoni;4;Energia elettrica;21-05-2019;
698;6;0;"86,55";"32,48";ENEL ENERGIA S.P.A.;7134285639;SALDO Fatt.n. 003027519887  del 29/04/2019 ENEL - MARZO 2019;21-05-2019;600;0;120;1;Spese correnti;3;Acquisto di beni e servizi;2;Acquisto di servizi;5;Utenze e canoni;4;Energia elettrica;21-05-2019;
698;7;0;"148,14";"32,48";ENEL ENERGIA S.P.A.;7134285639;SALDO Fatt.n. 003027519879  del 29/04/2019 ENEL - MARZO 2019;21-05-2019;600;0;120;1;Spese correnti;3;Acquisto di beni e servizi;2;Acquisto di servizi;5;Utenze e canoni;4;Energia elettrica;21-05-2019;
698;8;0;"256,75";"32,48";ENEL ENERGIA S.P.A.;7134285639;SALDO Fatt.n. 003027519875  del 29/04/2019 ENEL - MARZO 2019;21-05-2019;600;0;120;1;Spese correnti;3;Acquisto di beni e servizi;2;Acquisto di servizi;5;Utenze e canoni;4;Energia elettrica;21-05-2019;
698;9;0;"284,19";"32,48";ENEL ENERGIA S.P.A.;7134285639;SALDO Fatt.n. 003027519897  del 29/04/2019 ENEL - MARZO 2019;21-05-2019;600;0;120;1;Spese correnti;3;Acquisto di beni e servizi;2;Acquisto di servizi;5;Utenze e canoni;4;Energia elettrica;21-05-2019;
699;1;0;"-94,35";"226,27";ENEL ENERGIA S.P.A.;7134285639;SALDO Fatt.n. 003027199316  del 27/04/2019 ENEL - MARZO 2019;21-05-2019;413;0;115;1;Spese correnti;3;Acquisto di beni e servizi;2;Acquisto di servizi;5;Utenze e canoni;4;Energia elettrica;21-05-2019;
699;2;0;"-87,97";"226,27";ENEL ENERGIA S.P.A.;7134285639;SALDO Fatt.n. 003027074368  del 27/04/2019 ENEL - MARZO 2019;21-05-2019;413;0;115;1;Spese correnti;3;Acquisto di beni e servizi;2;Acquisto di servizi;5;Utenze e canoni;4;Energia elettrica;21-05-2019;
699;3;0;"-85,66";"226,27";ENEL ENERGIA S.P.A.;7134285639;SALDO Fatt.n. 003027074355  del 27/04/2019 ENEL - MARZO 2019;21-05-2019;413;0;115;1;Spese correnti;3;Acquisto di beni e servizi;2;Acquisto di servizi;5;Utenze e canoni;4;Energia elettrica;21-05-2019;
699;4;0;"32,07";"226,27";ENEL ENERGIA S.P.A.;7134285639;SALDO Fatt.n. 003027519861  del 29/04/2019 ENEL - MARZO 2019;21-05-2019;413;0;115;1;Spese correnti;3;Acquisto di beni e servizi;2;Acquisto di servizi;5;Utenze e canoni;4;Energia elettrica;21-05-2019;
699;5;0;"53,30";"226,27";ENEL ENERGIA S.P.A.;7134285639;SALDO Fatt.n. 003027519880  del 29/04/2019 ENEL - MARZO 2019;21-05-2019;413;0;115;1;Spese correnti;3;Acquisto di beni e servizi;2;Acquisto di servizi;5;Utenze e canoni;4;Energia elettrica;21-05-2019;
699;6;0;"76,38";"226,27";ENEL ENERGIA S.P.A.;7134285639;SALDO Fatt.n. 003027519853  del 29/04/2019 ENEL - MARZO 2019;21-05-2019;413;0;115;1;Spese correnti;3;Acquisto di beni e servizi;2;Acquisto di servizi;5;Utenze e canoni;4;Energia elettrica;21-05-2019;
699;7;0;"84,05";"226,27";ENEL ENERGIA S.P.A.;7134285639;SALDO Fatt.n. 003027519877  del 29/04/2019 ENEL - MARZO 2019;21-05-2019;413;0;115;1;Spese correnti;3;Acquisto di beni e servizi;2;Acquisto di servizi;5;Utenze e canoni;4;Energia elettrica;21-05-2019;
699;8;0;"248,45";"226,27";ENEL ENERGIA S.P.A.;7134285639;SALDO Fatt.n. 003027519886  del 29/04/2019 ENEL - MARZO 2019;21-05-2019;413;0;115;1;Spese correnti;3;Acquisto di beni e servizi;2;Acquisto di servizi;5;Utenze e canoni;4;Energia elettrica;21-05-2019;
700;1;0;"-534,80";"110,65";ENEL ENERGIA S.P.A.;7134285639;SALDO Fatt.n. 003027074360  del 27/04/2019 ENEL - MARZO 2019;21-05-2019;530;0;118;1;Spese correnti;3;Acquisto di beni e servizi;2;Acquisto di servizi;5;Utenze e canoni;4;Energia elettrica;21-05-2019;
700;2;0;"-316,76";"110,65";ENEL ENERGIA S.P.A.;7134285639;SALDO Fatt.n. 003027074342  del 27/04/2019 ENEL - MARZO 2019;21-05-2019;530;0;118;1;Spese correnti;3;Acquisto di beni e servizi;2;Acquisto di servizi;5;Utenze e canoni;4;Energia elettrica;21-05-2019;
700;3;0;"237,14";"110,65";ENEL ENERGIA S.P.A.;7134285639;SALDO Fatt.n. 003027519883  del 29/04/2019 ENEL - MARZO 2019;21-05-2019;530;0;118;1;Spese correnti;3;Acquisto di beni e servizi;2;Acquisto di servizi;5;Utenze e canoni;4;Energia elettrica;21-05-2019;
700;4;0;"725,07";"110,65";ENEL ENERGIA S.P.A.;7134285639;SALDO Fatt.n. 003027519872  del 29/04/2019 ENEL - MARZO 2019;21-05-2019;530;0;118;1;Spese correnti;3;Acquisto di beni e servizi;2;Acquisto di servizi;5;Utenze e canoni;4;Energia elettrica;21-05-2019;
701;1;0;"151,18";"540,09";ENEL ENERGIA S.P.A.;7134285639;SALDO Fatt.n. 003027519895  del 29/04/2019 ENEL - MARZO 2019;21-05-2019;235;0;113;1;Spese correnti;3;Acquisto di beni e servizi;2;Acquisto di servizi;5;Utenze e canoni;4;Energia elettrica;21-05-2019;
701;2;0;"388,91";"540,09";ENEL ENERGIA S.P.A.;7134285639;SALDO Fatt.n. 003027519858  del 29/04/2019 ENEL - MARZO 2019;21-05-2019;235;0;113;1;Spese correnti;3;Acquisto di beni e servizi;2;Acquisto di servizi;5;Utenze e canoni;4;Energia elettrica;21-05-2019;
702;1;0;"19,76";"19,76";ABACO S.P.A.;ZB919D1F1A;SALDO Fatt.n. 2019140001583  del 02/05/2019 RISCOSSIONE COATTIVA DEI TRIBUTI IMU TASI;21-05-2019;121;0;475;1;Spese correnti;3;Acquisto di beni e servizi;2;Acquisto di servizi;3;Aggi di riscossione;999;Altri aggi di riscossione n.a.c.;21-05-2019;
703;1;0;"1.262,00";"4.852,00";ILONA MARZYNSKA;Z8822A9637;ACCONTO Fatt.n. FPA 2/19  del 06/05/2019 ACCONTO ONORARIO PER LAVORI AL MUSEO;21-05-2019;780;0;134;2;Spese in conto capitale;2;Investimenti fissi lordi e acquisto di terreni;1;Beni materiali;9;Beni immobili;999;Beni immobili n.a.c.;21-05-2019;
703;2;0;"3.590,00";"4.852,00";ILONA MARZYNSKA;Z8822A9637;SALDO Fatt.n. FPA 1/19  del 06/05/2019 ACCONTO ONORARIO PER LAVORI DI SISTEMAZIONE SPAZI PUBBLICI;21-05-2019;780;0;134;2;Spese in conto capitale;2;Investimenti fissi lordi e acquisto di terreni;1;Beni materiali;9;Beni immobili;999;Beni immobili n.a.c.;21-05-2019;
704;1;0;"1.470,00";"1.470,00";ILONA MARZYNSKA;ZD121DECDA;SALDO Fatt.n. FPA 2/19  del 06/05/2019 ACCONTO ONORARIO PER LAVORI AL MUSEO;21-05-2019;785;0;604;2;Spese in conto capitale;2;Investimenti fissi lordi e acquisto di terreni;1;Beni materiali;10;"Beni immobili di valore culturale, storico ed artistico";8;"Musei, teatri e biblioteche di valore culturale, storico ed artistico";21-05-2019;
705;1;0;"53,00";"416,34";KUWAIT PETROLEUM ITALIA S.P.A.;Z4E197F01F;SALDO Fatt.n. PJ00982917  del 31/03/2019 FORNITURA CARBURANTE AUTO UFFICIO SOCIALE - MARZO 2019;22-05-2019;571;0;155;1;Spese correnti;3;Acquisto di beni e servizi;1;Acquisto di beni;2;Altri beni di consumo;2;"Carburanti, combustibili e lubrificanti";22-05-2019;
705;2;0;"61,01";"416,34";KUWAIT PETROLEUM ITALIA S.P.A.;Z4E197F01F;SALDO Fatt.n. PJ01103373  del 30/04/2019 FORNITURA CARBURANTE AUTO UFFICIO SOCIALE - APRILE 2019;22-05-2019;571;0;155;1;Spese correnti;3;Acquisto di beni e servizi;1;Acquisto di beni;2;Altri beni di consumo;2;"Carburanti, combustibili e lubrificanti";22-05-2019;
705;3;0;"64,01";"416,34";KUWAIT PETROLEUM ITALIA S.P.A.;Z4E197F01F;SALDO Fatt.n. PJ00982919  del 31/03/2019 FORNITURA CARBURANTE AUTO UFFICIO SOCIALE - MARZO 2019;22-05-2019;571;0;155;1;Spese correnti;3;Acquisto di beni e servizi;1;Acquisto di beni;2;Altri beni di consumo;2;"Carburanti, combustibili e lubrificanti";22-05-2019;
705;4;0;"115,01";"416,34";KUWAIT PETROLEUM ITALIA S.P.A.;Z4E197F01F;SALDO Fatt.n. PJ00863871  del 28/02/2019 FORNITURA CARBURANTE AUTO UFFICIO SOCIALE -FEBBRAIO 2019;22-05-2019;571;0;155;1;Spese correnti;3;Acquisto di beni e servizi;1;Acquisto di beni;2;Altri beni di consumo;2;"Carburanti, combustibili e lubrificanti";22-05-2019;
705;5;0;"123,31";"416,34";KUWAIT PETROLEUM ITALIA S.P.A.;Z4E197F01F;SALDO Fatt.n. PJ01103376  del 30/04/2019 FORNITURA CARBURANTE AUTO UFFICIO SOCIALE - APRILE 2019;22-05-2019;571;0;155;1;Spese correnti;3;Acquisto di beni e servizi;1;Acquisto di beni;2;Altri beni di consumo;2;"Carburanti, combustibili e lubrificanti";22-05-2019;
706;1;0;"-1.367,79";"47,46";ENEL ENERGIA S.P.A.;7134285639;SALDO Fatt.n. 003027074369  del 27/04/2019 ENEL - MARZO 2019;22-05-2019;600;0;120;1;Spese correnti;3;Acquisto di beni e servizi;2;Acquisto di servizi;5;Utenze e canoni;4;Energia elettrica;22-05-2019;
706;2;0;"-265,11";"47,46";ENEL ENERGIA S.P.A.;7134285639;SALDO Fatt.n. 003027074352  del 27/04/2019 ENEL  - MARZO 2019;22-05-2019;600;0;120;1;Spese correnti;3;Acquisto di beni e servizi;2;Acquisto di servizi;5;Utenze e canoni;4;Energia elettrica;22-05-2019;
706;3;0;"-240,39";"47,46";ENEL ENERGIA S.P.A.;7134285639;SALDO Fatt.n. 003027074362  del 27/04/2019 ENEL - MARZO 2019;22-05-2019;600;0;120;1;Spese correnti;3;Acquisto di beni e servizi;2;Acquisto di servizi;5;Utenze e canoni;4;Energia elettrica;22-05-2019;
706;4;0;"-206,55";"47,46";ENEL ENERGIA S.P.A.;7134285639;SALDO Fatt.n. 003027074347  del 27/04/2019 ENEL - MARZO 2019;22-05-2019;600;0;120;1;Spese correnti;3;Acquisto di beni e servizi;2;Acquisto di servizi;5;Utenze e canoni;4;Energia elettrica;22-05-2019;
706;5;0;"-157,18";"47,46";ENEL ENERGIA S.P.A.;7134285639;SALDO Fatt.n. 003027199320  del 27/04/2019 ENEL - MARZO 2019;22-05-2019;600;0;120;1;Spese correnti;3;Acquisto di beni e servizi;2;Acquisto di servizi;5;Utenze e canoni;4;Energia elettrica;22-05-2019;
706;6;0;"-94,84";"47,46";ENEL ENERGIA S.P.A.;7134285639;SALDO Fatt.n. 003027074346  del 27/04/2019 ENEL - MARZO 2019;22-05-2019;600;0;120;1;Spese correnti;3;Acquisto di beni e servizi;2;Acquisto di servizi;5;Utenze e canoni;4;Energia elettrica;22-05-2019;
706;7;0;"-76,40";"47,46";ENEL ENERGIA S.P.A.;7134285639;SALDO Fatt.n. 003027074329  del 27/04/2019 ENEL - MARZO 2019;22-05-2019;600;0;120;1;Spese correnti;3;Acquisto di beni e servizi;2;Acquisto di servizi;5;Utenze e canoni;4;Energia elettrica;22-05-2019;
706;8;0;"-73,57";"47,46";ENEL ENERGIA S.P.A.;7134285639;SALDO Fatt.n. 003027074365  del 27/04/2019 ENEL  - MARZO 2019;22-05-2019;600;0;120;1;Spese correnti;3;Acquisto di beni e servizi;2;Acquisto di servizi;5;Utenze e canoni;4;Energia elettrica;22-05-2019;
706;9;0;"-60,43";"47,46";ENEL ENERGIA S.P.A.;7134285639;SALDO Fatt.n. 003027074348  del 27/04/2019 ENEL - MARZO 2019;22-05-2019;600;0;120;1;Spese correnti;3;Acquisto di beni e servizi;2;Acquisto di servizi;5;Utenze e canoni;4;Energia elettrica;22-05-2019;
706;10;0;"-20,15";"47,46";ENEL ENERGIA S.P.A.;7134285639;SALDO Fatt.n. 003027199323  del 27/04/2019 ENEL - MARZO 2019;22-05-2019;600;0;120;1;Spese correnti;3;Acquisto di beni e servizi;2;Acquisto di servizi;5;Utenze e canoni;4;Energia elettrica;22-05-2019;
706;11;0;"185,39";"47,46";ENEL ENERGIA S.P.A.;7134285639;SALDO Fatt.n. 003027519854  del 29/04/2019 ENEL - MARZO 2019;22-05-2019;600;0;120;1;Spese correnti;3;Acquisto di beni e servizi;2;Acquisto di servizi;5;Utenze e canoni;4;Energia elettrica;22-05-2019;
706;12;0;"206,59";"47,46";ENEL ENERGIA S.P.A.;7134285639;SALDO Fatt.n. 003027519898  del 29/04/2019 ENEL - MARZO 2019;22-05-2019;600;0;120;1;Spese correnti;3;Acquisto di beni e servizi;2;Acquisto di servizi;5;Utenze e canoni;4;Energia elettrica;22-05-2019;
706;13;0;"311,62";"47,46";ENEL ENERGIA S.P.A.;7134285639;SALDO Fatt.n. 003027519865  del 29/04/2019 ENEL - MARZO 2019;22-05-2019;600;0;120;1;Spese correnti;3;Acquisto di beni e servizi;2;Acquisto di servizi;5;Utenze e canoni;4;Energia elettrica;22-05-2019;
706;14;0;"556,14";"47,46";ENEL ENERGIA S.P.A.;7134285639;SALDO Fatt.n. 003027519891  del 29/04/2019 ENEL - MARZO 2019;22-05-2019;600;0;120;1;Spese correnti;3;Acquisto di beni e servizi;2;Acquisto di servizi;5;Utenze e canoni;4;Energia elettrica;22-05-2019;
706;15;0;"1.350,13";"47,46";ENEL ENERGIA S.P.A.;7134285639;SALDO Fatt.n. 003027519888  del 29/04/2019 ENEL - MARZO 2019;22-05-2019;600;0;120;1;Spese correnti;3;Acquisto di beni e servizi;2;Acquisto di servizi;5;Utenze e canoni;4;Energia elettrica;22-05-2019;
707;1;0;"61,00";"168,04";KUWAIT PETROLEUM ITALIA S.P.A.;Z4E197F01F;SALDO Fatt.n. PJ00749092  del 31/01/2019 CARBURANTE AUTO UFFICIO SOCIALE - DICEMBRE 2018;22-05-2019;571;0;155;1;Spese correnti;3;Acquisto di beni e servizi;1;Acquisto di beni;2;Altri beni di consumo;2;"Carburanti, combustibili e lubrificanti";22-05-2019;
707;2;0;"107,04";"168,04";KUWAIT PETROLEUM ITALIA S.P.A.;Z4E197F01F;SALDO Fatt.n. PJ00749094  del 31/01/2019 CARBURANTE AUTO UFFICI SOCIALE - DICEMBRE 2018;22-05-2019;571;0;155;1;Spese correnti;3;Acquisto di beni e servizi;1;Acquisto di beni;2;Altri beni di consumo;2;"Carburanti, combustibili e lubrificanti";22-05-2019;
708;1;0;"56,43";"56,43";ENEL ENERGIA S.P.A.;7134285639;SALDO Fatt.n. 003027519860  del 29/04/2019 ENEL - MARZO 2019;22-05-2019;600;0;120;1;Spese correnti;3;Acquisto di beni e servizi;2;Acquisto di servizi;5;Utenze e canoni;4;Energia elettrica;22-05-2019;
709;1;0;"2.892,19";"2.892,19";CASA DI RIPOSO 'AITA'; ;ACCONTO Fatt.n. 175/B  del 09/05/2019 SERVIZIO DI A.D.  -MESI DI FEBBRAIO E MARZO 2019;28-05-2019;562;1;341;1;Spese correnti;3;Acquisto di beni e servizi;2;Acquisto di servizi;15;Contratti di servizio pubblico;9;Contratti di servizio di assistenza sociale domiciliare;28-05-2019;
710;1;0;"1.700,06";"1.700,06";CASA DI RIPOSO 'AITA'; ;SALDO Fatt.n. 175/B  del 09/05/2019 SERVIZIO DI A.D.  -MESI DI FEBBRAIO E MARZO 2019;28-05-2019;562;1;240;1;Spese correnti;3;Acquisto di beni e servizi;2;Acquisto di servizi;15;Contratti di servizio pubblico;9;Contratti di servizio di assistenza sociale domiciliare;28-05-2019;
711;1;0;"653,58";"4.384,19";BIM PIAVE NUOVE ENERGIE S.R.L.; ;"ACCONTO Fatt.n. 9000791  del 02/05/2019 Anno termico 2018/2019: gennaio, febbraio 2019 - Centro La Roggia";28-05-2019;34;0;197;1;Spese correnti;3;Acquisto di beni e servizi;2;Acquisto di servizi;5;Utenze e canoni;6;Gas;28-05-2019;
711;2;0;"3.730,61";"4.384,19";BIM PIAVE NUOVE ENERGIE S.R.L.; ;"SALDO Fatt.n. 9000788  del 02/05/2019 Anno termico 2018/2019: gennaio, febbraio 2019 - Municipio";28-05-2019;34;0;197;1;Spese correnti;3;Acquisto di beni e servizi;2;Acquisto di servizi;5;Utenze e canoni;6;Gas;28-05-2019;
712;1;0;"1.805,70";"1.805,70";BIM PIAVE NUOVE ENERGIE S.R.L.; ;"SALDO Fatt.n. 9000791  del 02/05/2019 Anno termico 2018/2019: gennaio, febbraio 2019 - Centro La Roggia";28-05-2019;311;0;202;1;Spese correnti;3;Acquisto di beni e servizi;2;Acquisto di servizi;5;Utenze e canoni;6;Gas;28-05-2019;
713;1;0;"2.755,10";"2.755,10";BIM PIAVE NUOVE ENERGIE S.R.L.; ;"SALDO Fatt.n. 9000790  del 02/05/2019 Anno termico 2018/2019:gennaio, febbraio 2019 - Villa Rubelli";28-05-2019;310;0;201;1;Spese correnti;3;Acquisto di beni e servizi;2;Acquisto di servizi;5;Utenze e canoni;6;Gas;28-05-2019;
714;1;0;"7.854,42";"7.854,42";BIM PIAVE NUOVE ENERGIE S.R.L.; ;"SALDO Fatt.n. 9000795  del 02/05/2019 Anno termico 2018/2019: gennaio, febbraio 2019 - Palestra";28-05-2019;530;0;200;1;Spese correnti;3;Acquisto di beni e servizi;2;Acquisto di servizi;5;Utenze e canoni;6;Gas;28-05-2019;
715;1;0;"933,89";"18.955,82";BIM PIAVE NUOVE ENERGIE S.R.L.; ;"SALDO Fatt.n. 9000789  del 02/05/2019 Anno termico 2018/2019: gennaio, febbraio 2019 - Centro Culturale";28-05-2019;252;0;199;1;Spese correnti;3;Acquisto di beni e servizi;2;Acquisto di servizi;5;Utenze e canoni;6;Gas;28-05-2019;
715;2;0;"1.519,05";"18.955,82";BIM PIAVE NUOVE ENERGIE S.R.L.; ;"SALDO Fatt.n. 9000793  del 02/05/2019 Anno termico 2018/2019: gennaio, febbraio 2019 Scuola Primaria";28-05-2019;252;0;199;1;Spese correnti;3;Acquisto di beni e servizi;2;Acquisto di servizi;5;Utenze e canoni;6;Gas;28-05-2019;
715;3;0;"3.072,47";"18.955,82";BIM PIAVE NUOVE ENERGIE S.R.L.; ;"SALDO Fatt.n. 9000794  del 02/05/2019 Anno termico 2018/2019 - Scuola Primaria-Gennaio, Febbraio 2019";28-05-2019;252;0;199;1;Spese correnti;3;Acquisto di beni e servizi;2;Acquisto di servizi;5;Utenze e canoni;6;Gas;28-05-2019;
715;4;0;"13.430,41";"18.955,82";BIM PIAVE NUOVE ENERGIE S.R.L.; ;"SALDO Fatt.n. 9000792  del 02/05/2019 Anno termico 2018/2019: gennaio, febbraio 2019 - Scuola Primaria/Secondaria";28-05-2019;252;0;199;1;Spese correnti;3;Acquisto di beni e servizi;2;Acquisto di servizi;5;Utenze e canoni;6;Gas;28-05-2019;
716;1;0;"539,04";"2.772,53";A.S. DI ANDREATTA GIUSEPPE & C. S.R.L.;Z572272F19;SALDO Fatt.n. 0316  del 30/04/2019 MANUTENZIONE IMPIANTI ELETTRICI ED. COMUNALI;28-05-2019;601;0;529;1;Spese correnti;3;Acquisto di beni e servizi;2;Acquisto di servizi;15;Contratti di servizio pubblico;15;Contratti di servizio per l'illuminazione pubblica;28-05-2019;
716;2;0;"951,03";"2.772,53";A.S. DI ANDREATTA GIUSEPPE & C. S.R.L.;Z572272F19;SALDO Fatt.n. 0236  del 30/03/2019 MANUTENZIONE IMPIANTI ELETTRICI EDIFICI COMUNALI;28-05-2019;601;0;529;1;Spese correnti;3;Acquisto di beni e servizi;2;Acquisto di servizi;15;Contratti di servizio pubblico;15;Contratti di servizio per l'illuminazione pubblica;28-05-2019;
716;3;0;"1.282,46";"2.772,53";A.S. DI ANDREATTA GIUSEPPE & C. S.R.L.;Z572272F19;SALDO Fatt.n. 0148  del 28/02/2019 SISTEMAZIONE PUNTO LUCE VIA RISORGIMENTO DANNEGGIATO;28-05-2019;601;0;529;1;Spese correnti;3;Acquisto di beni e servizi;2;Acquisto di servizi;15;Contratti di servizio pubblico;15;Contratti di servizio per l'illuminazione pubblica;28-05-2019;
717;1;0;"136,20";"136,20";ALTO TREVIGIANO SERVIZI S.R.L.;ZF9282AA1E;SALDO Fatt.n. O2201900002508  del 24/04/2019 SERVIZIO IDRICO CENTRO CULTURALE: GENNAIO-MARZO 2019;28-05-2019;311;0;206;1;Spese correnti;3;Acquisto di beni e servizi;2;Acquisto di servizi;5;Utenze e canoni;5;Acqua;28-05-2019;
718;1;0;"-3,45";"81,35";ALTO TREVIGIANO SERVIZI S.R.L.;ZF9282AA1E;SALDO Fatt.n. O2201900002511  del 24/04/2019 CONGUAGLIO SERVIZIO IDRICO STRADE: GENNAIO-MARZO 2019;28-05-2019;591;2;212;1;Spese correnti;3;Acquisto di beni e servizi;2;Acquisto di servizi;5;Utenze e canoni;5;Acqua;28-05-2019;
718;2;0;"3,30";"81,35";ALTO TREVIGIANO SERVIZI S.R.L.;ZF9282AA1E;SALDO Fatt.n. O2201900002514  del 24/04/2019 SERVIZIO IDRICO STRADE: GENNAIO-MARZO 2019;28-05-2019;591;2;212;1;Spese correnti;3;Acquisto di beni e servizi;2;Acquisto di servizi;5;Utenze e canoni;5;Acqua;28-05-2019;
718;3;0;"4,33";"81,35";ALTO TREVIGIANO SERVIZI S.R.L.;ZF9282AA1E;SALDO Fatt.n. O2201900002505  del 24/04/2019 SERVIZIO IDRICO STRADE: GENNAIO-MARZO 2019;28-05-2019;591;2;212;1;Spese correnti;3;Acquisto di beni e servizi;2;Acquisto di servizi;5;Utenze e canoni;5;Acqua;28-05-2019;
718;4;0;"4,35";"81,35";ALTO TREVIGIANO SERVIZI S.R.L.;ZF9282AA1E;SALDO Fatt.n. O2201900002517  del 24/04/2019 SERVIZIO IDRICO STRADE: GENNAIO - MARZO 2019;28-05-2019;591;2;212;1;Spese correnti;3;Acquisto di beni e servizi;2;Acquisto di servizi;5;Utenze e canoni;5;Acqua;28-05-2019;
718;5;0;"7,44";"81,35";ALTO TREVIGIANO SERVIZI S.R.L.;ZF9282AA1E;SALDO Fatt.n. O2201900002506  del 24/04/2019 SERVIZIO IDRICO STRADE: GENNAIO - MARZO 2019;28-05-2019;591;2;212;1;Spese correnti;3;Acquisto di beni e servizi;2;Acquisto di servizi;5;Utenze e canoni;5;Acqua;28-05-2019;
718;6;0;"9,50";"81,35";ALTO TREVIGIANO SERVIZI S.R.L.;ZF9282AA1E;SALDO Fatt.n. O2201900002504  del 24/04/2019 SERVIZIO IDRICO STRADE: GENNAIO-MARZO 2019;28-05-2019;591;2;212;1;Spese correnti;3;Acquisto di beni e servizi;2;Acquisto di servizi;5;Utenze e canoni;5;Acqua;28-05-2019;
718;7;0;"20,86";"81,35";ALTO TREVIGIANO SERVIZI S.R.L.;ZF9282AA1E;SALDO Fatt.n. O2201900002501  del 24/04/2019 SERVIZIO IDRICO PIAZZA: GENNAIO-MARZO 2019;28-05-2019;591;2;212;1;Spese correnti;3;Acquisto di beni e servizi;2;Acquisto di servizi;5;Utenze e canoni;5;Acqua;28-05-2019;
718;8;0;"35,02";"81,35";ALTO TREVIGIANO SERVIZI S.R.L.;ZF9282AA1E;SALDO Fatt.n. O2201900002510  del 24/04/2019 SERVIZIO IDRICO BARCHESSA: GENNAIO - MARZO 2019;28-05-2019;591;2;212;1;Spese correnti;3;Acquisto di beni e servizi;2;Acquisto di servizi;5;Utenze e canoni;5;Acqua;28-05-2019;
719;1;0;"6,41";"6,41";ALTO TREVIGIANO SERVIZI S.R.L.;ZF9282AA1E;SALDO Fatt.n. O2201900002509  del 24/04/2019 SERVIZIO IDRICO TORRE: GENNAIO-MARZO 2019;28-05-2019;313;2;208;1;Spese correnti;3;Acquisto di beni e servizi;2;Acquisto di servizi;5;Utenze e canoni;5;Acqua;28-05-2019;
720;1;0;"6,40";"58,50";ALTO TREVIGIANO SERVIZI S.R.L.;ZF9282AA1E;SALDO Fatt.n. O2201900002507  del 24/04/2019 SERVIZIO IDRICO CIMITERO: GENNAIO-MARZO 2019;28-05-2019;413;0;209;1;Spese correnti;3;Acquisto di beni e servizi;2;Acquisto di servizi;5;Utenze e canoni;5;Acqua;28-05-2019;
720;2;0;"18,81";"58,50";ALTO TREVIGIANO SERVIZI S.R.L.;ZF9282AA1E;SALDO Fatt.n. O2201900002527  del 24/04/2019 SERVIZIO IDRICO CIMITERO: GENNAIO-MARZO 2019;28-05-2019;413;0;209;1;Spese correnti;3;Acquisto di beni e servizi;2;Acquisto di servizi;5;Utenze e canoni;5;Acqua;28-05-2019;
720;3;0;"33,29";"58,50";ALTO TREVIGIANO SERVIZI S.R.L.;ZF9282AA1E;SALDO Fatt.n. O2201900002519  del 24/04/2019 SERVIZIO IDRICO CIMITERO: GENNAIO-MARZO 2019;28-05-2019;413;0;209;1;Spese correnti;3;Acquisto di beni e servizi;2;Acquisto di servizi;5;Utenze e canoni;5;Acqua;28-05-2019;
721;1;0;"67,38";"1.159,92";ALTO TREVIGIANO SERVIZI S.R.L.;ZF9282AA1E;SALDO Fatt.n. O2201900002520  del 24/04/2019 SERVIZIO IDRICO MAGAZZINO: GENNAIO-MARZO 2019;28-05-2019;530;0;210;1;Spese correnti;3;Acquisto di beni e servizi;2;Acquisto di servizi;5;Utenze e canoni;5;Acqua;28-05-2019;
721;2;0;"188,90";"1.159,92";ALTO TREVIGIANO SERVIZI S.R.L.;ZF9282AA1E;SALDO Fatt.n. O2201900002518  del 24/04/2019 SERVIZIO IDRICO IMP. SPORTIVI: GENNAIO-MARZO 2019;28-05-2019;530;0;210;1;Spese correnti;3;Acquisto di beni e servizi;2;Acquisto di servizi;5;Utenze e canoni;5;Acqua;28-05-2019;
721;3;0;"903,64";"1.159,92";ALTO TREVIGIANO SERVIZI S.R.L.;ZF9282AA1E;SALDO Fatt.n. O2201900002526  del 24/04/2019 SERVIZIO IDRICO IMP. SPORTIVI: GENNAIO-MARZO 2019;28-05-2019;530;0;210;1;Spese correnti;3;Acquisto di beni e servizi;2;Acquisto di servizi;5;Utenze e canoni;5;Acqua;28-05-2019;
722;1;0;"105,47";"2.001,32";ALTO TREVIGIANO SERVIZI S.R.L.;ZF9282AA1E;SALDO Fatt.n. O2201900002522  del 24/04/2019 SERVIZIO IDRICO SCUOLA MEDIA: GENNAIO-MARZO 2019;28-05-2019;252;0;211;1;Spese correnti;3;Acquisto di beni e servizi;2;Acquisto di servizi;5;Utenze e canoni;5;Acqua;28-05-2019;
722;2;0;"1.895,85";"2.001,32";ALTO TREVIGIANO SERVIZI S.R.L.;ZF9282AA1E;SALDO Fatt.n. O2201900002521  del 24/04/2019 SERVIZIO IDRICO SCUOLA SECONDARIA: GENNAIO-MARZO 2019;28-05-2019;252;0;211;1;Spese correnti;3;Acquisto di beni e servizi;2;Acquisto di servizi;5;Utenze e canoni;5;Acqua;28-05-2019;
723;1;0;"39,03";"39,03";ALTO TREVIGIANO SERVIZI S.R.L.;ZF9282AA1E;SALDO Fatt.n. O2201900002513  del 24/04/2019 SERVIZIO IDRICO MUNICIPIO: GENNAIO-MARZO 2019;28-05-2019;34;0;213;1;Spese correnti;3;Acquisto di beni e servizi;2;Acquisto di servizi;5;Utenze e canoni;5;Acqua;28-05-2019;
724;1;0;"102,52";"1.893,28";ALTO TREVIGIANO SERVIZI S.R.L.;ZF9282AA1E;SALDO Fatt.n. O2201900002524  del 24/04/2019 SERVIZIO IDRICO SCUOLA PRIMARIA: GENNAIO-MARZO 2019;28-05-2019;235;0;204;1;Spese correnti;3;Acquisto di beni e servizi;2;Acquisto di servizi;5;Utenze e canoni;5;Acqua;28-05-2019;
724;2;0;"219,27";"1.893,28";ALTO TREVIGIANO SERVIZI S.R.L.;ZF9282AA1E;SALDO Fatt.n. O2201900002503  del 24/04/2019 SERVIZIO IDRICO SCUOLA PRIMARIA: GENNAIO-MARZO 2019;28-05-2019;235;0;204;1;Spese correnti;3;Acquisto di beni e servizi;2;Acquisto di servizi;5;Utenze e canoni;5;Acqua;28-05-2019;
724;3;0;"454,64";"1.893,28";ALTO TREVIGIANO SERVIZI S.R.L.;ZF9282AA1E;SALDO Fatt.n. O2201900002515  del 24/04/2019 SERVIZIO IDRICO SCUOLA PRIMARIA: GENNAIO-MARZO 2019;28-05-2019;235;0;204;1;Spese correnti;3;Acquisto di beni e servizi;2;Acquisto di servizi;5;Utenze e canoni;5;Acqua;28-05-2019;
724;4;0;"1.116,85";"1.893,28";ALTO TREVIGIANO SERVIZI S.R.L.;ZF9282AA1E;SALDO Fatt.n. O2201900002525  del 24/04/2019 SERVIZIO IDRICO SCUOLA PRIMARIA - GENNAIO-MARZO 2019;28-05-2019;235;0;204;1;Spese correnti;3;Acquisto di beni e servizi;2;Acquisto di servizi;5;Utenze e canoni;5;Acqua;28-05-2019;
725;1;0;"34,18";"247,67";ALTO TREVIGIANO SERVIZI S.R.L.;ZF9282AA1E;SALDO Fatt.n. O2201900002502  del 24/04/2019 SERVIZIO IDRICO CENTRO POLIVAL.: GENNAIO-MARZO 2019;28-05-2019;561;2;207;1;Spese correnti;3;Acquisto di beni e servizi;2;Acquisto di servizi;5;Utenze e canoni;5;Acqua;28-05-2019;
725;2;0;"213,49";"247,67";ALTO TREVIGIANO SERVIZI S.R.L.;ZF9282AA1E;SALDO Fatt.n. O2201900002512  del 24/04/2019 SERVIZIO IDRICO LA ROGGIA: GENNAIO-MARZO 2019;28-05-2019;561;2;207;1;Spese correnti;3;Acquisto di beni e servizi;2;Acquisto di servizi;5;Utenze e canoni;5;Acqua;28-05-2019;
726;1;0;"4,35";"72,74";ALTO TREVIGIANO SERVIZI S.R.L.;ZF9282AA1E;SALDO Fatt.n. O2201900002516  del 24/04/2019 SERVIZIO IDRICO STRADE: GENNAIO-MARZO 2019;28-05-2019;591;2;212;1;Spese correnti;3;Acquisto di beni e servizi;2;Acquisto di servizi;5;Utenze e canoni;5;Acqua;28-05-2019;
726;2;0;"68,39";"72,74";ALTO TREVIGIANO SERVIZI S.R.L.;ZF9282AA1E;SALDO Fatt.n. O2201900002523  del 24/04/2019 SERVIZIO IDRICO STRADE: GENNAIO-MARZO 2019;28-05-2019;591;2;212;1;Spese correnti;3;Acquisto di beni e servizi;2;Acquisto di servizi;5;Utenze e canoni;5;Acqua;28-05-2019;
727;1;0;"1.104,35";"1.104,35";A.S. DI ANDREATTA GIUSEPPE & C. S.R.L.;ZF72439A29;ACCONTO Fatt.n. PA-0138  del 31/12/2018 FORNITURA E POSA IN OPERA DI UNITA' UPS UFFICI COMUNALI;28-05-2019;601;0;529;1;Spese correnti;3;Acquisto di beni e servizi;2;Acquisto di servizi;15;Contratti di servizio pubblico;15;Contratti di servizio per l'illuminazione pubblica;28-05-2019;
728;1;0;"2.872,85";"2.872,85";A.S. DI ANDREATTA GIUSEPPE & C. S.R.L.;ZF72439A29;SALDO Fatt.n. PA-0138  del 31/12/2018 FORNITURA E POSA IN OPERA DI UNITA' UPS UFFICI COMUNALI;28-05-2019;744;1;474;2;Spese in conto capitale;2;Investimenti fissi lordi e acquisto di terreni;1;Beni materiali;9;Beni immobili;19;Fabbricati ad uso strumentale;28-05-2019;
729;1;0;"2.685,47";"2.685,47";AGENZIA DELLE ENTRATE- RISCOSS.-ROVIGO (FATTURA C.S.M.);6867174B3F;ACCONTO Fatt.n. 14/PA  del 10/12/2018 LAVORI DI RISTRUTTURAZIONE PLESSO SCOLASTICO. Liquidazione parte importo 5' S.A.L.  C.S.M. ACCIAIO s.r.l. di Porto Viro (RO) all'Agenzia delle Entrate di Rovigo-Fascicolo n. 99/2019/36 del 15.01.2019.;28-05-2019;775;2;546;2;Spese in conto capitale;2;Investimenti fissi lordi e acquisto di terreni;1;Beni materiali;9;Beni immobili;3;Fabbricati ad uso scolastico;28-05-2019;
730;1;0;"24.331,31";"24.331,31";AGENZIA DELLE ENTRATE- RISCOSS.-ROVIGO (FATTURA C.S.M.);6867174B3F;ACCONTO Fatt.n. 14/PA  del 10/12/2018 LAVORI DI RISTRUTTURAZIONE PLESSO SCOLASTICO - Liquidaz. parte importo 5' S.A.L.  C.S.M. ACCIAIO s.r.l. di Porto Viro (RO) all'Agenzia delle Entrate di Rovigo-Fasc. n. 99/2019/36 del 15.01.2019.;28-05-2019;775;3;610;2;Spese in conto capitale;2;Investimenti fissi lordi e acquisto di terreni;1;Beni materiali;9;Beni immobili;3;Fabbricati ad uso scolastico;28-05-2019;
731;1;0;"137.433,22";"137.433,22";AGENZIA DELLE ENTRATE- RISCOSS.-ROVIGO (FATTURA C.S.M.);6867174B3F;SALDO Fatt.n. 14/PA  del 10/12/2018 LAVORI DI RISTRUTTURAZIONE PLESSO SCOLASTICO - Liquidaz. parte importo 5' S.A.L.  C.S.M. ACCIAIO s.r.l. di Porto Viro (RO) all'Ag. delle Entrate-Rovigo-Fasc. n. 99/2019/36 del 15.01.2019.;28-05-2019;775;3;547;2;Spese in conto capitale;2;Investimenti fissi lordi e acquisto di terreni;1;Beni materiali;9;Beni immobili;3;Fabbricati ad uso scolastico;28-05-2019;
732;1;0;"4.540,00";"4.540,00";O.D.V. PROTEZIONE CIVILE DI SAN ZENONE DEGLI EZZELINI; ;IMPEGNO DI SPESA ANNUALE E LIQUIDAZIONE DI UN PRIMO ACCONTO DEL CONTRIBUTO AL GRUPPO  DI PROTEZIONE CIVILE DI SAN ZENONE DEGLI EZZELINI - ANNO 2019 -;28-05-2019;382;1;139;1;Spese correnti;4;Trasferimenti correnti;1;Trasferimenti correnti a Amministrazioni Pubbliche;4;Trasferimenti correnti a organismi interni e/o unità locali della amministrazione;1;Trasferimenti correnti a organismi interni e/o unità locali della amministrazione;28-05-2019;
733;1;0;"1.454,32";"1.454,32";ZEN GIORGIO; ;"IQUIDAZIONE ACCONTO COMPENSO AL DR. ZEN GIORGIO PER INCARICO DI COLLABORAZIONE OCCASIONALE PER SUPPORTO AL RESPONSABILE DELL'AREA ECONOMICO FINANZIARIA NEL PERIODO: DICEMBRE 2018, GENNAIO, FEBBRAIO E PARTE DI MARZO 2019.";29-05-2019;48;0;469;1;Spese correnti;3;Acquisto di beni e servizi;2;Acquisto di servizi;11;Prestazioni professionali e specialistiche;8;"Prestazioni di natura contabile, tributaria e del lavoro";29-05-2019;
734;1;0;"3.545,68";"3.545,68";ZEN GIORGIO; ;"LIQUIDAZIONE SALDO INCARICO DI COLLABORAZIONE OCCASIONALE PER SUPPORTO AL RESPONSABILE DELL'AREA ECONOMICO FINANZIARIA NEL PERIODO: DICEMBRE 2018, GENNAIO, FEBBRAIO E PARTE DI MARZO 2019.";29-05-2019;48;0;51;1;Spese correnti;3;Acquisto di beni e servizi;2;Acquisto di servizi;11;Prestazioni professionali e specialistiche;999;Altre prestazioni professionali e specialistiche n.a.c.;29-05-2019;
735;1;0;"396,90";"396,90";ZEN GIORGIO; ;"INCARICO DI COLLABORAZIONE OCCASIONALE PER SUPPORTO AL RESPONSABILE DELL'AREA ECONOMICO FINANZIARIA AL DOTT. ZEN GIORGIO - DIPENDENTECOMUNE DI CASTELLO DI GODEGO: RIMBORSO ACCESSI DEL PERIODO: DICEMBRE 2018, GENNAIO, FEBBRAIO E PARTE DI MARZO 2019.";29-05-2019;48;0;51;1;Spese correnti;3;Acquisto di beni e servizi;2;Acquisto di servizi;11;Prestazioni professionali e specialistiche;999;Altre prestazioni professionali e specialistiche n.a.c.;29-05-2019;
737;1;0;"28.877,20";"28.877,20";COSTRUZIONI IMMOBILIARI GIARDINO S.R.L.;Z0F2817BD0;ACCONTO Fatt.n. 0000001  del 24/05/2019 LAVORI DI STRAORD. MANUTENZIONE EDIFICI COMUNALI;30-05-2019;775;0;186;2;Spese in conto capitale;2;Investimenti fissi lordi e acquisto di terreni;1;Beni materiali;9;Beni immobili;3;Fabbricati ad uso scolastico;30-05-2019;
738;1;0;"1.609,58";"1.609,58";COSTRUZIONI IMMOBILIARI GIARDINO S.R.L.;Z0F2817BD0;SALDO Fatt.n. 0000001  del 24/05/2019 LAVORI DI STRAORD. MANUTENZIONE EDIFICI COMUNALI;30-05-2019;775;0;278;2;Spese in conto capitale;2;Investimenti fissi lordi e acquisto di terreni;1;Beni materiali;9;Beni immobili;3;Fabbricati ad uso scolastico;30-05-2019;
739;1;0;"53,89";"53,89";COMUNE DI PIEVE DEL GRAPPA; ;AZIONI DI SENSIBILIZZAZIONE PER PROMUOVERE IL PROGETTO "RETI DI FAMIGLIE ACCOGLIENTI". SPETTACOLO TEATRALE: RIMBORSO SPESE PER SERVIZIO DI STAMPA DEL MATERIALE PUBBLICITARIO..;30-05-2019;333;1;183;1;Spese correnti;4;Trasferimenti correnti;1;Trasferimenti correnti a Amministrazioni Pubbliche;4;Trasferimenti correnti a organismi interni e/o unità locali della amministrazione;1;Trasferimenti correnti a organismi interni e/o unità locali della amministrazione;30-05-2019;
744;1;0;"1.500,00";"1.500,00";OMESSO NOMINATIVO NEL RISPETTO DELLA NORMATIVA SULLA PROTEZIONE DATI PERSONALI; ;EROGAZIONE CONTRIBUTO ALL'ASSOCIAZIONE NAZIONALE CARABINIERI - GRUPPO DI VOLONTARIATO DI FONTE E SAN ZENONE DEGLI EZZELINI - PER ATTIVITA' INTEGRATIVA A SUPPORTO DELLE FORZE DI POLIZIA LOCALE - ANNO 2019.;31-05-2019;51;1;213;1;Spese correnti;3;Acquisto di beni e servizi;2;Acquisto di servizi;99;Altri servizi;3;Quote di associazioni;31-05-2019;
745;1;0;"-53,80";"706,62";ENEL ENERGIA S.P.A.;7134285639;SALDO Fatt.n. 003027074358  del 27/04/2019 ENEL - MARZO 2019;04-06-2019;600;0;120;1;Spese correnti;3;Acquisto di beni e servizi;2;Acquisto di servizi;5;Utenze e canoni;4;Energia elettrica;04-06-2019;
745;2;0;"-32,23";"706,62";ENEL ENERGIA S.P.A.;7134285639;SALDO Fatt.n. 003027074338  del 27/04/2019 ENEL - MARZO 2019;04-06-2019;600;0;120;1;Spese correnti;3;Acquisto di beni e servizi;2;Acquisto di servizi;5;Utenze e canoni;4;Energia elettrica;04-06-2019;
745;3;0;"86,45";"706,62";ENEL ENERGIA S.P.A.;7134285639;SALDO Fatt.n. 003027519882  del 29/04/2019 ENEL - MARZO 2019;04-06-2019;600;0;120;1;Spese correnti;3;Acquisto di beni e servizi;2;Acquisto di servizi;5;Utenze e canoni;4;Energia elettrica;04-06-2019;
745;4;0;"110,12";"706,62";ENEL ENERGIA S.P.A.;7134285639;SALDO Fatt.n. 003027727157  del 07/05/2019 ENEL - APRILE 2019;04-06-2019;600;0;120;1;Spese correnti;3;Acquisto di beni e servizi;2;Acquisto di servizi;5;Utenze e canoni;4;Energia elettrica;04-06-2019;
745;5;0;"126,16";"706,62";ENEL ENERGIA S.P.A.;7134285639;SALDO Fatt.n. 003027727165  del 07/05/2019 ENEL - APRILE 2019;04-06-2019;600;0;120;1;Spese correnti;3;Acquisto di beni e servizi;2;Acquisto di servizi;5;Utenze e canoni;4;Energia elettrica;04-06-2019;
745;6;0;"134,41";"706,62";ENEL ENERGIA S.P.A.;7134285639;SALDO Fatt.n. 003027727168  del 07/05/2019 ENEL - APRILE 2019;04-06-2019;600;0;120;1;Spese correnti;3;Acquisto di beni e servizi;2;Acquisto di servizi;5;Utenze e canoni;4;Energia elettrica;04-06-2019;
745;7;0;"335,51";"706,62";ENEL ENERGIA S.P.A.;7134285639;SALDO Fatt.n. 003027727159  del 07/05/2019 ENEL - APRILE 2019;04-06-2019;600;0;120;1;Spese correnti;3;Acquisto di beni e servizi;2;Acquisto di servizi;5;Utenze e canoni;4;Energia elettrica;04-06-2019;
746;1;0;"-558,06";"730,51";ENEL ENERGIA S.P.A.;7134285639;SALDO Fatt.n. 003027199318  del 27/04/2019 ENEL - MARZO 2019;04-06-2019;600;0;120;1;Spese correnti;3;Acquisto di beni e servizi;2;Acquisto di servizi;5;Utenze e canoni;4;Energia elettrica;04-06-2019;
746;2;0;"33,10";"730,51";ENEL ENERGIA S.P.A.;7134285639;SALDO Fatt.n. 003027727161  del 07/05/2019 ENEL CIMITERO - APRILE 2019;04-06-2019;600;0;120;1;Spese correnti;3;Acquisto di beni e servizi;2;Acquisto di servizi;5;Utenze e canoni;4;Energia elettrica;04-06-2019;
746;3;0;"49,21";"730,51";ENEL ENERGIA S.P.A.;7134285639;SALDO Fatt.n. 003028456181  del 08/05/2019 ENEL - MARZO 2019;04-06-2019;600;0;120;1;Spese correnti;3;Acquisto di beni e servizi;2;Acquisto di servizi;5;Utenze e canoni;4;Energia elettrica;04-06-2019;
746;4;0;"64,55";"730,51";ENEL ENERGIA S.P.A.;7134285639;SALDO Fatt.n. 003027727171  del 07/05/2019 ENEL - APRILE 2019;04-06-2019;600;0;120;1;Spese correnti;3;Acquisto di beni e servizi;2;Acquisto di servizi;5;Utenze e canoni;4;Energia elettrica;04-06-2019;
746;5;0;"294,29";"730,51";ENEL ENERGIA S.P.A.;7134285639;SALDO Fatt.n. 003027519890  del 29/04/2019 ENEL - MARZO 2019;04-06-2019;600;0;120;1;Spese correnti;3;Acquisto di beni e servizi;2;Acquisto di servizi;5;Utenze e canoni;4;Energia elettrica;04-06-2019;
746;6;0;"410,15";"730,51";ENEL ENERGIA S.P.A.;7134285639;SALDO Fatt.n. 003027727163  del 07/05/2019 ENEL - APRILE 2019;04-06-2019;600;0;120;1;Spese correnti;3;Acquisto di beni e servizi;2;Acquisto di servizi;5;Utenze e canoni;4;Energia elettrica;04-06-2019;
746;7;0;"437,27";"730,51";ENEL ENERGIA S.P.A.;7134285639;SALDO Fatt.n. 003027727173  del 07/05/2019 ENEL - APRILE 2019;04-06-2019;600;0;120;1;Spese correnti;3;Acquisto di beni e servizi;2;Acquisto di servizi;5;Utenze e canoni;4;Energia elettrica;04-06-2019;
747;1;0;"-661,20";"278,32";ENEL ENERGIA S.P.A.;7134285639;SALDO Fatt.n. 003027074339  del 27/04/2019 ENEL - MARZO 2019;04-06-2019;600;0;120;1;Spese correnti;3;Acquisto di beni e servizi;2;Acquisto di servizi;5;Utenze e canoni;4;Energia elettrica;04-06-2019;
747;2;0;"41,76";"278,32";ENEL ENERGIA S.P.A.;7134285639;SALDO Fatt.n. 003027727162  del 07/05/2019 ENEL - APRILE 2019;04-06-2019;600;0;120;1;Spese correnti;3;Acquisto di beni e servizi;2;Acquisto di servizi;5;Utenze e canoni;4;Energia elettrica;04-06-2019;
747;3;0;"150,57";"278,32";ENEL ENERGIA S.P.A.;7134285639;SALDO Fatt.n. 003027727166  del 07/05/2019 ENEL - APRILE 2019;04-06-2019;600;0;120;1;Spese correnti;3;Acquisto di beni e servizi;2;Acquisto di servizi;5;Utenze e canoni;4;Energia elettrica;04-06-2019;
747;4;0;"212,43";"278,32";ENEL ENERGIA S.P.A.;7134285639;SALDO Fatt.n. 003027727170  del 07/05/2019 ENEL - APRILE 2019;04-06-2019;600;0;120;1;Spese correnti;3;Acquisto di beni e servizi;2;Acquisto di servizi;5;Utenze e canoni;4;Energia elettrica;04-06-2019;
747;5;0;"534,76";"278,32";ENEL ENERGIA S.P.A.;7134285639;SALDO Fatt.n. 003027519857  del 29/04/2019 ENEL I.P. MARZO 2019.;04-06-2019;600;0;120;1;Spese correnti;3;Acquisto di beni e servizi;2;Acquisto di servizi;5;Utenze e canoni;4;Energia elettrica;04-06-2019;
748;1;0;"20,37";"352,88";ENEL ENERGIA S.P.A.;7134285639;SALDO Fatt.n. 003033870154  del 14/05/2019 ENEL - APRILE 2019;04-06-2019;600;0;120;1;Spese correnti;3;Acquisto di beni e servizi;2;Acquisto di servizi;5;Utenze e canoni;4;Energia elettrica;04-06-2019;
748;2;0;"21,12";"352,88";ENEL ENERGIA S.P.A.;7134285639;SALDO Fatt.n. 003034365334  del 16/05/2019 ENEL - APRILE 2019;04-06-2019;600;0;120;1;Spese correnti;3;Acquisto di beni e servizi;2;Acquisto di servizi;5;Utenze e canoni;4;Energia elettrica;04-06-2019;
748;3;0;"41,00";"352,88";ENEL ENERGIA S.P.A.;7134285639;SALDO Fatt.n. 003033870153  del 14/05/2019 ENEL - APRILE 2019;04-06-2019;600;0;120;1;Spese correnti;3;Acquisto di beni e servizi;2;Acquisto di servizi;5;Utenze e canoni;4;Energia elettrica;04-06-2019;
748;4;0;"49,30";"352,88";ENEL ENERGIA S.P.A.;7134285639;SALDO Fatt.n. 003027727160  del 07/05/2019 ENEL - APRILE 2019;04-06-2019;600;0;120;1;Spese correnti;3;Acquisto di beni e servizi;2;Acquisto di servizi;5;Utenze e canoni;4;Energia elettrica;04-06-2019;
748;5;0;"221,09";"352,88";ENEL ENERGIA S.P.A.;7134285639;SALDO Fatt.n. 003034365327  del 16/05/2019 ENEL - APRILE 2019;04-06-2019;600;0;120;1;Spese correnti;3;Acquisto di beni e servizi;2;Acquisto di servizi;5;Utenze e canoni;4;Energia elettrica;04-06-2019;
749;1;0;"-734,39";"1.024,46";ENEL ENERGIA S.P.A.;7134285639;SALDO Fatt.n. 003027074349  del 27/04/2019 ENEL - MARZO 2019;04-06-2019;600;0;120;1;Spese correnti;3;Acquisto di beni e servizi;2;Acquisto di servizi;5;Utenze e canoni;4;Energia elettrica;04-06-2019;
749;2;0;"115,14";"1.024,46";ENEL ENERGIA S.P.A.;7134285639;SALDO Fatt.n. 003034365331  del 16/05/2019 ENEL - APRILE 2019;04-06-2019;600;0;120;1;Spese correnti;3;Acquisto di beni e servizi;2;Acquisto di servizi;5;Utenze e canoni;4;Energia elettrica;04-06-2019;
749;3;0;"273,88";"1.024,46";ENEL ENERGIA S.P.A.;7134285639;SALDO Fatt.n. 003034365321  del 16/05/2019 ENEL - APRILE 2019;04-06-2019;600;0;120;1;Spese correnti;3;Acquisto di beni e servizi;2;Acquisto di servizi;5;Utenze e canoni;4;Energia elettrica;04-06-2019;
749;4;0;"522,50";"1.024,46";ENEL ENERGIA S.P.A.;7134285639;SALDO Fatt.n. 003034365312  del 16/05/2019 ENEL - APRILE 2019;04-06-2019;600;0;120;1;Spese correnti;3;Acquisto di beni e servizi;2;Acquisto di servizi;5;Utenze e canoni;4;Energia elettrica;04-06-2019;
749;5;0;"847,33";"1.024,46";ENEL ENERGIA S.P.A.;7134285639;SALDO Fatt.n. 003034365308  del 16/05/2019 ENEL - APRILE 2019;04-06-2019;600;0;120;1;Spese correnti;3;Acquisto di beni e servizi;2;Acquisto di servizi;5;Utenze e canoni;4;Energia elettrica;04-06-2019;
750;1;0;"22,77";"794,84";ENEL ENERGIA S.P.A.;7134285639;SALDO Fatt.n. 003034365324  del 16/05/2019 ENEL - APRILE 2019;04-06-2019;600;0;120;1;Spese correnti;3;Acquisto di beni e servizi;2;Acquisto di servizi;5;Utenze e canoni;4;Energia elettrica;04-06-2019;
750;2;0;"50,61";"794,84";ENEL ENERGIA S.P.A.;7134285639;SALDO Fatt.n. 003034365319  del 16/05/2019 ENEL - APRILE 2019;04-06-2019;600;0;120;1;Spese correnti;3;Acquisto di beni e servizi;2;Acquisto di servizi;5;Utenze e canoni;4;Energia elettrica;04-06-2019;
750;3;0;"72,55";"794,84";ENEL ENERGIA S.P.A.;7134285639;SALDO Fatt.n. 003034365329  del 16/05/2019 ENEL - APRILE 2019;04-06-2019;600;0;120;1;Spese correnti;3;Acquisto di beni e servizi;2;Acquisto di servizi;5;Utenze e canoni;4;Energia elettrica;04-06-2019;
750;4;0;"170,79";"794,84";ENEL ENERGIA S.P.A.;7134285639;SALDO Fatt.n. 003034365337  del 16/05/2019 ENEL - APRILE 2019;04-06-2019;600;0;120;1;Spese correnti;3;Acquisto di beni e servizi;2;Acquisto di servizi;5;Utenze e canoni;4;Energia elettrica;04-06-2019;
750;5;0;"478,12";"794,84";ENEL ENERGIA S.P.A.;7134285639;SALDO Fatt.n. 003034365309  del 16/05/2019 ENEL - APRILE 2019;04-06-2019;600;0;120;1;Spese correnti;3;Acquisto di beni e servizi;2;Acquisto di servizi;5;Utenze e canoni;4;Energia elettrica;04-06-2019;
751;1;0;"34,37";"422,28";ENEL ENERGIA S.P.A.;7134285639;SALDO Fatt.n. 003034365315  del 16/05/2019 ENEL - APRILE 2019;04-06-2019;600;0;120;1;Spese correnti;3;Acquisto di beni e servizi;2;Acquisto di servizi;5;Utenze e canoni;4;Energia elettrica;04-06-2019;
751;2;0;"36,99";"422,28";ENEL ENERGIA S.P.A.;7134285639;SALDO Fatt.n. 003034365316  del 16/05/2019 ENEL - APRILE 2019;04-06-2019;600;0;120;1;Spese correnti;3;Acquisto di beni e servizi;2;Acquisto di servizi;5;Utenze e canoni;4;Energia elettrica;04-06-2019;
751;3;0;"50,40";"422,28";ENEL ENERGIA S.P.A.;7134285639;SALDO Fatt.n. 003034365311  del 16/05/2019 ENEL - APRILE 2019;04-06-2019;600;0;120;1;Spese correnti;3;Acquisto di beni e servizi;2;Acquisto di servizi;5;Utenze e canoni;4;Energia elettrica;04-06-2019;
751;4;0;"52,73";"422,28";ENEL ENERGIA S.P.A.;7134285639;SALDO Fatt.n. 003034365320  del 16/05/2019 ENEL - APRILE 2019;04-06-2019;600;0;120;1;Spese correnti;3;Acquisto di beni e servizi;2;Acquisto di servizi;5;Utenze e canoni;4;Energia elettrica;04-06-2019;
751;5;0;"247,79";"422,28";ENEL ENERGIA S.P.A.;7134285639;SALDO Fatt.n. 003034365336  del 16/05/2019 ENEL - APRILE 2019;04-06-2019;600;0;120;1;Spese correnti;3;Acquisto di beni e servizi;2;Acquisto di servizi;5;Utenze e canoni;4;Energia elettrica;04-06-2019;
752;1;0;"72,85";"869,37";ENEL ENERGIA S.P.A.;7134285639;SALDO Fatt.n. 003034365323  del 16/05/2019 ENEL - APRILE 2019;04-06-2019;600;0;120;1;Spese correnti;3;Acquisto di beni e servizi;2;Acquisto di servizi;5;Utenze e canoni;4;Energia elettrica;04-06-2019;
752;2;0;"122,01";"869,37";ENEL ENERGIA S.P.A.;7134285639;SALDO Fatt.n. 003034365307  del 16/05/2019 ENEL - APRILE 2019;04-06-2019;600;0;120;1;Spese correnti;3;Acquisto di beni e servizi;2;Acquisto di servizi;5;Utenze e canoni;4;Energia elettrica;04-06-2019;
752;3;0;"168,42";"869,37";ENEL ENERGIA S.P.A.;7134285639;SALDO Fatt.n. 003034365318  del 16/05/2019 ENEL - APRILE 2019;04-06-2019;600;0;120;1;Spese correnti;3;Acquisto di beni e servizi;2;Acquisto di servizi;5;Utenze e canoni;4;Energia elettrica;04-06-2019;
752;4;0;"247,79";"869,37";ENEL ENERGIA S.P.A.;7134285639;SALDO Fatt.n. 003034365332  del 16/05/2019 ENEL - APRILE 2019;04-06-2019;600;0;120;1;Spese correnti;3;Acquisto di beni e servizi;2;Acquisto di servizi;5;Utenze e canoni;4;Energia elettrica;04-06-2019;
752;5;0;"258,30";"869,37";ENEL ENERGIA S.P.A.;7134285639;SALDO Fatt.n. 003034365314  del 16/05/2019 ENEL - APRILE 2019;04-06-2019;600;0;120;1;Spese correnti;3;Acquisto di beni e servizi;2;Acquisto di servizi;5;Utenze e canoni;4;Energia elettrica;04-06-2019;
753;1;0;"25,28";"935,43";ENEL ENERGIA S.P.A.;7134285639;SALDO Fatt.n. 003034365335  del 16/05/2019 ENEL - APRILE 2019;04-06-2019;600;0;120;1;Spese correnti;3;Acquisto di beni e servizi;2;Acquisto di servizi;5;Utenze e canoni;4;Energia elettrica;04-06-2019;
753;2;0;"27,11";"935,43";ENEL ENERGIA S.P.A.;7134285639;SALDO Fatt.n. 003034575602  del 22/05/2019 ENEL - MARZO 2019;04-06-2019;600;0;120;1;Spese correnti;3;Acquisto di beni e servizi;2;Acquisto di servizi;5;Utenze e canoni;4;Energia elettrica;04-06-2019;
753;3;0;"33,23";"935,43";ENEL ENERGIA S.P.A.;7134285639;SALDO Fatt.n. 003034575604  del 22/05/2019 ENEL - MARZO 2019;04-06-2019;600;0;120;1;Spese correnti;3;Acquisto di beni e servizi;2;Acquisto di servizi;5;Utenze e canoni;4;Energia elettrica;04-06-2019;
753;4;0;"37,80";"935,43";ENEL ENERGIA S.P.A.;7134285639;SALDO Fatt.n. 003034365322  del 16/05/2019 ENEL - APRILE 2019;04-06-2019;600;0;120;1;Spese correnti;3;Acquisto di beni e servizi;2;Acquisto di servizi;5;Utenze e canoni;4;Energia elettrica;04-06-2019;
753;5;0;"812,01";"935,43";ENEL ENERGIA S.P.A.;7134285639;"SALDO Fatt.n. 003034542853  del 21/05/2019 ENEL - APRILE, MAGGIO 2019";04-06-2019;600;0;120;1;Spese correnti;3;Acquisto di beni e servizi;2;Acquisto di servizi;5;Utenze e canoni;4;Energia elettrica;04-06-2019;
754;1;0;"11,02";"360,45";ENEL ENERGIA S.P.A.;7134285639;SALDO Fatt.n. 003034575606  del 22/05/2019 ENEL - MARZO 2019;04-06-2019;600;0;120;1;Spese correnti;3;Acquisto di beni e servizi;2;Acquisto di servizi;5;Utenze e canoni;4;Energia elettrica;04-06-2019;
754;2;0;"11,02";"360,45";ENEL ENERGIA S.P.A.;7134285639;SALDO Fatt.n. 003034575605  del 22/05/2019 ENEL - MARZO 2019;04-06-2019;600;0;120;1;Spese correnti;3;Acquisto di beni e servizi;2;Acquisto di servizi;5;Utenze e canoni;4;Energia elettrica;04-06-2019;
754;3;0;"22,20";"360,45";ENEL ENERGIA S.P.A.;7134285639;SALDO Fatt.n. 003034575607  del 22/05/2019 ENEL - MARZO 2019;04-06-2019;600;0;120;1;Spese correnti;3;Acquisto di beni e servizi;2;Acquisto di servizi;5;Utenze e canoni;4;Energia elettrica;04-06-2019;
754;4;0;"30,00";"360,45";ENEL ENERGIA S.P.A.;7134285639;SALDO Fatt.n. 003026493095  del 12/04/2019 ENEL - MARZO 2019;04-06-2019;600;0;120;1;Spese correnti;3;Acquisto di beni e servizi;2;Acquisto di servizi;5;Utenze e canoni;4;Energia elettrica;04-06-2019;
754;5;0;"286,21";"360,45";ENEL ENERGIA S.P.A.;7134285639;SALDO Fatt.n. 003034575603  del 22/05/2019 ENEL - MARZO 2019;04-06-2019;600;0;120;1;Spese correnti;3;Acquisto di beni e servizi;2;Acquisto di servizi;5;Utenze e canoni;4;Energia elettrica;04-06-2019;
755;1;0;"9,94";"431,65";ENEL ENERGIA S.P.A.;7134285639;SALDO Fatt.n. 003026493100  del 12/04/2019 ENEL - MARZO 2019;04-06-2019;600;0;120;1;Spese correnti;3;Acquisto di beni e servizi;2;Acquisto di servizi;5;Utenze e canoni;4;Energia elettrica;04-06-2019;
755;2;0;"24,75";"431,65";ENEL ENERGIA S.P.A.;7134285639;SALDO Fatt.n. 003026493093  del 12/04/2019 ENEL - MARZO 2019;04-06-2019;600;0;120;1;Spese correnti;3;Acquisto di beni e servizi;2;Acquisto di servizi;5;Utenze e canoni;4;Energia elettrica;04-06-2019;
755;3;0;"48,92";"431,65";ENEL ENERGIA S.P.A.;7134285639;SALDO Fatt.n. 003026493096  del 12/04/2019 ENEL - MARZO 2019;04-06-2019;600;0;120;1;Spese correnti;3;Acquisto di beni e servizi;2;Acquisto di servizi;5;Utenze e canoni;4;Energia elettrica;04-06-2019;
755;4;0;"87,75";"431,65";ENEL ENERGIA S.P.A.;7134285639;SALDO Fatt.n. 003026493098  del 12/04/2019 ENEL - MARZO 2019;04-06-2019;600;0;120;1;Spese correnti;3;Acquisto di beni e servizi;2;Acquisto di servizi;5;Utenze e canoni;4;Energia elettrica;04-06-2019;
755;5;0;"260,29";"431,65";ENEL ENERGIA S.P.A.;7134285639;SALDO Fatt.n. 003026493094  del 12/04/2019 ENEL - MARZO 2019;04-06-2019;600;0;120;1;Spese correnti;3;Acquisto di beni e servizi;2;Acquisto di servizi;5;Utenze e canoni;4;Energia elettrica;04-06-2019;
756;1;0;"9,35";"83,36";ENEL ENERGIA S.P.A.;7134285639;SALDO Fatt.n. 003034595401  del 23/05/2019 ENEL - APRILE 2019;04-06-2019;600;0;120;1;Spese correnti;3;Acquisto di beni e servizi;2;Acquisto di servizi;5;Utenze e canoni;4;Energia elettrica;04-06-2019;
756;2;0;"9,94";"83,36";ENEL ENERGIA S.P.A.;7134285639;SALDO Fatt.n. 003026493099  del 12/04/2019 ENEL - MARZO 2019;04-06-2019;600;0;120;1;Spese correnti;3;Acquisto di beni e servizi;2;Acquisto di servizi;5;Utenze e canoni;4;Energia elettrica;04-06-2019;
756;3;0;"19,50";"83,36";ENEL ENERGIA S.P.A.;7134285639;SALDO Fatt.n. 003026493097  del 12/04/2019 ENEL - MARZO 2019;04-06-2019;600;0;120;1;Spese correnti;3;Acquisto di beni e servizi;2;Acquisto di servizi;5;Utenze e canoni;4;Energia elettrica;04-06-2019;
756;4;0;"20,15";"83,36";ENEL ENERGIA S.P.A.;7134285639;SALDO Fatt.n. 003026493102  del 12/04/2019 ENEL - MARZO 2019;04-06-2019;600;0;120;1;Spese correnti;3;Acquisto di beni e servizi;2;Acquisto di servizi;5;Utenze e canoni;4;Energia elettrica;04-06-2019;
756;5;0;"24,42";"83,36";ENEL ENERGIA S.P.A.;7134285639;SALDO Fatt.n. 003026493101  del 12/04/2019 ENEL - MARZO 2019;04-06-2019;600;0;120;1;Spese correnti;3;Acquisto di beni e servizi;2;Acquisto di servizi;5;Utenze e canoni;4;Energia elettrica;04-06-2019;
757;1;0;"49,36";"417,45";ENEL ENERGIA S.P.A.;7134285639;SALDO Fatt.n. 003027727169  del 07/05/2019 ENEL CIMITERO - APRILE 2019;04-06-2019;413;0;115;1;Spese correnti;3;Acquisto di beni e servizi;2;Acquisto di servizi;5;Utenze e canoni;4;Energia elettrica;04-06-2019;
757;2;0;"78,80";"417,45";ENEL ENERGIA S.P.A.;7134285639;SALDO Fatt.n. 003027727167  del 07/05/2019 ENEL CIMITERO - APRILE 2019;04-06-2019;413;0;115;1;Spese correnti;3;Acquisto di beni e servizi;2;Acquisto di servizi;5;Utenze e canoni;4;Energia elettrica;04-06-2019;
757;3;0;"81,74";"417,45";ENEL ENERGIA S.P.A.;7134285639;SALDO Fatt.n. 003027727158  del 07/05/2019 ENEL CIMITERO - APRILE 2019;04-06-2019;413;0;115;1;Spese correnti;3;Acquisto di beni e servizi;2;Acquisto di servizi;5;Utenze e canoni;4;Energia elettrica;04-06-2019;
757;4;0;"207,55";"417,45";ENEL ENERGIA S.P.A.;7134285639;SALDO Fatt.n. 003034365328  del 16/05/2019 ENEL CIMITERO - APRILE 2019;04-06-2019;413;0;115;1;Spese correnti;3;Acquisto di beni e servizi;2;Acquisto di servizi;5;Utenze e canoni;4;Energia elettrica;04-06-2019;
758;1;0;"-1.058,80";"693,57";ENEL ENERGIA S.P.A.;7134285639;SALDO Fatt.n. 003027074331  del 27/04/2019 ENEL - MARZO 2019;04-06-2019;235;0;113;1;Spese correnti;3;Acquisto di beni e servizi;2;Acquisto di servizi;5;Utenze e canoni;4;Energia elettrica;04-06-2019;
758;2;0;"100,22";"693,57";ENEL ENERGIA S.P.A.;7134285639;SALDO Fatt.n. 003027727174  del 07/05/2019 ENEL SCUOLA PRIMARIA - APRILE 2019;04-06-2019;235;0;113;1;Spese correnti;3;Acquisto di beni e servizi;2;Acquisto di servizi;5;Utenze e canoni;4;Energia elettrica;04-06-2019;
758;3;0;"381,57";"693,57";ENEL ENERGIA S.P.A.;7134285639;SALDO Fatt.n. 003034365310  del 16/05/2019 ENEL SCUOLA PRIMARIA - APRILE 2019;04-06-2019;235;0;113;1;Spese correnti;3;Acquisto di beni e servizi;2;Acquisto di servizi;5;Utenze e canoni;4;Energia elettrica;04-06-2019;
758;4;0;"1.270,58";"693,57";ENEL ENERGIA S.P.A.;7134285639;SALDO Fatt.n. 003034365330  del 16/05/2019 ENEL SCUOLA PRIMARIA - APRILE 2019;04-06-2019;235;0;113;1;Spese correnti;3;Acquisto di beni e servizi;2;Acquisto di servizi;5;Utenze e canoni;4;Energia elettrica;04-06-2019;
759;1;0;"273,61";"273,61";ENEL ENERGIA S.P.A.;7134285639;SALDO Fatt.n. 003034365313  del 16/05/2019 ENEL VILLA RUBELLI - APRILE 2019;04-06-2019;310;0;116;1;Spese correnti;3;Acquisto di beni e servizi;2;Acquisto di servizi;5;Utenze e canoni;4;Energia elettrica;04-06-2019;
760;1;0;"560,42";"560,42";ENEL ENERGIA S.P.A.;7134285639;SALDO Fatt.n. 003034365325  del 16/05/2019 ENEL MUNICIPIO - APRILE 2019;04-06-2019;34;0;111;1;Spese correnti;3;Acquisto di beni e servizi;2;Acquisto di servizi;5;Utenze e canoni;4;Energia elettrica;04-06-2019;
761;1;0;"101,30";"101,30";ENEL ENERGIA S.P.A.;7134285639;SALDO Fatt.n. 003034365317  del 16/05/2019 ENEL MAGAZZINO COMUNALE - APRILE 2019;04-06-2019;71;0;112;1;Spese correnti;3;Acquisto di beni e servizi;2;Acquisto di servizi;5;Utenze e canoni;4;Energia elettrica;04-06-2019;
762;1;0;"147,51";"147,51";ENEL ENERGIA S.P.A.;7134285639;ACCONTO Fatt.n. 003027727172  del 07/05/2019 ENEL CENTRO POLIVALENTE - APRILE 2019;04-06-2019;311;0;117;1;Spese correnti;3;Acquisto di beni e servizi;2;Acquisto di servizi;5;Utenze e canoni;4;Energia elettrica;04-06-2019;
763;1;0;"10,47";"1.153,10";ENEL ENERGIA S.P.A.;7134285639;SALDO Fatt.n. 003034601421  del 28/05/2019 ENEL CHIUSURA CONTRATTO O CESSAZIONE - APRILE 2019;04-06-2019;600;0;120;1;Spese correnti;3;Acquisto di beni e servizi;2;Acquisto di servizi;5;Utenze e canoni;4;Energia elettrica;04-06-2019;
763;2;0;"18,78";"1.153,10";ENEL ENERGIA S.P.A.;7134285639;SALDO Fatt.n. 003034595402  del 23/05/2019 ENEL - APRILE 2019;04-06-2019;600;0;120;1;Spese correnti;3;Acquisto di beni e servizi;2;Acquisto di servizi;5;Utenze e canoni;4;Energia elettrica;04-06-2019;
763;3;0;"25,49";"1.153,10";ENEL ENERGIA S.P.A.;7134285639;SALDO Fatt.n. 003034601419  del 28/05/2019 ENEL CHIUSURA CONTRATTO - APRILE 2019;04-06-2019;600;0;120;1;Spese correnti;3;Acquisto di beni e servizi;2;Acquisto di servizi;5;Utenze e canoni;4;Energia elettrica;04-06-2019;
763;4;0;"31,61";"1.153,10";ENEL ENERGIA S.P.A.;7134285639;SALDO Fatt.n. 003034601420  del 28/05/2019 ENEL CHIUSURA CONTRATTO - APRILE 2019;04-06-2019;600;0;120;1;Spese correnti;3;Acquisto di beni e servizi;2;Acquisto di servizi;5;Utenze e canoni;4;Energia elettrica;04-06-2019;
763;5;0;"90,13";"1.153,10";ENEL ENERGIA S.P.A.;7134285639;SALDO Fatt.n. 003034365333  del 16/05/2019 ENEL CENTRO CULTURALE - APRILE 2019;04-06-2019;600;0;120;1;Spese correnti;3;Acquisto di beni e servizi;2;Acquisto di servizi;5;Utenze e canoni;4;Energia elettrica;04-06-2019;
763;6;0;"240,35";"1.153,10";ENEL ENERGIA S.P.A.;7134285639;SALDO Fatt.n. 003034595400  del 23/05/2019 ENEL - APRILE 2019;04-06-2019;600;0;120;1;Spese correnti;3;Acquisto di beni e servizi;2;Acquisto di servizi;5;Utenze e canoni;4;Energia elettrica;04-06-2019;
763;7;0;"346,24";"1.153,10";ENEL ENERGIA S.P.A.;7134285639;SALDO Fatt.n. 003027727172  del 07/05/2019 ENEL CENTRO POLIVALENTE - APRILE 2019;04-06-2019;600;0;120;1;Spese correnti;3;Acquisto di beni e servizi;2;Acquisto di servizi;5;Utenze e canoni;4;Energia elettrica;04-06-2019;
763;8;0;"390,03";"1.153,10";ENEL ENERGIA S.P.A.;7134285639;"SALDO Fatt.n. 003034671329  del 29/05/2019 ENEL - CHIUSURA CONTRATTO - DICEMBRE 2017, APRILE 2018";04-06-2019;600;0;120;1;Spese correnti;3;Acquisto di beni e servizi;2;Acquisto di servizi;5;Utenze e canoni;4;Energia elettrica;04-06-2019;
764;1;0;"261,91";"851,79";ENEL ENERGIA S.P.A.;7134285639;SALDO Fatt.n. 003034365326  del 16/05/2019 ENEL IMPIANTI SPORTIVI - APRILE 2019;04-06-2019;530;0;118;1;Spese correnti;3;Acquisto di beni e servizi;2;Acquisto di servizi;5;Utenze e canoni;4;Energia elettrica;04-06-2019;
764;2;0;"589,88";"851,79";ENEL ENERGIA S.P.A.;7134285639;SALDO Fatt.n. 003027727164  del 07/05/2019 ENEL IMPIANTI SPORTIVI  - APRILE 2019;04-06-2019;530;0;118;1;Spese correnti;3;Acquisto di beni e servizi;2;Acquisto di servizi;5;Utenze e canoni;4;Energia elettrica;04-06-2019;
765;1;0;"3.078,22";"6.857,50";OMESSO NOMINATIVO NEL RISPETTO DELLA NORMATIVA SULLA PROTEZIONE DATI PERSONALI; ;INTERVENTI PER L'ELIMINAZIONE DELLE BARRIERE ARCHITETTONICHE. LEGGE N. 13/89. EROGAZIONE CONTRIBUTO.;05-06-2019;573;0;235;1;Spese correnti;4;Trasferimenti correnti;2;Trasferimenti correnti a Famiglie;2;Interventi assistenziali;999;Altri assegni e sussidi assistenziali;05-06-2019;
765;2;0;"1.133,02";"6.857,50";OMESSO NOMINATIVO NEL RISPETTO DELLA NORMATIVA SULLA PROTEZIONE DATI PERSONALI; ;INTERVENTI PER L'ELIMINAZIONE DELLE BARRIERE ARCHITETTONICHE. LEGGE N. 13/89. EROGAZIONE CONTRIBUTO.;05-06-2019;573;0;235;1;Spese correnti;4;Trasferimenti correnti;2;Trasferimenti correnti a Famiglie;2;Interventi assistenziali;999;Altri assegni e sussidi assistenziali;05-06-2019;
765;3;0;"2.646,26";"6.857,50";OMESSO NOMINATIVO NEL RISPETTO DELLA NORMATIVA SULLA PROTEZIONE DATI PERSONALI; ;INTERVENTI PER L'ELIMINAZIONE DELLE BARRIERE ARCHITETTONICHE. LEGGE N. 13/89. EROGAZIONE CONTRIBUTO.;05-06-2019;573;0;235;1;Spese correnti;4;Trasferimenti correnti;2;Trasferimenti correnti a Famiglie;2;Interventi assistenziali;999;Altri assegni e sussidi assistenziali;05-06-2019;
766;1;0;"780,00";"780,00";OMESSO NOMINATIVO NEL RISPETTO DELLA NORMATIVA SULLA PROTEZIONE DATI PERSONALI; ;LIQUIDAZIONE SPESA A FAVORE DELL'ASSOCIAZIONE PRO LOCO DI SAN ZENONE DEGLI EZZELINI PER LA GESTIONE DELL' INAUGURAZIONE DEL MUSEO MULTIMEDIALE DELL'ANTICA PIEVE - 18.05.2019.;05-06-2019;333;1;268;1;Spese correnti;4;Trasferimenti correnti;1;Trasferimenti correnti a Amministrazioni Pubbliche;4;Trasferimenti correnti a organismi interni e/o unità locali della amministrazione;1;Trasferimenti correnti a organismi interni e/o unità locali della amministrazione;05-06-2019;
767;1;0;"106,50";"106,50";OMESSO NOMINATIVO NEL RISPETTO DELLA NORMATIVA SULLA PROTEZIONE DATI PERSONALI; ;Fattura Casa di Riposo Aita n. 184/B del 09/05/2019 per pasti a domicilio mese aprile 2019.;06-06-2019;576;0;110;1;Spese correnti;4;Trasferimenti correnti;2;Trasferimenti correnti a Famiglie;2;Interventi assistenziali;999;Altri assegni e sussidi assistenziali;06-06-2019;
768;1;0;"0,50";"0,50";U.L.S.S.   N. 2 MARCA TREVIGIANA; ;I.V.A. SPLIT ISTITUZIONALE su Fatt.n. 19-V11-000104  del 01/03/2019 COSTO MICROCHIP (VEDI REV. N. 405).;06-06-2019;180;0;238;1;Spese correnti;3;Acquisto di beni e servizi;2;Acquisto di servizi;15;Contratti di servizio pubblico;11;Contratti di servizio per la lotta al randagismo;06-06-2019;
769;1;0;"295,50";"295,50";OMESSO NOMINATIVO NEL RISPETTO DELLA NORMATIVA SULLA PROTEZIONE DATI PERSONALI; ;Saldo fattura Casa di Riposo Aita n. 189/B del 09/05/2019 per pasti a domicilio mese di aprile 2019.;06-06-2019;576;0;239;1;Spese correnti;4;Trasferimenti correnti;2;Trasferimenti correnti a Famiglie;2;Interventi assistenziali;999;Altri assegni e sussidi assistenziali;06-06-2019;
770;1;0;"154.000,00";"154.000,00";FALLIMENTO FENICE S.R.L.; ;IMPEGNO DI SPESA E LIQUIDAZIONE ALLA CURATELA DEL FALLIMENTO FENICE SRL DELL'IMPORTO STABILITO DALL'ACCORDO TRANSATTIVO INERENTE L'OASI SAN DANIELE DI LIEDOLO. RESTITUZIONE SOMMA.;07-06-2019;1073;0;280;2;Spese in conto capitale;5;Altre spese in conto capitale;99;Altre spese in conto capitale n.a.c.;99;Altre spese in conto capitale n.a.c.;999;Altre spese in conto capitale n.a.c.;07-06-2019;
771;1;0;"154.000,00";"154.000,00";ATRADIUS CREDITO Y CAUCION S.A. DE SEGUROS Y REASEGUROS; ;IMPEGNO DI SPESA E LIQUIDAZIONE ALLA SOCIETA' ASSICURATRICE ATRADIUS CREDITO Y CAUCION S.A. DE SEGUROS Y REASEGUROS DELL'IMPORTO STABILITO DALL'ACCORDO TRANSATTIVO INERENTE L'OASI SAN DANIELE DI LIEDOLO. RESTITUZIONE SOMMA.;07-06-2019;1072;0;281;2;Spese in conto capitale;5;Altre spese in conto capitale;99;Altre spese in conto capitale n.a.c.;99;Altre spese in conto capitale n.a.c.;999;Altre spese in conto capitale n.a.c.;07-06-2019;
772;1;0;"125,00";"125,00";PECCOLO BEATRICE;ZAC2854993;LABORATORI DI CIRCOMOTRICITA' - SENSIBILIZZAZIONE "FAMIGLIE IN RETE": LIQUIDAZIONE NOTA DEL 20/05/2019.;07-06-2019;305;1;248;1;Spese correnti;3;Acquisto di beni e servizi;2;Acquisto di servizi;2;"Organizzazione eventi, pubblicita` e servizi per trasferta";5;Organizzazione e partecipazione a manifestazioni e convegni;07-06-2019;
773;1;0;"300,00";"300,00";EUREKA INFORMATICA S.R.L.;Z6827BA50E;SALDO Fatt.n. 630  del 16/05/2019 MANUTENZIONE AI PERSONAL COMPUTER DEGLI UFFICI COMUNALI;10-06-2019;33;1;151;1;Spese correnti;3;Acquisto di beni e servizi;2;Acquisto di servizi;9;Manutenzione ordinaria e riparazioni;6;Manutenzione ordinaria e riparazioni di macchine per ufficio;10-06-2019;
774;1;0;"3.451,00";"3.451,00";MAROSO MARTINO;Z1B2693FB3;SALDO Fatt.n. FATTPA 3_19  del 20/05/2019 MANUTENZIONE INFISSI DELLA TORRE D'EZZELINO;10-06-2019;313;1;575;1;Spese correnti;3;Acquisto di beni e servizi;2;Acquisto di servizi;9;Manutenzione ordinaria e riparazioni;9;"Manutenzione ordinaria e riparazioni di beni immobili di valore culturale, storico ed artistico";10-06-2019;
775;1;0;"555,53";"555,53";MANCOR SPA - LIBRERIA PALAZZO ROBERTI;ZAA27025D4;SALDO Fatt.n. 40055  del 21/05/2019 ACQUISTO LIBRI PER BIBLIOTECA COMUNALE;10-06-2019;304;0;56;1;Spese correnti;3;Acquisto di beni e servizi;1;Acquisto di beni;1;"Giornali, riviste e pubblicazioni";2;Pubblicazioni;10-06-2019;
776;1;0;"800,00";"800,00";SALUS S.R.L.;Z542852617;ACCONTO Fatt.n. 00088/B  del 22/05/2019 VISITE MEDICHE DIPENDENTI  - ANNO 2019;10-06-2019;152;1;258;1;Spese correnti;3;Acquisto di beni e servizi;2;Acquisto di servizi;18;Servizi sanitari;1;Spese per accertamenti sanitari resi necessari dall'attività lavorativa;10-06-2019;
777;1;0;"987,30";"987,30";SALUS S.R.L.;Z542852617;SALDO Fatt.n. 00088/B  del 22/05/2019 VISITE MEDICHE DIPENDENTI  - ANNO 2019;10-06-2019;152;0;259;1;Spese correnti;3;Acquisto di beni e servizi;2;Acquisto di servizi;11;Prestazioni professionali e specialistiche;999;Altre prestazioni professionali e specialistiche n.a.c.;10-06-2019;
778;1;0;"7.599,33";"7.599,33";MENEGHIN MAURIZIO;Z312695A38;SALDO Fatt.n. 1/PA  del 21/05/2019 LAVORI CIMITERO SAN ZENONE DEGLI EZZELINI;10-06-2019;898;3;587;2;Spese in conto capitale;2;Investimenti fissi lordi e acquisto di terreni;1;Beni materiali;9;Beni immobili;15;Cimiteri;10-06-2019;
779;1;0;"2.264,90";"2.264,90";VERDE IDEA DI BOTTER MICHELE;Z6F2662F6A;SALDO Fatt.n. 2A  del 23/05/2019 FORNITURA E MESSA IN OPERA DI ALBERATURE NEI PARCHI;10-06-2019;850;0;579;2;Spese in conto capitale;2;Investimenti fissi lordi e acquisto di terreni;3;Beni immateriali;5;Incarichi professionali per la realizzazione di investimenti;1;Incarichi professionali per la realizzazione di investimenti;10-06-2019;
780;1;0;"186,66";"186,66";E.N.P.A. ENTE NAZIONALE PROTEZIONE ANIMALI ONLUS;75313770EA;ACCONTO Fatt.n. 868/PA  del 22/05/2019 CUSTODIA E MANTENIMENTO DEI CANI RANDAGI: GENNAIO-MARZO 2019;10-06-2019;180;0;286;1;Spese correnti;3;Acquisto di beni e servizi;2;Acquisto di servizi;15;Contratti di servizio pubblico;11;Contratti di servizio per la lotta al randagismo;10-06-2019;
781;1;0;"319,90";"319,90";E.N.P.A. ENTE NAZIONALE PROTEZIONE ANIMALI ONLUS;75313770EA;SALDO Fatt.n. 868/PA  del 22/05/2019 CUSTODIA E MANTENIMENTO DEI CANI RANDAGI: GENNAIO-MARZO 2019;10-06-2019;180;0;385;1;Spese correnti;3;Acquisto di beni e servizi;2;Acquisto di servizi;15;Contratti di servizio pubblico;11;Contratti di servizio per la lotta al randagismo;10-06-2019;
782;1;0;"3.000,00";"3.000,00";COOPERATIVA SOCIALE EOS;Z6C23650B5;ACCONTO Fatt.n. 2019240000056  del 24/05/2019 AFFIDAMENTO INCARICO PER SERVIZI CIMITERIALI;10-06-2019;591;1;190;1;Spese correnti;3;Acquisto di beni e servizi;2;Acquisto di servizi;9;Manutenzione ordinaria e riparazioni;12;Manutenzione ordinaria e riparazioni di terreni e beni materiali non prodotti;10-06-2019;
783;1;0;"7.366,34";"7.366,34";COOPERATIVA SOCIALE EOS;Z6C23650B5;SALDO Fatt.n. 2019240000056  del 24/05/2019 AFFIDAMENTO INCARICO PER SERVIZI CIMITERIALI;10-06-2019;898;3;189;2;Spese in conto capitale;2;Investimenti fissi lordi e acquisto di terreni;1;Beni materiali;9;Beni immobili;15;Cimiteri;10-06-2019;
784;1;0;"120,05";"120,05";MyO S.P.A.;Z9227CEF07;SALDO Fatt.n. 2040/190013232  del 24/05/2019 IMPEGNO DI SPESA PER ACQUISTO STAMPATI;10-06-2019;9;2;163;1;Spese correnti;3;Acquisto di beni e servizi;1;Acquisto di beni;2;Altri beni di consumo;10;Beni per consultazioni elettorali;10-06-2019;
785;1;0;"276,99";"276,99";ORMET S.R.L.;Z4F282531E;SALDO Fatt.n. 19EL/0033  del 24/05/2019 CONTROLLO GENERALE VOSTRA GRU PER PRIMA VERIFICA INAIL;10-06-2019;589;1;231;1;Spese correnti;3;Acquisto di beni e servizi;2;Acquisto di servizi;9;Manutenzione ordinaria e riparazioni;1;"Manutenzione ordinaria e riparazioni di mezzi di trasporto ad uso civile, di sicurezza e ordine pubblico";10-06-2019;
786;1;0;"13.829,92";"13.829,92";STUDIO NADALIN S.R.L.;Z432693FB2;ACCONTO Fatt.n. 7/001  del 28/05/2019 AFFIDAMENTO INCARICO PROGETTAZIONE SCUOLE;10-06-2019;1009;0;293;2;Spese in conto capitale;2;Investimenti fissi lordi e acquisto di terreni;3;Beni immateriali;5;Incarichi professionali per la realizzazione di investimenti;1;Incarichi professionali per la realizzazione di investimenti;10-06-2019;
787;1;0;"581,21";"581,21";STUDIO NADALIN S.R.L.;Z432693FB2;ACCONTO Fatt.n. 7/001  del 28/05/2019 AFFIDAMENTO INCARICO PROGETTAZIONE SCUOLE;10-06-2019;64;1;261;1;Spese correnti;3;Acquisto di beni e servizi;2;Acquisto di servizi;11;Prestazioni professionali e specialistiche;999;Altre prestazioni professionali e specialistiche n.a.c.;10-06-2019;
788;1;0;"10.968,29";"10.968,29";STUDIO NADALIN S.R.L.;Z432693FB2;SALDO Fatt.n. 7/001  del 28/05/2019 AFFIDAMENTO INCARICO PROGETTAZIONE SCUOLE;10-06-2019;64;1;567;1;Spese correnti;3;Acquisto di beni e servizi;2;Acquisto di servizi;11;Prestazioni professionali e specialistiche;999;Altre prestazioni professionali e specialistiche n.a.c.;10-06-2019;
789;1;0;"1.354,46";"1.354,46";KYOCERA DOCUMENT SOLUTIONS ITALIA S.P.A.;ZF02648E30;SALDO Fatt.n. 1010549359  del 29/05/2019 UTENZE E CANONI SCUOLE MEDIE;10-06-2019;252;0;520;1;Spese correnti;3;Acquisto di beni e servizi;2;Acquisto di servizi;5;Utenze e canoni;999;Utenze e canoni per altri servizi n.a.c.;10-06-2019;
790;1;0;"6.068,49";"6.068,49";CASA DI RIPOSO 'AITA'; ;SALDO Fatt.n. 311/C  del 31/05/2019 FORNITURA PASTI MENSA SCUOLE - MAGGIO 2019;10-06-2019;274;1;54;1;Spese correnti;3;Acquisto di beni e servizi;2;Acquisto di servizi;15;Contratti di servizio pubblico;6;Contratti di servizio per le mense scolastiche;10-06-2019;
791;1;0;"12.410,70";"12.410,70";Mobilità di Marca S.P.A.;7168087C82;SALDO Fatt.n. 000529  del 03/06/2019 SERVIZIO DI TRASPORTO SCOLASTICO - MAGGIO 2019;10-06-2019;275;1;301;1;Spese correnti;3;Acquisto di beni e servizi;2;Acquisto di servizi;15;Contratti di servizio pubblico;2;Contratti di servizio di trasporto scolastico;10-06-2019;
793;1;0;"192,82";"192,82";KUWAIT PETROLEUM ITALIA S.P.A.;Z4E197F01F;SALDO Fatt.n. PJ01224094  del 31/05/2019 CARBURANTE AUTOMEZZI UFFICIO SOCIALE;10-06-2019;571;0;155;1;Spese correnti;3;Acquisto di beni e servizi;1;Acquisto di beni;2;Altri beni di consumo;2;"Carburanti, combustibili e lubrificanti";10-06-2019;
794;1;0;"133,00";"133,00";KUWAIT PETROLEUM ITALIA S.P.A.;Z4E197F01F;SALDO Fatt.n. PJ01224095  del 31/05/2019 CARBURANTE AUTOMEZZO POLIZIA LOCALE;10-06-2019;179;0;154;1;Spese correnti;3;Acquisto di beni e servizi;1;Acquisto di beni;2;Altri beni di consumo;2;"Carburanti, combustibili e lubrificanti";10-06-2019;
795;1;0;"189,40";"189,40";KUWAIT PETROLEUM ITALIA S.P.A.;Z4E197F01F;SALDO Fatt.n. PJ01224093  del 31/05/2019 CARBURANTE AUTOMEZZI VIABILITA';10-06-2019;590;0;156;1;Spese correnti;3;Acquisto di beni e servizi;1;Acquisto di beni;2;Altri beni di consumo;2;"Carburanti, combustibili e lubrificanti";10-06-2019;
796;1;0;"24,40";"671,00";ASCO TLC S.P.A.;ZCD271B191;SALDO Fatt.n. 09017714  del 31/05/2019 UTENZE E CANONI SCUOLA MEDIA;10-06-2019;252;0;79;1;Spese correnti;3;Acquisto di beni e servizi;2;Acquisto di servizi;5;Utenze e canoni;999;Utenze e canoni per altri servizi n.a.c.;10-06-2019;
796;2;0;"176,90";"671,00";ASCO TLC S.P.A.;ZCD271B191;SALDO Fatt.n. 09017716  del 31/05/2019 UTENZE E CANONI SCUOLE MEDIE;10-06-2019;252;0;79;1;Spese correnti;3;Acquisto di beni e servizi;2;Acquisto di servizi;5;Utenze e canoni;999;Utenze e canoni per altri servizi n.a.c.;10-06-2019;
796;3;0;"469,70";"671,00";ASCO TLC S.P.A.;ZCD271B191;SALDO Fatt.n. 09017715  del 31/05/2019 UTENZE E CANONI SCUOLE MEDIE;10-06-2019;252;0;79;1;Spese correnti;3;Acquisto di beni e servizi;2;Acquisto di servizi;5;Utenze e canoni;999;Utenze e canoni per altri servizi n.a.c.;10-06-2019;
800;1;0;"41,32";"289,24";BAGGIO ELIA; ;ELEZIONI AMMINISTRATIVE DEL 26.05.2019 - PAGAMENTO ONORARI AI PARTECIPANTI ALL'ADUNANZA DEI PRESIDENTI DEGLI UFFICI ELETTORALI DI SEZIONE.;13-06-2019;9;3;272;1;Spese correnti;3;Acquisto di beni e servizi;2;Acquisto di servizi;99;Altri servizi;4;Altre spese per consultazioni elettorali dell'ente;13-06-2019;
800;2;0;"41,32";"289,24";GAZZOLA GIANLUCA; ;ELEZIONI AMMINISTRATIVE DEL 26.05.2019 - PAGAMENTO ONORARI AI PARTECIPANTI ALL'ADUNANZA DEI PRESIDENTI DEGLI UFFICI ELETTORALI DI SEZIONE.;13-06-2019;9;3;272;1;Spese correnti;3;Acquisto di beni e servizi;2;Acquisto di servizi;99;Altri servizi;4;Altre spese per consultazioni elettorali dell'ente;13-06-2019;
800;3;0;"41,32";"289,24";MONTAGNIN MARIANO; ;ELEZIONI AMMINISTRATIVE DEL 26.05.2019 - PAGAMENTO ONORARI AI PARTECIPANTI ALL'ADUNANZA DEI PRESIDENTI DEGLI UFFICI ELETTORALI DI SEZIONE.;13-06-2019;9;3;272;1;Spese correnti;3;Acquisto di beni e servizi;2;Acquisto di servizi;99;Altri servizi;4;Altre spese per consultazioni elettorali dell'ente;13-06-2019;
800;4;0;"41,32";"289,24";PELLIZZARI DIEGO; ;ELEZIONI AMMINISTRATIVE DEL 26.05.2019 - PAGAMENTO ONORARI AI PARTECIPANTI ALL'ADUNANZA DEI PRESIDENTI DEGLI UFFICI ELETTORALI DI SEZIONE.;13-06-2019;9;3;272;1;Spese correnti;3;Acquisto di beni e servizi;2;Acquisto di servizi;99;Altri servizi;4;Altre spese per consultazioni elettorali dell'ente;13-06-2019;
800;5;0;"41,32";"289,24";PELLIZZARI KATIA; ;ELEZIONI AMMINISTRATIVE DEL 26.05.2019 - PAGAMENTO ONORARI AI PARTECIPANTI ALL'ADUNANZA DEI PRESIDENTI DEGLI UFFICI ELETTORALI DI SEZIONE.;13-06-2019;9;3;272;1;Spese correnti;3;Acquisto di beni e servizi;2;Acquisto di servizi;99;Altri servizi;4;Altre spese per consultazioni elettorali dell'ente;13-06-2019;
800;6;0;"41,32";"289,24";TEDESCO GIANFRANCO; ;ELEZIONI AMMINISTRATIVE DEL 26.05.2019 - PAGAMENTO ONORARI AI PARTECIPANTI ALL'ADUNANZA DEI PRESIDENTI DEGLI UFFICI ELETTORALI DI SEZIONE.;13-06-2019;9;3;272;1;Spese correnti;3;Acquisto di beni e servizi;2;Acquisto di servizi;99;Altri servizi;4;Altre spese per consultazioni elettorali dell'ente;13-06-2019;
800;7;0;"41,32";"289,24";ZAMPERIN RICCARDO; ;ELEZIONI AMMINISTRATIVE DEL 26.05.2019 - PAGAMENTO ONORARI AI PARTECIPANTI ALL'ADUNANZA DEI PRESIDENTI DEGLI UFFICI ELETTORALI DI SEZIONE.;13-06-2019;9;3;272;1;Spese correnti;3;Acquisto di beni e servizi;2;Acquisto di servizi;99;Altri servizi;4;Altre spese per consultazioni elettorali dell'ente;13-06-2019;
805;1;0;"345,00";"345,00";PERSONALE DIPENDENTE - SEDE; ;IMPEGNO DI SPESA PER RIMBORSO SPESE E ACCESSI AL SEGRETARIO COMUNALE DR. ORSO PAOLO PER L'ANNO 2019.;13-06-2019;20;0;29;1;Spese correnti;3;Acquisto di beni e servizi;2;Acquisto di servizi;2;"Organizzazione eventi, pubblicita` e servizi per trasferta";1;Rimborso per viaggio e trasloco;13-06-2019;
806;1;0;"47,61";"47,61";PERSONALE DIPENDENTE - SEDE; ;STIPENDI MESE DI: GIUGNO 19;13-06-2019;20;0;29;1;Spese correnti;3;Acquisto di beni e servizi;2;Acquisto di servizi;2;"Organizzazione eventi, pubblicita` e servizi per trasferta";1;Rimborso per viaggio e trasloco;13-06-2019;
815;1;0;"20,40";"20,40";PERSONALE DIPENDENTE - SEDE; ;STIPENDI MESE DI: GIUGNO 19;13-06-2019;62;0;23;1;Spese correnti;3;Acquisto di beni e servizi;2;Acquisto di servizi;2;"Organizzazione eventi, pubblicita` e servizi per trasferta";1;Rimborso per viaggio e trasloco;13-06-2019;
825;1;0;"37,49";"37,49";PERSONALE DIPENDENTE - SEDE; ;STIPENDI MESE DI: GIUGNO 19;13-06-2019;174;0;25;1;Spese correnti;3;Acquisto di beni e servizi;2;Acquisto di servizi;2;"Organizzazione eventi, pubblicita` e servizi per trasferta";1;Rimborso per viaggio e trasloco;13-06-2019;
837;1;0;"5,40";"5,40";LA IDROFERRAMENTA SRL;Z192700D74;SALDO Fatt.n. 50/PA  del 31/05/2019 ACQUISTO DI BENI PER STRADE COMUNALI;17-06-2019;591;0;58;1;Spese correnti;3;Acquisto di beni e servizi;1;Acquisto di beni;2;Altri beni di consumo;999;Altri beni e materiali di consumo n.a.c.;17-06-2019;
839;1;0;"2.888,62";"2.888,62";A.S. DI ANDREATTA GIUSEPPE & C. S.R.L.;Z572272F19;SALDO Fatt.n. 0393  del 31/05/2019 MANUTENZIONE IMPIANTI ELETTRICI;17-06-2019;601;0;529;1;Spese correnti;3;Acquisto di beni e servizi;2;Acquisto di servizi;15;Contratti di servizio pubblico;15;Contratti di servizio per l'illuminazione pubblica;17-06-2019;
840;1;0;"1.950,00";"1.950,00";CASA DI RIPOSO 'AITA'; ;SALDO Fatt.n. 230/B  del 31/05/2019 SERVIZIO DI A.D. - APRILE 2019;17-06-2019;562;1;240;1;Spese correnti;3;Acquisto di beni e servizi;2;Acquisto di servizi;15;Contratti di servizio pubblico;9;Contratti di servizio di assistenza sociale domiciliare;17-06-2019;
841;1;0;"1.869,30";"1.869,30";OPERE PIE D'ONIGO; ;SALDO Fatt.n. 169/2  del 31/05/2019 SPESE RETTE PER ANZIANI;17-06-2019;560;0;32;1;Spese correnti;3;Acquisto di beni e servizi;2;Acquisto di servizi;15;Contratti di servizio pubblico;8;Contratti di servizio di assistenza sociale residenziale e semiresidenziale;17-06-2019;
842;1;0;"214,72";"214,72";TRENTIN ASFALTI S.R.L.;Z6128A778B;SALDO Fatt.n. 4EL  del 31/05/2019 MATERIALI PER MANUTENZIONE STRADE;17-06-2019;591;0;282;1;Spese correnti;3;Acquisto di beni e servizi;1;Acquisto di beni;2;Altri beni di consumo;999;Altri beni e materiali di consumo n.a.c.;17-06-2019;
843;1;0;"1.440,00";"1.440,00";NOIGROUP Coop. Soc. a R.L.;Z5F268727B;SALDO Fatt.n. 419  del 31/05/2019 SERVIZIO GESTIONE DELLA BIBLIOTECA ATTIVITA'MAGGIO 2019;17-06-2019;302;1;553;1;Spese correnti;3;Acquisto di beni e servizi;2;Acquisto di servizi;16;Servizi amministrativi;999;Altre spese per servizi amministrativi;17-06-2019;
844;1;0;"1.769,00";"1.769,00";COOPERATIVA SOCIALE EOS;Z1E2456A43;ACCONTO Fatt.n. 2019240000057  del 24/05/2019 SERVIZIO DI MANUTENZIONE DEL VERDE PUBBLICO;17-06-2019;413;1;589;1;Spese correnti;3;Acquisto di beni e servizi;2;Acquisto di servizi;9;Manutenzione ordinaria e riparazioni;12;Manutenzione ordinaria e riparazioni di terreni e beni materiali non prodotti;17-06-2019;
845;1;0;"11.060,08";"11.060,08";COOPERATIVA SOCIALE EOS;Z1E2456A43;ACCONTO Fatt.n. 2019240000057  del 24/05/2019 SERVIZIO DI MANUTENZIONE DEL VERDE PUBBLICO;17-06-2019;593;0;329;1;Spese correnti;3;Acquisto di beni e servizi;2;Acquisto di servizi;9;Manutenzione ordinaria e riparazioni;12;Manutenzione ordinaria e riparazioni di terreni e beni materiali non prodotti;17-06-2019;
846;1;0;"3.500,00";"3.500,00";COOPERATIVA SOCIALE EOS;Z1E2456A43;ACCONTO Fatt.n. 2019240000057  del 24/05/2019 SERVIZIO DI MANUTENZIONE DEL VERDE PUBBLICO;17-06-2019;251;0;328;1;Spese correnti;3;Acquisto di beni e servizi;1;Acquisto di beni;2;Altri beni di consumo;999;Altri beni e materiali di consumo n.a.c.;17-06-2019;
847;1;0;"1.500,00";"1.500,00";COOPERATIVA SOCIALE EOS;Z1E2456A43;SALDO Fatt.n. 2019240000057  del 24/05/2019 SERVIZIO DI MANUTENZIONE DEL VERDE PUBBLICO;17-06-2019;705;0;327;1;Spese correnti;3;Acquisto di beni e servizi;2;Acquisto di servizi;99;Altri servizi;9;Acquisto di sevizi per verde e arredo urbano;17-06-2019;
848;1;0;"111,02";"111,02";FERRONATO S.R.L.;Z7C26AD935;SALDO Fatt.n. P2  del 29/05/2019 ACQUISTO MATERIALI PER MANUTENZIONE STRADE;17-06-2019;531;0;61;1;Spese correnti;3;Acquisto di beni e servizi;1;Acquisto di beni;2;Altri beni di consumo;999;Altri beni e materiali di consumo n.a.c.;17-06-2019;
849;1;0;"200,00";"200,00";ASSOCIAZIONE PRO LOCO SAN ZENONE DEGLI EZZELINI; ;LIQUIDAZIONE SPESA A FAVORE DELLA ASSOCIAZIONE PRO LOCO DI SAN ZENONE DEGLI EZZELINI PER LA CERIMONIA FESTA DELLA REPUBBLICA 2 GIUGNO 2019.;20-06-2019;40;3;308;1;Spese correnti;4;Trasferimenti correnti;1;Trasferimenti correnti a Amministrazioni Pubbliche;4;Trasferimenti correnti a organismi interni e/o unità locali della amministrazione;1;Trasferimenti correnti a organismi interni e/o unità locali della amministrazione;20-06-2019;
851;1;0;"105,95";"105,95";CONTI BANCO POSTA; ;SPESE SU BANCO POSTA SERV. DI TESORERIA  - QUARTO TRIMESTRE 2018. GIRO CONTABILE DA CAP. 45 SPESA A CAP. 171 ENTRATA (VEDI REV. N. 627).;20-06-2019;45;0;628;1;Spese correnti;3;Acquisto di beni e servizi;2;Acquisto di servizi;16;Servizi amministrativi;2;Spese postali;20-06-2019;
852;1;0;"70,25";"70,25";CONTI BANCO POSTA; ;SPESE SU BANCO POSTA SERV. DI POLIZIA LOCALE - GIRO CONTABILE DA CAP. 45 SPESA A CAP. 750 ENTRATA  - QUARTO TRIMESTRE 2018 (VEDI REV. N. 629).;20-06-2019;45;0;628;1;Spese correnti;3;Acquisto di beni e servizi;2;Acquisto di servizi;16;Servizi amministrativi;2;Spese postali;20-06-2019;
853;1;0;"111,75";"111,75";OMESSO NOMINATIVO NEL RISPETTO DELLA NORMATIVA SULLA PROTEZIONE DATI PERSONALI; ;FATT. N. 253/B DEL 13/06/2019 CASA DI RIPOSO AITA PER PASTI A DOMICILIIO MAGGIO 2019.;20-06-2019;576;0;110;1;Spese correnti;4;Trasferimenti correnti;2;Trasferimenti correnti a Famiglie;2;Interventi assistenziali;999;Altri assegni e sussidi assistenziali;20-06-2019;
854;1;0;"316,50";"316,50";OMESSO NOMINATIVO NEL RISPETTO DELLA NORMATIVA SULLA PROTEZIONE DATI PERSONALI; ;FATTURA N. 258/B DEL 13/06/2019 PER PASTI A DOMICILIO MESE MAGGIO 2019.;20-06-2019;576;0;239;1;Spese correnti;4;Trasferimenti correnti;2;Trasferimenti correnti a Famiglie;2;Interventi assistenziali;999;Altri assegni e sussidi assistenziali;20-06-2019;
855;1;0;"400,00";"400,00";OMESSO NOMINATIVO NEL RISPETTO DELLA NORMATIVA SULLA PROTEZIONE DATI PERSONALI; ;IMPEGNO DI SPESA PER SERVIZIO DI ANIMAZIONE ANZIANI AL SOGGIORNO CLIMATICO DI JESOLO (VE) 2019: LIQUIDAZIONE COMPENSO.;25-06-2019;578;1;276;1;Spese correnti;3;Acquisto di beni e servizi;2;Acquisto di servizi;99;Altri servizi;999;Altri servizi diversi n.a.c.;25-06-2019;
856;1;0;"-5.580,28";"5.580,28";F.LLI ZONTA S.A.S.;ZEA27EF1F6;SALDO Fatt.n. B0000000005  del 31/05/2019 NOTA DI ACCREDITO;26-06-2019;745;0;179;2;Spese in conto capitale;2;Investimenti fissi lordi e acquisto di terreni;1;Beni materiali;9;Beni immobili;999;Beni immobili n.a.c.;26-06-2019;
856;2;0;"5.580,28";"5.580,28";F.LLI ZONTA S.A.S.;ZEA27EF1F6;SALDO Fatt.n. B0000000003  del 14/05/2019 FORNITURA SISTEMI DI ILLUMINAZIONE PER IL CASTELLARO;26-06-2019;745;0;179;2;Spese in conto capitale;2;Investimenti fissi lordi e acquisto di terreni;1;Beni materiali;9;Beni immobili;999;Beni immobili n.a.c.;26-06-2019;
856;3;0;"5.580,28";"5.580,28";F.LLI ZONTA S.A.S.;ZEA27EF1F6;SALDO Fatt.n. B0000000006  del 31/05/2019 FORNITURA SISTEMI DI ILLUMINAZIONE PER IL CASTELLARO;26-06-2019;745;0;179;2;Spese in conto capitale;2;Investimenti fissi lordi e acquisto di terreni;1;Beni materiali;9;Beni immobili;999;Beni immobili n.a.c.;26-06-2019;
857;1;0;"6,60";"6,60";OOP SYSTEMS S.R.L.;ZC728523C0;ACCONTO Fatt.n. F_2019/103  del 27/05/2019 FORNITURA MATERIALE PER IL PLOTTER UFFICIO TECNICO;26-06-2019;37;0;295;1;Spese correnti;3;Acquisto di beni e servizi;1;Acquisto di beni;2;Altri beni di consumo;6;Materiale informatico;26-06-2019;
858;1;0;"240,29";"240,29";OOP SYSTEMS S.R.L.;ZC728523C0;SALDO Fatt.n. F_2019/103  del 27/05/2019 FORNITURA MATERIALE PER IL PLOTTER UFFICIO TECNICO;26-06-2019;37;0;244;1;Spese correnti;3;Acquisto di beni e servizi;1;Acquisto di beni;2;Altri beni di consumo;7;Altri materiali tecnico-specialistici non sanitari;26-06-2019;
859;1;0;"1.317,60";"1.317,60";KAPPADUE SNC DI FORNER E. & FAVERO L.;ZD528868EC;ACCONTO Fatt.n. 429  del 31/05/2019 IMPEGNO DI SPESA MATERIALE INFORMATIVO DESTINATO AI CITTADINI;26-06-2019;41;1;265;1;Spese correnti;3;Acquisto di beni e servizi;2;Acquisto di servizi;99;Altri servizi;12;Rassegna stampa;26-06-2019;
860;1;0;"390,40";"390,40";KAPPADUE SNC DI FORNER E. & FAVERO L.;ZD528868EC;SALDO Fatt.n. 429  del 31/05/2019 IMPEGNO DI SPESA MATERIALE INFORMATIVO DESTINATO AI CITTADINI;26-06-2019;40;2;288;1;Spese correnti;3;Acquisto di beni e servizi;1;Acquisto di beni;2;Altri beni di consumo;1;"Carta, cancelleria e stampati";26-06-2019;
861;1;0;"210,00";"210,00";SONDA COOPERATIVA SOCIALE ONLUS; ;SALDO Fatt.n. 199/PA/2019  del 07/06/2019 RETTE PER ANZIANI;26-06-2019;560;0;274;1;Spese correnti;3;Acquisto di beni e servizi;2;Acquisto di servizi;15;Contratti di servizio pubblico;8;Contratti di servizio di assistenza sociale residenziale e semiresidenziale;26-06-2019;
862;1;0;"1.699,00";"1.699,00";CASA DI RIPOSO 'AITA'; ;SALDO Fatt.n. 238/B  del 10/06/2019 L.V. SPESA PERSONA BISOGNOSA;26-06-2019;560;0;31;1;Spese correnti;3;Acquisto di beni e servizi;2;Acquisto di servizi;15;Contratti di servizio pubblico;8;Contratti di servizio di assistenza sociale residenziale e semiresidenziale;26-06-2019;
863;1;0;"522,62";"522,62";AS.COM SERVIZI DEL MANDAMENTO S.R.L.; ;SALDO Fatt.n. 00038/02  del 11/06/2019 LOCAZIONE CENTRO PER L'IMPIEGO 16/06-15/09;26-06-2019;516;0;135;1;Spese correnti;3;Acquisto di beni e servizi;2;Acquisto di servizi;7;Utilizzo di beni di terzi;1;Locazione di beni immobili;26-06-2019;
864;1;0;"14.837,20";"14.837,20";STUDIO SMANIOTTO & MOROSIN;76351125BD;SALDO Fatt.n. 27  del 12/06/2019 LAVORI DI MIGLIORAMENTO SISMICO PLESSO SCOLASTICO;26-06-2019;775;3;404;2;Spese in conto capitale;2;Investimenti fissi lordi e acquisto di terreni;1;Beni materiali;9;Beni immobili;3;Fabbricati ad uso scolastico;26-06-2019;
865;1;0;"1.220,00";"1.220,00";ACCATRE S.R.L.;ZBC267064D;ACCONTO Fatt.n. 190641/1  del 27/05/2019 SERVIZIO DI AFFIANCAMENTO ECON. PATRIM.-ANNO 2019;26-06-2019;39;0;240;1;Spese correnti;3;Acquisto di beni e servizi;2;Acquisto di servizi;19;Servizi informatici e di telecomunicazioni;1;Gestione e manutenzione applicazioni;26-06-2019;
866;1;0;"1.638,00";"1.638,00";ACCATRE S.R.L.;ZBC267064D;ACCONTO Fatt.n. 190641/1  del 27/05/2019 SERVIZIO DI AFFIANCAMENTO ECON. PATRIM.-ANNO 2019;26-06-2019;39;1;311;1;Spese correnti;3;Acquisto di beni e servizi;2;Acquisto di servizi;7;Utilizzo di beni di terzi;6;Licenze d'uso per software;26-06-2019;
867;1;0;"314,00";"314,00";ACCATRE S.R.L.;ZBC267064D;SALDO Fatt.n. 190641/1  del 27/05/2019 SERVIZIO DI AFFIANCAMENTO ECON. PATRIM.-ANNO 2019;26-06-2019;34;4;312;1;Spese correnti;3;Acquisto di beni e servizi;2;Acquisto di servizi;99;Altri servizi;999;Altri servizi diversi n.a.c.;26-06-2019;
868;1;0;"1.094,00";"1.094,00";ILONA MARZYNSKA;Z8822A9637;SALDO Fatt.n. FPA 3/19  del 12/06/2019 ALLESTIMENTO MUSEALE  - COLLE DEL CASTELLARO;26-06-2019;780;0;134;2;Spese in conto capitale;2;Investimenti fissi lordi e acquisto di terreni;1;Beni materiali;9;Beni immobili;999;Beni immobili n.a.c.;26-06-2019;
869;1;0;"145,51";"461,69";GREEN TELECOMUNICAZIONI S.P.A.;Z40279DD24;SALDO Fatt.n. E10594  del 12/06/2019 Traffico Telefonico Periodo: maggio 2019;26-06-2019;34;0;136;1;Spese correnti;3;Acquisto di beni e servizi;2;Acquisto di servizi;5;Utenze e canoni;1;Telefonia fissa;26-06-2019;
869;2;0;"316,18";"461,69";GREEN TELECOMUNICAZIONI S.P.A.;Z40279DD24;SALDO Fatt.n. E11873  del 12/06/2019 Traffico Telefonico Periodo: maggio 2019;26-06-2019;34;0;136;1;Spese correnti;3;Acquisto di beni e servizi;2;Acquisto di servizi;5;Utenze e canoni;1;Telefonia fissa;26-06-2019;
870;1;0;"515,55";"515,55";UNA CASA PER L'UOMO - SOCIETA' COOPERATIVA SOCIALE;ZA32468D08;SALDO Fatt.n. FE/0000170  del 31/05/2019 PROGETTO ACCOGLIENZA ABITATIVA;26-06-2019;559;0;334;1;Spese correnti;3;Acquisto di beni e servizi;2;Acquisto di servizi;99;Altri servizi;999;Altri servizi diversi n.a.c.;26-06-2019;
871;1;0;"22,00";"22,00";POSTE ITALIANE SPA - PROVENTI POLO LOGISTICO;Z6F2648DBC;ACCONTO Fatt.n. 8719198611  del 14/06/2019 SMA FT ANTICIPATA NAZ.-MAGGIO 2019;26-06-2019;34;3;540;1;Spese correnti;3;Acquisto di beni e servizi;2;Acquisto di servizi;16;Servizi amministrativi;2;Spese postali;26-06-2019;
872;1;0;"348,25";"348,25";POSTE ITALIANE SPA - PROVENTI POLO LOGISTICO;Z6F2648DBC;SALDO Fatt.n. 8719198611  del 14/06/2019 SMA FT ANTICIPATA NAZ.-MAGGIO 2019;26-06-2019;34;3;539;1;Spese correnti;3;Acquisto di beni e servizi;2;Acquisto di servizi;16;Servizi amministrativi;2;Spese postali;26-06-2019;
873;1;0;"-183,00";"183,00";ZONTA FRANCO;Z6428B9997;SALDO Fatt.n. FPA 2/19  del 18/06/2019 NOTA DI CREDITO;26-06-2019;590;1;294;1;Spese correnti;3;Acquisto di beni e servizi;2;Acquisto di servizi;9;Manutenzione ordinaria e riparazioni;1;"Manutenzione ordinaria e riparazioni di mezzi di trasporto ad uso civile, di sicurezza e ordine pubblico";26-06-2019;
873;2;0;"183,00";"183,00";ZONTA FRANCO;Z6428B9997;SALDO Fatt.n. FPA 1/19  del 17/05/2019 MANUTENZIONE ORDINARIA VIABILITA';26-06-2019;590;1;294;1;Spese correnti;3;Acquisto di beni e servizi;2;Acquisto di servizi;9;Manutenzione ordinaria e riparazioni;1;"Manutenzione ordinaria e riparazioni di mezzi di trasporto ad uso civile, di sicurezza e ordine pubblico";26-06-2019;
873;3;0;"183,00";"183,00";ZONTA FRANCO;Z6428B9997;SALDO Fatt.n. FPA 3/19  del 18/06/2019 MANUTENZIONE AUTO VIABILITA';26-06-2019;590;1;294;1;Spese correnti;3;Acquisto di beni e servizi;2;Acquisto di servizi;9;Manutenzione ordinaria e riparazioni;1;"Manutenzione ordinaria e riparazioni di mezzi di trasporto ad uso civile, di sicurezza e ordine pubblico";26-06-2019;
874;1;0;"-3.623,40";"5.023,96";INFOTEAM SRL;Z99239E9BB;SALDO Fatt.n. 00000001180  del 29/05/2019 NOTA ACCREDITO P.A.;26-06-2019;785;0;549;2;Spese in conto capitale;2;Investimenti fissi lordi e acquisto di terreni;1;Beni materiali;10;"Beni immobili di valore culturale, storico ed artistico";8;"Musei, teatri e biblioteche di valore culturale, storico ed artistico";26-06-2019;
874;2;0;"1.171,20";"5.023,96";INFOTEAM SRL;Z99239E9BB;SALDO Fatt.n. 00000001178  del 29/05/2019 FORNITURA MATERIALE HARDWARE PER MUSEO;26-06-2019;785;0;549;2;Spese in conto capitale;2;Investimenti fissi lordi e acquisto di terreni;1;Beni materiali;10;"Beni immobili di valore culturale, storico ed artistico";8;"Musei, teatri e biblioteche di valore culturale, storico ed artistico";26-06-2019;
874;3;0;"2.842,60";"5.023,96";INFOTEAM SRL;Z99239E9BB;ACCONTO Fatt.n. 00000001179  del 29/05/2019 FT. DI VENDITA P.A.;26-06-2019;785;0;549;2;Spese in conto capitale;2;Investimenti fissi lordi e acquisto di terreni;1;Beni materiali;10;"Beni immobili di valore culturale, storico ed artistico";8;"Musei, teatri e biblioteche di valore culturale, storico ed artistico";26-06-2019;
874;4;0;"4.633,56";"5.023,96";INFOTEAM SRL;Z99239E9BB;SALDO Fatt.n. 00000001177  del 29/05/2019 FORNITURA MATERIALE HARDWARE PER MUSEO MULTIMEDIALE;26-06-2019;785;0;549;2;Spese in conto capitale;2;Investimenti fissi lordi e acquisto di terreni;1;Beni materiali;10;"Beni immobili di valore culturale, storico ed artistico";8;"Musei, teatri e biblioteche di valore culturale, storico ed artistico";26-06-2019;
875;1;0;"780,80";"780,80";INFOTEAM SRL;Z42284845D;ACCONTO Fatt.n. 00000001179  del 29/05/2019 FT. DI VENDITA P.A.;26-06-2019;785;0;253;2;Spese in conto capitale;2;Investimenti fissi lordi e acquisto di terreni;1;Beni materiali;10;"Beni immobili di valore culturale, storico ed artistico";8;"Musei, teatri e biblioteche di valore culturale, storico ed artistico";26-06-2019;
876;1;0;"366,00";"366,00";INFOTEAM SRL;Z99239E9BB;SALDO Fatt.n. 00000001179  del 29/05/2019 FT. DI VENDITA P.A.;26-06-2019;785;0;252;2;Spese in conto capitale;2;Investimenti fissi lordi e acquisto di terreni;1;Beni materiali;10;"Beni immobili di valore culturale, storico ed artistico";8;"Musei, teatri e biblioteche di valore culturale, storico ed artistico";26-06-2019;
877;1;0;"1.464,00";"1.464,00";BOXXAPPS S.R.L.;Z1123F4311;SALDO Fatt.n. 190522/1  del 10/06/2019 SERVIZI INFORMATICI;26-06-2019;39;0;330;1;Spese correnti;3;Acquisto di beni e servizi;2;Acquisto di servizi;19;Servizi informatici e di telecomunicazioni;1;Gestione e manutenzione applicazioni;26-06-2019;
878;1;0;"286,90";"286,90";VERGATI S.R.L.;Z901AF65A2;ACCONTO Fatt.n. 784  del 18/06/2019 STAMPE PER MUSEO;26-06-2019;561;4;270;1;Spese correnti;3;Acquisto di beni e servizi;2;Acquisto di servizi;9;Manutenzione ordinaria e riparazioni;4;Manutenzione ordinaria e riparazioni di impianti e macchinari;26-06-2019;
879;1;0;"27,25";"27,25";VERGATI S.R.L.;Z901AF65A2;SALDO Fatt.n. 784  del 18/06/2019 STAMPE PER MUSEO;26-06-2019;309;0;269;1;Spese correnti;3;Acquisto di beni e servizi;1;Acquisto di beni;2;Altri beni di consumo;7;Altri materiali tecnico-specialistici non sanitari;26-06-2019;
880;1;0;"2.217,96";"2.217,96";TIPOGRAFIA BATTAGIN SRL;Z62268EAE8;SALDO Fatt.n. 382  del 31/05/2019 STAMPE PER MUSEO;26-06-2019;785;0;577;2;Spese in conto capitale;2;Investimenti fissi lordi e acquisto di terreni;1;Beni materiali;10;"Beni immobili di valore culturale, storico ed artistico";8;"Musei, teatri e biblioteche di valore culturale, storico ed artistico";26-06-2019;
881;1;0;"21,00";"505,63";TELECOM ITALIA S.P.A.;Z5E283776B;ACCONTO Fatt.n. 8E00442931  del 06/06/2019 UTENZE TELEFONICHE: APRILE - MAGGIO 2019;26-06-2019;313;2;232;1;Spese correnti;3;Acquisto di beni e servizi;2;Acquisto di servizi;5;Utenze e canoni;1;Telefonia fissa;26-06-2019;
881;2;0;"26,21";"505,63";TELECOM ITALIA S.P.A.;Z5E283776B;SALDO Fatt.n. 8E00441635  del 06/06/2019 UTENZE TELEFONICHE: APRILE-MAGGIO 2019;26-06-2019;313;2;232;1;Spese correnti;3;Acquisto di beni e servizi;2;Acquisto di servizi;5;Utenze e canoni;1;Telefonia fissa;26-06-2019;
881;3;0;"26,21";"505,63";TELECOM ITALIA S.P.A.;Z5E283776B;SALDO Fatt.n. 8E00439011  del 06/06/2019 UTENZE TELEFONICHE: APRILE-MAGGIO 2019;26-06-2019;313;2;232;1;Spese correnti;3;Acquisto di beni e servizi;2;Acquisto di servizi;5;Utenze e canoni;1;Telefonia fissa;26-06-2019;
881;4;0;"26,21";"505,63";TELECOM ITALIA S.P.A.;Z5E283776B;SALDO Fatt.n. 8E00438718  del 06/06/2019 UTENZE TELEFONICHE: APRILE-MAGGIO 2019;26-06-2019;313;2;232;1;Spese correnti;3;Acquisto di beni e servizi;2;Acquisto di servizi;5;Utenze e canoni;1;Telefonia fissa;26-06-2019;
881;5;0;"26,21";"505,63";TELECOM ITALIA S.P.A.;Z5E283776B;SALDO Fatt.n. 8E00439525  del 06/06/2019 UTENZE TELEFONICHE: APRILE - MAGGIO 2019;26-06-2019;313;2;232;1;Spese correnti;3;Acquisto di beni e servizi;2;Acquisto di servizi;5;Utenze e canoni;1;Telefonia fissa;26-06-2019;
881;6;0;"26,21";"505,63";TELECOM ITALIA S.P.A.;Z5E283776B;SALDO Fatt.n. 8E00442206  del 06/06/2019 UTENZE TELEFONICHE: APRILE - MAGGIO 2019;26-06-2019;313;2;232;1;Spese correnti;3;Acquisto di beni e servizi;2;Acquisto di servizi;5;Utenze e canoni;1;Telefonia fissa;26-06-2019;
881;7;0;"26,89";"505,63";TELECOM ITALIA S.P.A.;Z5E283776B;SALDO Fatt.n. 8E00439594  del 06/06/2019 UTENZE TELFONICHE: APRILE - MAGGIO 2019;26-06-2019;313;2;232;1;Spese correnti;3;Acquisto di beni e servizi;2;Acquisto di servizi;5;Utenze e canoni;1;Telefonia fissa;26-06-2019;
881;8;0;"29,98";"505,63";TELECOM ITALIA S.P.A.;Z5E283776B;SALDO Fatt.n. 8E00443414  del 06/06/2019 UTENZE TELEFONICHE: APRILE - MAGGIO 2019;26-06-2019;313;2;232;1;Spese correnti;3;Acquisto di beni e servizi;2;Acquisto di servizi;5;Utenze e canoni;1;Telefonia fissa;26-06-2019;
881;9;0;"32,34";"505,63";TELECOM ITALIA S.P.A.;Z5E283776B;SALDO Fatt.n. 8E00440880  del 06/06/2019 UTENZE TELEFONICHE: APRILE-MAGGIO 2019;26-06-2019;313;2;232;1;Spese correnti;3;Acquisto di beni e servizi;2;Acquisto di servizi;5;Utenze e canoni;1;Telefonia fissa;26-06-2019;
881;10;0;"52,43";"505,63";TELECOM ITALIA S.P.A.;Z5E283776B;SALDO Fatt.n. 8E00440884  del 06/06/2019 UTENZE TELEFONICHE: APRILE-MAGGIO 2019;26-06-2019;313;2;232;1;Spese correnti;3;Acquisto di beni e servizi;2;Acquisto di servizi;5;Utenze e canoni;1;Telefonia fissa;26-06-2019;
881;11;0;"52,43";"505,63";TELECOM ITALIA S.P.A.;Z5E283776B;SALDO Fatt.n. 8E00443177  del 06/06/2019 UTENZE TELEFONICHE: APRILE-MAGGIO 2019;26-06-2019;313;2;232;1;Spese correnti;3;Acquisto di beni e servizi;2;Acquisto di servizi;5;Utenze e canoni;1;Telefonia fissa;26-06-2019;
881;12;0;"79,45";"505,63";TELECOM ITALIA S.P.A.;Z5E283776B;SALDO Fatt.n. 8E00441296  del 06/06/2019 UTENZE TELEFONICHE: APRILE-MAGGIO 2019;26-06-2019;313;2;232;1;Spese correnti;3;Acquisto di beni e servizi;2;Acquisto di servizi;5;Utenze e canoni;1;Telefonia fissa;26-06-2019;
881;13;0;"80,06";"505,63";TELECOM ITALIA S.P.A.;Z5E283776B;SALDO Fatt.n. 8E00439372  del 06/06/2019 UTENZE TELEFONICHE: APRILE - MAGGIO 2019;26-06-2019;313;2;232;1;Spese correnti;3;Acquisto di beni e servizi;2;Acquisto di servizi;5;Utenze e canoni;1;Telefonia fissa;26-06-2019;
883;1;0;"572,00";"572,00";BERNO AUTOSERVIZI S.N.C.;Z8E2894600;SALDO Fatt.n. FATTPA 70_19  del 16/06/2019 NOLEGGIO PULMANN PER SERVIZIO TRASPORTO;26-06-2019;578;1;275;1;Spese correnti;3;Acquisto di beni e servizi;2;Acquisto di servizi;99;Altri servizi;999;Altri servizi diversi n.a.c.;26-06-2019;
884;1;0;"-4.400,00";"3.451,00";EVOLUTION FLOOR S.R.L.S.;ZA927B6FFB;SALDO Fatt.n. 3  del 10/06/2019 NOTA DI CREDITO;26-06-2019;313;1;149;1;Spese correnti;3;Acquisto di beni e servizi;2;Acquisto di servizi;9;Manutenzione ordinaria e riparazioni;9;"Manutenzione ordinaria e riparazioni di beni immobili di valore culturale, storico ed artistico";26-06-2019;
884;2;0;"3.451,00";"3.451,00";EVOLUTION FLOOR S.R.L.S.;ZA927B6FFB;ACCONTO Fatt.n. 19  del 04/06/2019 RISTRUTTURAZIONE CHIESETTA CASTELLARO;26-06-2019;313;1;149;1;Spese correnti;3;Acquisto di beni e servizi;2;Acquisto di servizi;9;Manutenzione ordinaria e riparazioni;9;"Manutenzione ordinaria e riparazioni di beni immobili di valore culturale, storico ed artistico";26-06-2019;
884;3;0;"4.400,00";"3.451,00";EVOLUTION FLOOR S.R.L.S.;ZA927B6FFB;SALDO Fatt.n. 20  del 10/06/2019 LAVORI COMPLESSO DEL CASTELLARO E TORRE;26-06-2019;313;1;149;1;Spese correnti;3;Acquisto di beni e servizi;2;Acquisto di servizi;9;Manutenzione ordinaria e riparazioni;9;"Manutenzione ordinaria e riparazioni di beni immobili di valore culturale, storico ed artistico";26-06-2019;
885;1;0;"-699,87";"312,80";SICURITALIA S.P.A.;Z3827208DE;SALDO Fatt.n. 9117004738  del 18/06/2019 NOTA DI CREDITO;26-06-2019;34;0;88;1;Spese correnti;3;Acquisto di beni e servizi;2;Acquisto di servizi;5;Utenze e canoni;999;Utenze e canoni per altri servizi n.a.c.;26-06-2019;
885;2;0;"46,76";"312,80";SICURITALIA S.P.A.;Z3827208DE;SALDO Fatt.n. 9117004739  del 18/06/2019 SERVIZIO DI PRONTO INTERVENTO;26-06-2019;34;0;88;1;Spese correnti;3;Acquisto di beni e servizi;2;Acquisto di servizi;5;Utenze e canoni;999;Utenze e canoni per altri servizi n.a.c.;26-06-2019;
885;3;0;"441,31";"312,80";SICURITALIA S.P.A.;Z3827208DE;SALDO Fatt.n. 9117004741  del 18/06/2019 SERVIZIO DI PRONTO INTERVENTO;26-06-2019;34;0;88;1;Spese correnti;3;Acquisto di beni e servizi;2;Acquisto di servizi;5;Utenze e canoni;999;Utenze e canoni per altri servizi n.a.c.;26-06-2019;
885;4;0;"524,60";"312,80";SICURITALIA S.P.A.;Z3827208DE;SALDO Fatt.n. 9117004740  del 18/06/2019 SERVIZIO DI PRONTO INTERVENTO;26-06-2019;34;0;88;1;Spese correnti;3;Acquisto di beni e servizi;2;Acquisto di servizi;5;Utenze e canoni;999;Utenze e canoni per altri servizi n.a.c.;26-06-2019;
886;1;0;"5.010,00";"5.010,00";FALLIMENTO FENICE S.R.L.; ;IMPEGNO DI SPESA E LIQUIDAZIONE CAUZIONE PER OFFERTA IRREVOCABILE DI ACQUISTO NELL'ASTA FALLIMENTARE N. 7002 - TRIBUNALE DI VICENZA - CURATORE MOSELE DOTT. RICCARDO - DEL TERRENO COSTITUENTE L'OASI NATURALISTICA SA DANIELE DI LIEDOLO.;26-06-2019;962;0;313;2;Spese in conto capitale;2;Investimenti fissi lordi e acquisto di terreni;1;Beni materiali;9;Beni immobili;999;Beni immobili n.a.c.;26-06-2019;
887;1;0;"21.945,00";"21.945,00";PROGETTO ARTE POLI S.R.L.;ZE327ABB85;SALDO Fatt.n. 58/REG.01  del 10/06/2019 FORNITURA E POSA IN OPERA DI PORTE E BUSSOLA PER IL COMPLESSO DEL CASTELLARO;26-06-2019;780;0;147;2;Spese in conto capitale;2;Investimenti fissi lordi e acquisto di terreni;1;Beni materiali;9;Beni immobili;999;Beni immobili n.a.c.;26-06-2019;
888;1;0;"2.362,50";"2.362,50";IDEA GIARDINO SNC;ZD9286ED94;SALDO Fatt.n. 30  del 24/06/2019 MANUTENZIONE STRAORDINARIA DEL VERDE;26-06-2019;591;1;264;1;Spese correnti;3;Acquisto di beni e servizi;2;Acquisto di servizi;9;Manutenzione ordinaria e riparazioni;11;Manutenzione ordinaria e riparazioni di altri beni materiali;26-06-2019;
889;1;0;"949,00";"949,00";EVOLUTION FLOOR S.R.L.S.;ZA927B6FFB;SALDO Fatt.n. 19  del 04/06/2019 RISTRUTTURAZIONE CHIESETTA CASTELLARO;26-06-2019;745;0;150;2;Spese in conto capitale;2;Investimenti fissi lordi e acquisto di terreni;1;Beni materiali;9;Beni immobili;8;Opere destinate al culto;26-06-2019;
890;1;0;"5.000,00";"5.000,00";OMESSO NOMINATIVO NEL RISPETTO DELLA NORMATIVA SULLA PROTEZIONE DATI PERSONALI; ;IMPEGNO DI SPESA E LIQUIDAZIONE CONTRIBUTO PER IL SERVIZIO DI SORVEGLIANZA E PULIZIA DEI LOCALI DELLA PALESTRA DI CA' RAINATI - PRIMO SEMESTRE 2019.;27-06-2019;533;0;637;1;Spese correnti;4;Trasferimenti correnti;1;Trasferimenti correnti a Amministrazioni Pubbliche;4;Trasferimenti correnti a organismi interni e/o unità locali della amministrazione;1;Trasferimenti correnti a organismi interni e/o unità locali della amministrazione;27-06-2019;
891;1;0;"2.500,00";"2.500,00";ATTIVITA' MOTORIE LA TORRE; ;"LIQUIDAZIONE CONTRIBUTO PER IL SERVIZIO DI GESTIONE, SORVEGLIANZA E PULIZIA DELLA PALESTRA COMUNALE DEL CAPOLUOGO CON ANNESSI IMPIANTI SPORTIVI ESTERNI E PARCO GIOCHI - PRIMO SEMESTRE 2019.";27-06-2019;533;0;48;1;Spese correnti;4;Trasferimenti correnti;1;Trasferimenti correnti a Amministrazioni Pubbliche;4;Trasferimenti correnti a organismi interni e/o unità locali della amministrazione;1;Trasferimenti correnti a organismi interni e/o unità locali della amministrazione;27-06-2019;
892;1;0;"2.500,00";"2.500,00";F.C.D. UNION EZZELINA; ;"LIQUIDAZIONE CONTRIBUTO PER IL SERVIZIO DI GESTIONE, SORVEGLIANZA E PULIZIA DELL'IMPIANTO SPORTIVO DEL CAPOLUOGO E DEGLI SPOGLIATOI CALCIO DELLA PALESTRA DI VIA DON M. CANCIAN - PRIMO SEMESTRE 2019.";27-06-2019;533;0;49;1;Spese correnti;4;Trasferimenti correnti;1;Trasferimenti correnti a Amministrazioni Pubbliche;4;Trasferimenti correnti a organismi interni e/o unità locali della amministrazione;1;Trasferimenti correnti a organismi interni e/o unità locali della amministrazione;27-06-2019;
